Body,Body name,Service label,Service divison label,Expenditure category,Detailed expenditure type,Detailed expenditure code,Date paid,Transaction number,Net amount,Capital or revenue,Supplier name
http://statistics.data.gov.uk/doc/local-authority/00DA,Leeds City Council,Central & Corporate Functions,Commercial Services Trading Services,Supplies and Services,Operational Materials,205,15/07/2011,1107-00001,540.21,R,A & A Electrical Distributors Ltd
http://statistics.data.gov.uk/doc/local-authority/00DA,Leeds City Council,Central & Corporate Functions,Commercial Services Trading Services,Supplies and Services,Operational Materials,205,22/07/2011,1107-00002,1885.55,R,A & A Electrical Distributors Ltd
http://statistics.data.gov.uk/doc/local-authority/00DA,Leeds City Council,Central & Corporate Functions,Commercial Services Trading Services,Supplies and Services,Operational Materials,205,22/07/2011,1107-00003,749.55,R,A & A Electrical Distributors Ltd
http://statistics.data.gov.uk/doc/local-authority/00DA,Leeds City Council,Central & Corporate Functions,Commercial Services Trading Services,Supplies and Services,Operational Materials,205,29/07/2011,1107-00004,740.48,R,A & A Electrical Distributors Ltd
http://statistics.data.gov.uk/doc/local-authority/00DA,East - North East,East - North East,Construction Services,Supplies and Services,Other Materials,205,22/07/2011,1107-00005,430.00,R,A Andrews & Sons (Marbles & Tiles)
http://statistics.data.gov.uk/doc/local-authority/00DA,Leeds City Council,Adult Social Care,Roseville Enterprises,Supplies and Services,Operational Furniture And Equipment,203,07/07/2011,1107-00006,1200.00,R,A D G Engineering Ltd
http://statistics.data.gov.uk/doc/local-authority/00DA,Leeds City Council,Adult Social Care,Roseville Enterprises,Supplies and Services,Operational Furniture And Equipment,203,19/07/2011,1107-00007,745.00,R,A D G Engineering Ltd
http://statistics.data.gov.uk/doc/local-authority/00DA,Leeds City Council,Adult Social Care,Roseville Enterprises,Supplies and Services,Operational Furniture And Equipment,203,19/07/2011,1107-00008,700.00,R,A D G Engineering Ltd
http://statistics.data.gov.uk/doc/local-authority/00DA,Leeds City Council,Adult Social Care,Roseville Enterprises,Supplies and Services,Operational Furniture And Equipment,203,19/07/2011,1107-00009,2140.00,R,A D G Engineering Ltd
http://statistics.data.gov.uk/doc/local-authority/00DA,East - North East,East - North East,Construction Services,Supplies and Services,Other Hired And Contracted Services,265,18/07/2011,1107-00010,22745.46,R,A D Simpson Construction Ltd
http://statistics.data.gov.uk/doc/local-authority/00DA,East - North East,East - North East,Construction Services,Supplies and Services,Other Hired And Contracted Services,265,18/07/2011,1107-00011,1678.45,R,A D Simpson Construction Ltd
http://statistics.data.gov.uk/doc/local-authority/00DA,East - North East,East - North East,Construction Services,Supplies and Services,Other Hired And Contracted Services,265,28/07/2011,1107-00012,1835.82,R,A D Simpson Construction Ltd
http://statistics.data.gov.uk/doc/local-authority/00DA,East - North East,East - North East,Construction Services,Supplies and Services,Other Hired And Contracted Services,265,28/07/2011,1107-00013,1417.61,R,A D Simpson Construction Ltd
http://statistics.data.gov.uk/doc/local-authority/00DA,Leeds City Council,Childrens Services,Early Years Service,Third Party Payments,Services Rendered By Voluntary Sector,505,14/07/2011,1107-00014,4292.12,R,A E Speight
http://statistics.data.gov.uk/doc/local-authority/00DA,Leeds City Council,City Development,Highways,Capital,Construction,3,20/07/2011,1107-00015,53662.47,C,A E Yates Ltd
http://statistics.data.gov.uk/doc/local-authority/00DA,Leeds City Council,Central & Corporate Functions,Commercial Services Trading Services,Supplies and Services,Other Hired And Contracted Services,265,11/07/2011,1107-00016,683.00,R,A J H Pump Supply & Repair Ltd
http://statistics.data.gov.uk/doc/local-authority/00DA,Leeds City Council,Central & Corporate Functions,Commercial Services Trading Services,Supplies and Services,Operational Materials,205,15/07/2011,1107-00017,750.00,R,A J H Pump Supply & Repair Ltd
http://statistics.data.gov.uk/doc/local-authority/00DA,Leeds City Council,Central & Corporate Functions,Commercial Services Trading Services,Supplies and Services,Operational Materials,205,18/07/2011,1107-00018,-1238.00,R,A J H Pump Supply & Repair Ltd
http://statistics.data.gov.uk/doc/local-authority/00DA,Leeds City Council,Central & Corporate Functions,Commercial Services Trading Services,Supplies and Services,Operational Materials,205,18/07/2011,1107-00019,-750.00,R,A J H Pump Supply & Repair Ltd
http://statistics.data.gov.uk/doc/local-authority/00DA,Leeds City Council,Central & Corporate Functions,Commercial Services Trading Services,Supplies and Services,Operational Materials,205,18/07/2011,1107-00020,750.00,R,A J H Pump Supply & Repair Ltd
http://statistics.data.gov.uk/doc/local-authority/00DA,Leeds City Council,Central & Corporate Functions,Commercial Services Trading Services,Supplies and Services,Operational Materials,205,18/07/2011,1107-00021,1238.00,R,A J H Pump Supply & Repair Ltd
http://statistics.data.gov.uk/doc/local-authority/00DA,Leeds City Council,Central & Corporate Functions,Commercial Services Trading Services,Supplies and Services,Operational Materials,205,22/07/2011,1107-00022,1238.00,R,A J H Pump Supply & Repair Ltd
http://statistics.data.gov.uk/doc/local-authority/00DA,Leeds City Council,City Development,Recreation,Supplies and Services,Publication And Promotion,267,01/07/2011,1107-00023,3000.00,R,A J Paraskos
http://statistics.data.gov.uk/doc/local-authority/00DA,Leeds City Council,City Development,Recreation,Supplies and Services,Other Hired And Contracted Services,265,01/07/2011,1107-00024,4520.00,R,A J Paraskos
http://statistics.data.gov.uk/doc/local-authority/00DA,Leeds City Council,City Development,Recreation,Supplies and Services,Other Hired And Contracted Services,265,06/07/2011,1107-00025,600.00,R,A J Paraskos
http://statistics.data.gov.uk/doc/local-authority/00DA,Leeds City Council,City Development,Recreation,Supplies and Services,Other Hired And Contracted Services,265,14/07/2011,1107-00026,480.00,R,A J Paraskos
http://statistics.data.gov.uk/doc/local-authority/00DA,Leeds City Council,City Development,Economic Development,Supplies and Services,Resaleable Materials,204,08/07/2011,1107-00027,818.10,R,A J Promotions
http://statistics.data.gov.uk/doc/local-authority/00DA,Leeds City Council,City Development,Economic Development,Supplies and Services,Resaleable Materials,204,12/07/2011,1107-00028,920.28,R,A J Promotions
http://statistics.data.gov.uk/doc/local-authority/00DA,Leeds City Council,City Development,Libraries  Arts & Heritage,Supplies and Services,Resaleable Materials,204,14/07/2011,1107-00029,1368.25,R,A J Promotions
http://statistics.data.gov.uk/doc/local-authority/00DA,Leeds City Council,City Development,Libraries  Arts & Heritage,Supplies and Services,Resaleable Materials,204,29/07/2011,1107-00030,1503.00,R,A J Promotions
http://statistics.data.gov.uk/doc/local-authority/00DA,Leeds City Council,Childrens Services,Children Looked After,Third Party Payments,General External Residential Placements,507,15/07/2011,1107-00031,13000.00,R,A Lowrie Care Service Limited
http://statistics.data.gov.uk/doc/local-authority/00DA,Leeds City Council,Childrens Services,Children Looked After,Third Party Payments,General External Residential Placements,507,15/07/2011,1107-00032,3500.00,R,A Lowrie Care Service Limited
http://statistics.data.gov.uk/doc/local-authority/00DA,Leeds City Council,Central & Corporate Functions,Customer Services,Supplies and Services,Other Hired And Contracted Services,265,04/07/2011,1107-00033,453.75,R,A Namaki
http://statistics.data.gov.uk/doc/local-authority/00DA,Leeds City Council,Environment & Neighbourhoods,Statutory Housing,Transport,Public Transport Expenses,310,07/07/2011,1107-00034,2985.00,R,A Zoom Taxis
http://statistics.data.gov.uk/doc/local-authority/00DA,Leeds City Council,Central & Corporate Functions,Commercial Services Trading Services,Supplies and Services,Operational Materials,205,29/07/2011,1107-00035,1547.64,R,Aalco Leeds
http://statistics.data.gov.uk/doc/local-authority/00DA,Leeds City Council,Adult Social Care,Services For Older People - 65 And Over,Third Party Payments,Residential Care Emi,571,06/07/2011,1107-00036,1170.76,R,Abbey Lea Residential Care Home
http://statistics.data.gov.uk/doc/local-authority/00DA,Leeds City Council,Adult Social Care,Services For Adults Under 65 Mental/Dis,Third Party Payments,Residential,580,06/07/2011,1107-00037,1163.80,R,Abbeydale Care Home
http://statistics.data.gov.uk/doc/local-authority/00DA,Leeds City Council,Childrens Services,Early Years Service,Third Party Payments,Services Rendered By Other Organisations,511,14/07/2011,1107-00038,3290.24,R,Abc Daycare
http://statistics.data.gov.uk/doc/local-authority/00DA,Leeds City Council,Childrens Services,Early Years Service,Third Party Payments,Services Rendered By Other Organisations,511,14/07/2011,1107-00039,1545.12,R,Abc Nursery At Lufc
http://statistics.data.gov.uk/doc/local-authority/00DA,Leeds City Council,City Development,Recreation,Supplies and Services,Non-Recurring Grants,227,18/07/2011,1107-00040,1300.00,R,Aberford And District Parish Council
http://statistics.data.gov.uk/doc/local-authority/00DA,Leeds City Council,Environment & Neighbourhoods,Environmental Health,Capital,Construction,3,04/07/2011,1107-00041,4150.00,C,Able Bathing & Building Contractors Ltd
http://statistics.data.gov.uk/doc/local-authority/00DA,Leeds City Council,Environment & Neighbourhoods,Environmental Health,Capital,Construction,3,04/07/2011,1107-00042,4400.00,C,Able Bathing & Building Contractors Ltd
http://statistics.data.gov.uk/doc/local-authority/00DA,Leeds City Council,Environment & Neighbourhoods,Environmental Health,Capital,Construction,3,04/07/2011,1107-00043,4370.00,C,Able Bathing & Building Contractors Ltd
http://statistics.data.gov.uk/doc/local-authority/00DA,Leeds City Council,Environment & Neighbourhoods,Environmental Health,Capital,Construction,3,04/07/2011,1107-00044,4400.00,C,Able Bathing & Building Contractors Ltd
http://statistics.data.gov.uk/doc/local-authority/00DA,Leeds City Council,Environment & Neighbourhoods,Environmental Health,Capital,Construction,3,04/07/2011,1107-00045,4150.00,C,Able Bathing & Building Contractors Ltd
http://statistics.data.gov.uk/doc/local-authority/00DA,Leeds City Council,Environment & Neighbourhoods,Environmental Health,Capital,Construction,3,08/07/2011,1107-00046,4150.00,C,Able Bathing & Building Contractors Ltd
http://statistics.data.gov.uk/doc/local-authority/00DA,Leeds City Council,Environment & Neighbourhoods,Environmental Health,Capital,Construction,3,08/07/2011,1107-00047,4150.00,C,Able Bathing & Building Contractors Ltd
http://statistics.data.gov.uk/doc/local-authority/00DA,Leeds City Council,Environment & Neighbourhoods,Environmental Health,Capital,Construction,3,08/07/2011,1107-00048,4370.00,C,Able Bathing & Building Contractors Ltd
http://statistics.data.gov.uk/doc/local-authority/00DA,Leeds City Council,Environment & Neighbourhoods,Health & Environmental Action,Income,Admissions  Booking Fees & Ticket Sales,933,08/07/2011,1107-00049,-1881.70,R,Able Bathing & Building Contractors Ltd
http://statistics.data.gov.uk/doc/local-authority/00DA,Leeds City Council,Environment & Neighbourhoods,Environmental Health,Capital,Construction,3,08/07/2011,1107-00050,25295.69,C,Able Bathing & Building Contractors Ltd
http://statistics.data.gov.uk/doc/local-authority/00DA,Leeds City Council,Environment & Neighbourhoods,Environmental Health,Capital,Construction,3,08/07/2011,1107-00051,4150.00,C,Able Bathing & Building Contractors Ltd
http://statistics.data.gov.uk/doc/local-authority/00DA,Leeds City Council,Environment & Neighbourhoods,Environmental Health,Capital,Construction,3,08/07/2011,1107-00052,4150.00,C,Able Bathing & Building Contractors Ltd
http://statistics.data.gov.uk/doc/local-authority/00DA,Leeds City Council,Environment & Neighbourhoods,Environmental Health,Capital,Construction,3,08/07/2011,1107-00053,4670.00,C,Able Bathing & Building Contractors Ltd
http://statistics.data.gov.uk/doc/local-authority/00DA,Leeds City Council,Environment & Neighbourhoods,South South East,Capital,Construction,3,15/07/2011,1107-00054,4155.00,C,Able Bathing & Building Contractors Ltd
http://statistics.data.gov.uk/doc/local-authority/00DA,Leeds City Council,Environment & Neighbourhoods,Environmental Health,Capital,Construction,3,19/07/2011,1107-00055,1772.00,C,Able Bathing & Building Contractors Ltd
http://statistics.data.gov.uk/doc/local-authority/00DA,Leeds City Council,Environment & Neighbourhoods,Environmental Health,Capital,Construction,3,19/07/2011,1107-00056,4150.00,C,Able Bathing & Building Contractors Ltd
http://statistics.data.gov.uk/doc/local-authority/00DA,Leeds City Council,Environment & Neighbourhoods,Environmental Health,Capital,Construction,3,19/07/2011,1107-00057,8000.00,C,Able Bathing & Building Contractors Ltd
http://statistics.data.gov.uk/doc/local-authority/00DA,Leeds City Council,Environment & Neighbourhoods,Environmental Health,Capital,Construction,3,19/07/2011,1107-00058,2890.00,C,Able Bathing & Building Contractors Ltd
http://statistics.data.gov.uk/doc/local-authority/00DA,Leeds City Council,Environment & Neighbourhoods,Environmental Health,Capital,Construction,3,19/07/2011,1107-00059,4150.00,C,Able Bathing & Building Contractors Ltd
http://statistics.data.gov.uk/doc/local-authority/00DA,Leeds City Council,Environment & Neighbourhoods,Environmental Health,Capital,Construction,3,19/07/2011,1107-00060,3976.00,C,Able Bathing & Building Contractors Ltd
http://statistics.data.gov.uk/doc/local-authority/00DA,Leeds City Council,Environment & Neighbourhoods,Environmental Health,Capital,Construction,3,20/07/2011,1107-00061,2890.00,C,Able Bathing & Building Contractors Ltd
http://statistics.data.gov.uk/doc/local-authority/00DA,Leeds City Council,Environment & Neighbourhoods,Environmental Health,Capital,Construction,3,20/07/2011,1107-00062,4150.00,C,Able Bathing & Building Contractors Ltd
http://statistics.data.gov.uk/doc/local-authority/00DA,Leeds City Council,Environment & Neighbourhoods,Environmental Health,Capital,Construction,3,20/07/2011,1107-00063,2890.00,C,Able Bathing & Building Contractors Ltd
http://statistics.data.gov.uk/doc/local-authority/00DA,Leeds City Council,Environment & Neighbourhoods,Environmental Health,Capital,Construction,3,21/07/2011,1107-00064,4400.00,C,Able Bathing & Building Contractors Ltd
http://statistics.data.gov.uk/doc/local-authority/00DA,Leeds City Council,Environment & Neighbourhoods,Environmental Health,Capital,Construction,3,21/07/2011,1107-00065,2890.00,C,Able Bathing & Building Contractors Ltd
http://statistics.data.gov.uk/doc/local-authority/00DA,Leeds City Council,Environment & Neighbourhoods,Environmental Health,Capital,Construction,3,21/07/2011,1107-00066,8000.00,C,Able Bathing & Building Contractors Ltd
http://statistics.data.gov.uk/doc/local-authority/00DA,Leeds City Council,Environment & Neighbourhoods,Environmental Health,Capital,Construction,3,28/07/2011,1107-00067,12000.00,C,Able Bathing & Building Contractors Ltd
http://statistics.data.gov.uk/doc/local-authority/00DA,Leeds City Council,Environment & Neighbourhoods,Environmental Health,Capital,Construction,3,28/07/2011,1107-00068,2890.00,C,Able Bathing & Building Contractors Ltd
http://statistics.data.gov.uk/doc/local-authority/00DA,Leeds City Council,Environment & Neighbourhoods,Environmental Health,Capital,Construction,3,28/07/2011,1107-00069,747.50,C,Able Bathing & Building Contractors Ltd
http://statistics.data.gov.uk/doc/local-authority/00DA,Leeds City Council,Environment & Neighbourhoods,Environmental Health,Capital,Construction,3,28/07/2011,1107-00070,4150.00,C,Able Bathing & Building Contractors Ltd
http://statistics.data.gov.uk/doc/local-authority/00DA,Leeds City Council,Environment & Neighbourhoods,Environmental Health,Capital,Construction,3,29/07/2011,1107-00071,2890.00,C,Able Bathing & Building Contractors Ltd
http://statistics.data.gov.uk/doc/local-authority/00DA,Leeds City Council,Environment & Neighbourhoods,Environmental Health,Capital,Construction,3,29/07/2011,1107-00072,4150.00,C,Able Bathing & Building Contractors Ltd
http://statistics.data.gov.uk/doc/local-authority/00DA,Leeds City Council,Environment & Neighbourhoods,Environmental Health,Capital,Construction,3,29/07/2011,1107-00073,4150.00,C,Able Bathing & Building Contractors Ltd
http://statistics.data.gov.uk/doc/local-authority/00DA,Leeds City Council,Environment & Neighbourhoods,Environmental Health,Capital,Construction,3,29/07/2011,1107-00074,2890.00,C,Able Bathing & Building Contractors Ltd
http://statistics.data.gov.uk/doc/local-authority/00DA,Leeds City Council,Environment & Neighbourhoods,Environmental Health,Capital,Construction,3,29/07/2011,1107-00075,4150.00,C,Able Bathing & Building Contractors Ltd
http://statistics.data.gov.uk/doc/local-authority/00DA,Leeds City Council,Environment & Neighbourhoods,Environmental Health,Capital,Construction,3,29/07/2011,1107-00076,4150.00,C,Able Bathing & Building Contractors Ltd
http://statistics.data.gov.uk/doc/local-authority/00DA,Leeds City Council,Environment & Neighbourhoods,Environmental Health,Capital,Construction,3,29/07/2011,1107-00077,2890.00,C,Able Bathing & Building Contractors Ltd
http://statistics.data.gov.uk/doc/local-authority/00DA,Leeds City Council,Environment & Neighbourhoods,Environmental Health,Capital,Construction,3,29/07/2011,1107-00078,4400.00,C,Able Bathing & Building Contractors Ltd
http://statistics.data.gov.uk/doc/local-authority/00DA,Leeds City Council,Environment & Neighbourhoods,Environmental Health,Capital,Construction,3,29/07/2011,1107-00079,4400.00,C,Able Bathing & Building Contractors Ltd
http://statistics.data.gov.uk/doc/local-authority/00DA,Leeds City Council,City Development,Libraries  Arts & Heritage,Supplies and Services,Operational Materials,205,20/07/2011,1107-00080,1155.00,R,Absolute Museum & Gallery Products Ltd
http://statistics.data.gov.uk/doc/local-authority/00DA,Leeds City Council,City Development,Recreation,Supplies and Services,Other Hired And Contracted Services,265,29/07/2011,1107-00081,750.00,R,Abyss Recycling
http://statistics.data.gov.uk/doc/local-authority/00DA,Leeds City Council,Other Education Services,Active Accounts,Employees,Agency Staff,008,19/07/2011,1107-00082,960.00,R,Academic Appointments Ltd
http://statistics.data.gov.uk/doc/local-authority/00DA,Leeds City Council,Other Education Services,Active Accounts,Employees,Agency Staff,008,21/07/2011,1107-00083,1050.00,R,Academic Appointments Ltd
http://statistics.data.gov.uk/doc/local-authority/00DA,Leeds City Council,Other Education Services,Active Accounts,Employees,Agency Staff,008,22/07/2011,1107-00084,987.00,R,Academic Appointments Ltd
http://statistics.data.gov.uk/doc/local-authority/00DA,Leeds City Council,Other Education Services,Active Accounts,Employees,Agency Staff,008,26/07/2011,1107-00085,785.00,R,Academic Appointments Ltd
http://statistics.data.gov.uk/doc/local-authority/00DA,Leeds City Council,Other Education Services,Active Accounts,Employees,Agency Staff,008,29/07/2011,1107-00086,1050.00,R,Academic Appointments Ltd
http://statistics.data.gov.uk/doc/local-authority/00DA,Leeds City Council,Adult Social Care,Services For Adults Under 65 Learn/Dis,Premises,Rents,141,13/07/2011,1107-00087,546.00,R,Accent Foundation
http://statistics.data.gov.uk/doc/local-authority/00DA,Leeds City Council,Environment & Neighbourhoods,Environmental Health,Capital,Construction,3,21/07/2011,1107-00088,2241.00,C,Accent Homes Ltd
http://statistics.data.gov.uk/doc/local-authority/00DA,Leeds City Council,Central & Corporate Functions,Leeds Shared Services,Supplies and Services,Computer Software & Equipment,214,06/07/2011,1107-00089,3000.00,R,Accenture (Uk) Ltd
http://statistics.data.gov.uk/doc/local-authority/00DA,Leeds City Council,Central & Corporate Functions,Leeds Shared Services,Supplies and Services,Computer Software & Equipment,214,06/07/2011,1107-00090,3000.00,R,Accenture (Uk) Ltd
http://statistics.data.gov.uk/doc/local-authority/00DA,Leeds City Council,Strategic Accounts,Miscellaneous,Capital,Other Costs,7,21/07/2011,1107-00091,14463.63,C,Accenture (Uk) Ltd
http://statistics.data.gov.uk/doc/local-authority/00DA,East - North East,East - North East,Technical Services,Premises,General Maintenance,104,05/07/2011,1107-00092,1628.14,R,Access Locksmiths (Leeds) Limited
http://statistics.data.gov.uk/doc/local-authority/00DA,East - North East,East - North East,Technical Services,Premises,General Maintenance,104,29/07/2011,1107-00093,866.00,R,Access Maintenance Solutions Ltd
http://statistics.data.gov.uk/doc/local-authority/00DA,Leeds City Council,City Development,Recreation,Employees,Agency Staff,008,01/07/2011,1107-00094,803.44,R,Acclaimed Security Services
http://statistics.data.gov.uk/doc/local-authority/00DA,Leeds City Council,City Development,Recreation,Employees,Agency Staff,008,01/07/2011,1107-00095,438.24,R,Acclaimed Security Services
http://statistics.data.gov.uk/doc/local-authority/00DA,Leeds City Council,Insurance,Insurance,Supplies and Services,Insurance Claims,248,07/07/2011,1107-00096,8750.00,R,Accountant General Of The Senior Court
http://statistics.data.gov.uk/doc/local-authority/00DA,Leeds City Council,Insurance,Insurance,Supplies and Services,Insurance Claims,248,14/07/2011,1107-00097,5000.00,R,Accountant General Of The Senior Court
http://statistics.data.gov.uk/doc/local-authority/00DA,Leeds City Council,Insurance,Insurance,Supplies and Services,Insurance Claims,248,21/07/2011,1107-00098,1250.00,R,Accountant General Of The Senior Court
http://statistics.data.gov.uk/doc/local-authority/00DA,Leeds City Council,Insurance,Insurance,Supplies and Services,Insurance Claims,248,28/07/2011,1107-00099,2400.00,R,Accountant General Of The Senior Court
http://statistics.data.gov.uk/doc/local-authority/00DA,Leeds City Council,Insurance,Insurance,Supplies and Services,Insurance Claims,248,28/07/2011,1107-00100,2400.00,R,Accountant General Of The Senior Court
http://statistics.data.gov.uk/doc/local-authority/00DA,Leeds City Council,Insurance,Insurance,Supplies and Services,Insurance Claims,248,28/07/2011,1107-00101,2400.00,R,Accountant General Of The Senior Court
http://statistics.data.gov.uk/doc/local-authority/00DA,Leeds City Council,Childrens Services,Early Years Service,Supplies and Services,Operational Furniture And Equipment,203,11/07/2011,1107-00102,2500.00,R,Ace Engineers (Morley) Ltd
http://statistics.data.gov.uk/doc/local-authority/00DA,Leeds City Council,City Development,Recreation,Supplies and Services,Operational Materials,205,27/07/2011,1107-00103,10725.00,R,Ace Engineers (Morley) Ltd
http://statistics.data.gov.uk/doc/local-authority/00DA,Leeds City Council,Other Education Services,Active Accounts,Supplies and Services,Other Hired And Contracted Services,265,07/07/2011,1107-00104,1050.00,R,Ache Community & Young Peoples Centre
http://statistics.data.gov.uk/doc/local-authority/00DA,Leeds City Council,Adult Social Care,Services For Older People - 65 And Over,Third Party Payments,Nursing Home,570,06/07/2011,1107-00105,1185.08,R,Ackworth House
http://statistics.data.gov.uk/doc/local-authority/00DA,Leeds City Council,Central & Corporate Functions,Commercial Services Trading Services,Supplies and Services,Other Hired And Contracted Services,265,15/07/2011,1107-00106,3666.00,R,Acm
http://statistics.data.gov.uk/doc/local-authority/00DA,Leeds City Council,Central & Corporate Functions,Commercial Services Trading Services,Supplies and Services,Other Hired And Contracted Services,265,29/07/2011,1107-00107,730.00,R,Acm
http://statistics.data.gov.uk/doc/local-authority/00DA,Leeds City Council,Central & Corporate Functions,Commercial Services Trading Services,Supplies and Services,Other Hired And Contracted Services,265,29/07/2011,1107-00108,720.00,R,Acm
http://statistics.data.gov.uk/doc/local-authority/00DA,Leeds City Council,Central & Corporate Functions,Commercial Services Trading Services,Supplies and Services,Other Hired And Contracted Services,265,29/07/2011,1107-00109,690.00,R,Acm
http://statistics.data.gov.uk/doc/local-authority/00DA,Leeds City Council,Central & Corporate Functions,Commercial Services Trading Services,Supplies and Services,Other Hired And Contracted Services,265,29/07/2011,1107-00110,460.00,R,Acm
http://statistics.data.gov.uk/doc/local-authority/00DA,Leeds City Council,Central & Corporate Functions,Commercial Services Trading Services,Supplies and Services,Other Hired And Contracted Services,265,06/07/2011,1107-00111,1184.00,R,Acme
http://statistics.data.gov.uk/doc/local-authority/00DA,Leeds City Council,Central & Corporate Functions,Commercial Services Trading Services,Supplies and Services,Operational Furniture And Equipment,203,07/07/2011,1107-00112,1706.00,R,Acme
http://statistics.data.gov.uk/doc/local-authority/00DA,Leeds City Council,Childrens Services,Early Years Service,Third Party Payments,Services Rendered By Other Organisations,511,14/07/2011,1107-00113,9767.52,R,Acorns Nursery
http://statistics.data.gov.uk/doc/local-authority/00DA,Leeds City Council,Childrens Services,Early Years Service,Third Party Payments,Services Rendered By Other Organisations,511,14/07/2011,1107-00114,3900.62,R,Acre Wood Childrens Nursery
http://statistics.data.gov.uk/doc/local-authority/00DA,Leeds City Council,Adult Social Care,Services For Adults Under 65 Mental/Dis,Third Party Payments,Payments To Voluntary Organisations,561,01/07/2011,1107-00115,73646.00,R,Action For Blind People
http://statistics.data.gov.uk/doc/local-authority/00DA,Leeds City Council,Childrens Services,Children Looked After,Third Party Payments,General External Residential Placements,507,21/07/2011,1107-00116,3560.44,R,Action For Children
http://statistics.data.gov.uk/doc/local-authority/00DA,Leeds City Council,Childrens Services,Other Childrens And Families Services,Third Party Payments,Adoptions - Allowances,560,21/07/2011,1107-00117,14099.30,R,Action For Children
http://statistics.data.gov.uk/doc/local-authority/00DA,Leeds City Council,Childrens Services,Other Childrens And Families Services,Third Party Payments,Adoptions - Allowances,560,21/07/2011,1107-00118,14620.05,R,Action For Children
http://statistics.data.gov.uk/doc/local-authority/00DA,Leeds City Council,Childrens Services,Other Childrens And Families Services,Third Party Payments,Adoptions - Allowances,560,21/07/2011,1107-00119,573.33,R,Action For Children
http://statistics.data.gov.uk/doc/local-authority/00DA,Leeds City Council,Childrens Services,Children Looked After,Third Party Payments,Independent Fostering Agencies,509,21/07/2011,1107-00120,4500.00,R,Action For Children
http://statistics.data.gov.uk/doc/local-authority/00DA,Leeds City Council,Childrens Services,Children Looked After,Third Party Payments,Independent Fostering Agencies,509,21/07/2011,1107-00121,4640.00,R,Action For Children
http://statistics.data.gov.uk/doc/local-authority/00DA,Leeds City Council,Childrens Services,Children Looked After,Third Party Payments,Independent Fostering Agencies,509,21/07/2011,1107-00122,4452.64,R,Action For Children
http://statistics.data.gov.uk/doc/local-authority/00DA,Leeds City Council,Childrens Services,Children Looked After,Third Party Payments,Independent Fostering Agencies,509,21/07/2011,1107-00123,4650.00,R,Action For Children
http://statistics.data.gov.uk/doc/local-authority/00DA,Leeds City Council,Childrens Services,Children Looked After,Third Party Payments,Independent Fostering Agencies,509,21/07/2011,1107-00124,4650.00,R,Action For Children
http://statistics.data.gov.uk/doc/local-authority/00DA,Leeds City Council,Childrens Services,Other Childrens And Families Services,Third Party Payments,Adoptions - Allowances,560,21/07/2011,1107-00125,714.67,R,Action For Children
http://statistics.data.gov.uk/doc/local-authority/00DA,Leeds City Council,Childrens Services,Children Looked After,Third Party Payments,Independent Fostering Agencies,509,21/07/2011,1107-00126,4520.00,R,Action For Children
http://statistics.data.gov.uk/doc/local-authority/00DA,Leeds City Council,Childrens Services,Children Looked After,Third Party Payments,Independent Fostering Agencies,509,21/07/2011,1107-00127,4744.00,R,Action For Children
http://statistics.data.gov.uk/doc/local-authority/00DA,Leeds City Council,Childrens Services,Other Childrens And Families Services,Third Party Payments,Adoptions - Allowances,560,21/07/2011,1107-00128,714.67,R,Action For Children
http://statistics.data.gov.uk/doc/local-authority/00DA,Leeds City Council,Childrens Services,Children Looked After,Third Party Payments,Independent Fostering Agencies,509,26/07/2011,1107-00129,3990.00,R,Action For Children
http://statistics.data.gov.uk/doc/local-authority/00DA,Leeds City Council,Childrens Services,Children Looked After,Third Party Payments,Independent Fostering Agencies,509,28/07/2011,1107-00130,5380.00,R,Action For Children
http://statistics.data.gov.uk/doc/local-authority/00DA,Leeds City Council,Adult Social Care,Services For Older People - 65 And Over,Third Party Payments,Payments To Voluntary Organisations,561,01/07/2011,1107-00131,21005.50,R,Action For Gipton Elderly
http://statistics.data.gov.uk/doc/local-authority/00DA,Leeds City Council,Childrens Services,Other Childrens And Families Services,Third Party Payments,Rent,552,04/07/2011,1107-00132,1538.28,R,Action Housing & Support Limited
http://statistics.data.gov.uk/doc/local-authority/00DA,Leeds City Council,Childrens Services,Other Childrens And Families Services,Third Party Payments,Rent,552,22/07/2011,1107-00133,512.19,R,Action Housing & Support Limited
http://statistics.data.gov.uk/doc/local-authority/00DA,West - North West,West - North West,Property And Maintenance,Premises,H.R.A. - Special Maintenance,106,08/07/2011,1107-00134,750.00,R,Active Cleaning Solutions Ltd
http://statistics.data.gov.uk/doc/local-authority/00DA,Leeds City Council,Childrens Services,Early Years Service,Third Party Payments,Services Rendered By Other Organisations,511,14/07/2011,1107-00135,1776.67,R,Active Kids Day Nursery
http://statistics.data.gov.uk/doc/local-authority/00DA,Leeds City Council,City Development,Recreation,Supplies and Services,Bought In Professional Services,277,22/07/2011,1107-00136,7394.84,R,Ad Golf Management Ltd
http://statistics.data.gov.uk/doc/local-authority/00DA,Leeds City Council,City Development,Recreation,Supplies and Services,Bought In Professional Services,277,29/07/2011,1107-00137,13864.88,R,Ad Golf Management Ltd
http://statistics.data.gov.uk/doc/local-authority/00DA,Leeds City Council,City Development,Recreation,Supplies and Services,Bought In Professional Services,277,29/07/2011,1107-00138,7660.52,R,Ad Golf Management Ltd
http://statistics.data.gov.uk/doc/local-authority/00DA,Leeds City Council,Central & Corporate Functions,Support And Facilities Trading Services,Supplies and Services,Other Hired And Contracted Services,265,21/07/2011,1107-00139,554.25,R,Ad3 Envelope Printers Limited
http://statistics.data.gov.uk/doc/local-authority/00DA,Leeds City Council,Central & Corporate Functions,Support And Facilities Trading Services,Supplies and Services,Other Hired And Contracted Services,265,28/07/2011,1107-00140,3500.00,R,Ad3 Envelope Printers Limited
http://statistics.data.gov.uk/doc/local-authority/00DA,Leeds City Council,Environment & Neighbourhoods,West North West,Capital,Other Costs,7,15/07/2011,1107-00141,700.00,C,Adams Consulting Engineers Limited
http://statistics.data.gov.uk/doc/local-authority/00DA,Leeds City Council,Childrens Services,Director Of Childrens Services,Supplies and Services,Conference Meetings,253,26/07/2011,1107-00142,780.00,R,Adcs
http://statistics.data.gov.uk/doc/local-authority/00DA,Leeds City Council,Childrens Services,Early Years Service,Third Party Payments,Services Rendered By Voluntary Sector,505,14/07/2011,1107-00143,3287.42,R,Adel Pre School
http://statistics.data.gov.uk/doc/local-authority/00DA,Leeds City Council,Adult Social Care,Other Adult Services,Third Party Payments,Payments To Voluntary Organisations,561,27/07/2011,1107-00144,18656.25,R,Ads
http://statistics.data.gov.uk/doc/local-authority/00DA,Leeds City Council,City Development,Asset Management Services,Premises,Maintenance Of Buildings,101,05/07/2011,1107-00145,609.71,R,Adt Fire And Security
http://statistics.data.gov.uk/doc/local-authority/00DA,Leeds City Council,Other Education Services,Active Accounts,Premises,Premises Security Services,162,08/07/2011,1107-00146,1021.19,R,Adt Fire And Security
http://statistics.data.gov.uk/doc/local-authority/00DA,Leeds City Council,City Development,Asset Management Services,Premises,Maintenance Of Buildings,101,13/07/2011,1107-00147,551.21,R,Adt Fire And Security
http://statistics.data.gov.uk/doc/local-authority/00DA,Leeds City Council,City Development,Asset Management Services,Premises,Maintenance Of Buildings,101,15/07/2011,1107-00148,1067.95,R,Adt Fire And Security
http://statistics.data.gov.uk/doc/local-authority/00DA,Leeds City Council,City Development,Asset Management Services,Premises,Maintenance Of Buildings,101,19/07/2011,1107-00149,6705.31,R,Adt Fire And Security
http://statistics.data.gov.uk/doc/local-authority/00DA,Leeds City Council,City Development,Asset Management Services,Premises,Maintenance Of Buildings,101,19/07/2011,1107-00150,-1000.84,R,Adt Fire And Security
http://statistics.data.gov.uk/doc/local-authority/00DA,Leeds City Council,Central & Corporate Functions,Support And Facilities General Fund,Supplies and Services,Other Hired And Contracted Services,265,28/07/2011,1107-00151,428.00,R,Adt Fire And Security
http://statistics.data.gov.uk/doc/local-authority/00DA,Leeds City Council,City Development,Asset Management Services,Premises,Maintenance Of Buildings,101,28/07/2011,1107-00152,-589.72,R,Adt Fire And Security
http://statistics.data.gov.uk/doc/local-authority/00DA,Leeds City Council,Other Education Services,Active Accounts,Premises,Maintenance Of Buildings,101,28/07/2011,1107-00153,1107.13,R,Adt Fire And Security
http://statistics.data.gov.uk/doc/local-authority/00DA,Leeds City Council,Other Education Services,Active Accounts,Premises,Maintenance Of Buildings,101,28/07/2011,1107-00154,1120.09,R,Adt Fire And Security
http://statistics.data.gov.uk/doc/local-authority/00DA,Leeds City Council,Childrens Services,Children - Commissioning And Social Work,Support Services,Legal Disbursements,411,01/07/2011,1107-00155,724.20,R,Advanced Child Care Assessments Ltd
http://statistics.data.gov.uk/doc/local-authority/00DA,Leeds City Council,Childrens Services,Children - Commissioning And Social Work,Support Services,Legal Disbursements,411,29/07/2011,1107-00156,600.00,R,Advanced Child Care Assessments Ltd
http://statistics.data.gov.uk/doc/local-authority/00DA,Leeds City Council,Adult Social Care,Home Care Services,Supplies and Services,Telephones,213,15/07/2011,1107-00157,1000.00,R,Advanced Health And Care Ltd
http://statistics.data.gov.uk/doc/local-authority/00DA,Leeds City Council as Accountable Body,Jcs For People With Learning Disabilitie,Jcs For People With Learning Disabilitie,Third Party Payments,Residential,580,28/07/2011,1107-00158,970.63,R,Advantage Healthcare Nursing &
http://statistics.data.gov.uk/doc/local-authority/00DA,Leeds City Council as Accountable Body,Jcs For People With Learning Disabilitie,Jcs For People With Learning Disabilitie,Third Party Payments,Residential,580,06/07/2011,1107-00159,17836.36,R,Advitam Ltd
http://statistics.data.gov.uk/doc/local-authority/00DA,Leeds City Council,Adult Social Care,Other Adult Services,Supplies and Services,Recurring & Major Grantss Projects,229,01/07/2011,1107-00160,7803.00,R,Advocacy Support Limited
http://statistics.data.gov.uk/doc/local-authority/00DA,Leeds City Council,Adult Social Care,Other Adult Services,Supplies and Services,Recurring & Major Grantss Projects,229,01/07/2011,1107-00161,9884.00,R,Advonet
http://statistics.data.gov.uk/doc/local-authority/00DA,Leeds City Council,Adult Social Care,Services For Adults Under 65 Mental/Dis,Third Party Payments,Home Care,568,07/07/2011,1107-00162,546.60,R,Affinity Trust
http://statistics.data.gov.uk/doc/local-authority/00DA,Leeds City Council as Accountable Body,Jcs For People With Learning Disabilitie,Jcs For People With Learning Disabilitie,Third Party Payments,Home Care,568,08/07/2011,1107-00163,672.80,R,Affinity Trust
http://statistics.data.gov.uk/doc/local-authority/00DA,Leeds City Council as Accountable Body,Jcs For People With Learning Disabilitie,Jcs For People With Learning Disabilitie,Third Party Payments,Day Centre,564,13/07/2011,1107-00164,2652.72,R,Affinity Trust
http://statistics.data.gov.uk/doc/local-authority/00DA,Leeds City Council as Accountable Body,Jcs For People With Learning Disabilitie,Jcs For People With Learning Disabilitie,Third Party Payments,Home Care,568,13/07/2011,1107-00165,703.92,R,Affinity Trust
http://statistics.data.gov.uk/doc/local-authority/00DA,Leeds City Council as Accountable Body,Jcs For People With Learning Disabilitie,Jcs For People With Learning Disabilitie,Third Party Payments,Home Care,568,13/07/2011,1107-00166,712.30,R,Affinity Trust
http://statistics.data.gov.uk/doc/local-authority/00DA,Leeds City Council as Accountable Body,Jcs For People With Learning Disabilitie,Jcs For People With Learning Disabilitie,Third Party Payments,Home Care,568,13/07/2011,1107-00167,1106.16,R,Affinity Trust
http://statistics.data.gov.uk/doc/local-authority/00DA,Leeds City Council as Accountable Body,Jcs For People With Learning Disabilitie,Jcs For People With Learning Disabilitie,Third Party Payments,Day Centre,564,13/07/2011,1107-00168,536.09,R,Affinity Trust
http://statistics.data.gov.uk/doc/local-authority/00DA,Leeds City Council as Accountable Body,Jcs For People With Learning Disabilitie,Jcs For People With Learning Disabilitie,Third Party Payments,Day Centre,564,13/07/2011,1107-00169,1994.44,R,Affinity Trust
http://statistics.data.gov.uk/doc/local-authority/00DA,Leeds City Council as Accountable Body,Jcs For People With Learning Disabilitie,Jcs For People With Learning Disabilitie,Third Party Payments,Home Care,568,13/07/2011,1107-00170,672.80,R,Affinity Trust
http://statistics.data.gov.uk/doc/local-authority/00DA,Leeds City Council,Adult Social Care,Services For Older People Under 65 P/Dis,Third Party Payments,Home Care,568,13/07/2011,1107-00171,1185.88,R,Affinity Trust
http://statistics.data.gov.uk/doc/local-authority/00DA,Leeds City Council as Accountable Body,Jcs For People With Learning Disabilitie,Jcs For People With Learning Disabilitie,Third Party Payments,Home Care,568,13/07/2011,1107-00172,1061.36,R,Affinity Trust
http://statistics.data.gov.uk/doc/local-authority/00DA,Leeds City Council,Adult Social Care,Services For Older People Under 65 P/Dis,Third Party Payments,Home Care,568,13/07/2011,1107-00173,1375.80,R,Affinity Trust
http://statistics.data.gov.uk/doc/local-authority/00DA,Leeds City Council,Adult Social Care,Services For Older People Under 65 P/Dis,Third Party Payments,Home Care,568,13/07/2011,1107-00174,777.84,R,Affinity Trust
http://statistics.data.gov.uk/doc/local-authority/00DA,Leeds City Council,Adult Social Care,Services For Older People Under 65 P/Dis,Third Party Payments,Home Care,568,13/07/2011,1107-00175,946.62,R,Affinity Trust
http://statistics.data.gov.uk/doc/local-authority/00DA,Leeds City Council as Accountable Body,Jcs For People With Learning Disabilitie,Jcs For People With Learning Disabilitie,Third Party Payments,Home Care,568,13/07/2011,1107-00176,462.55,R,Affinity Trust
http://statistics.data.gov.uk/doc/local-authority/00DA,Leeds City Council as Accountable Body,Jcs For People With Learning Disabilitie,Jcs For People With Learning Disabilitie,Third Party Payments,Day Centre,564,13/07/2011,1107-00177,1975.50,R,Affinity Trust
http://statistics.data.gov.uk/doc/local-authority/00DA,Leeds City Council,Adult Social Care,Services For Older People Under 65 P/Dis,Third Party Payments,Home Care,568,13/07/2011,1107-00178,1396.15,R,Affinity Trust
http://statistics.data.gov.uk/doc/local-authority/00DA,Leeds City Council as Accountable Body,Jcs For People With Learning Disabilitie,Jcs For People With Learning Disabilitie,Third Party Payments,Residential,580,18/07/2011,1107-00179,603.36,R,Affinity Trust
http://statistics.data.gov.uk/doc/local-authority/00DA,Leeds City Council as Accountable Body,Jcs For People With Learning Disabilitie,Jcs For People With Learning Disabilitie,Third Party Payments,Home Care,568,19/07/2011,1107-00180,3812.64,R,Affinity Trust
http://statistics.data.gov.uk/doc/local-authority/00DA,Leeds City Council as Accountable Body,Jcs For People With Learning Disabilitie,Jcs For People With Learning Disabilitie,Third Party Payments,Home Care,568,19/07/2011,1107-00181,1510.84,R,Affinity Trust
http://statistics.data.gov.uk/doc/local-authority/00DA,Leeds City Council as Accountable Body,Jcs For People With Learning Disabilitie,Jcs For People With Learning Disabilitie,Third Party Payments,Home Care,568,19/07/2011,1107-00182,3357.92,R,Affinity Trust
http://statistics.data.gov.uk/doc/local-authority/00DA,Leeds City Council as Accountable Body,Jcs For People With Learning Disabilitie,Jcs For People With Learning Disabilitie,Third Party Payments,Day Centre,564,26/07/2011,1107-00183,1655.28,R,Affinity Trust
http://statistics.data.gov.uk/doc/local-authority/00DA,Leeds City Council as Accountable Body,Jcs For People With Learning Disabilitie,Jcs For People With Learning Disabilitie,Third Party Payments,Day Centre,564,26/07/2011,1107-00184,1005.60,R,Affinity Trust
http://statistics.data.gov.uk/doc/local-authority/00DA,Leeds City Council as Accountable Body,Jcs For People With Learning Disabilitie,Jcs For People With Learning Disabilitie,Third Party Payments,Day Centre,564,26/07/2011,1107-00185,-1005.60,R,Affinity Trust
http://statistics.data.gov.uk/doc/local-authority/00DA,Leeds City Council as Accountable Body,Jcs For People With Learning Disabilitie,Jcs For People With Learning Disabilitie,Third Party Payments,Day Centre,564,26/07/2011,1107-00186,469.28,R,Affinity Trust
http://statistics.data.gov.uk/doc/local-authority/00DA,Leeds City Council as Accountable Body,Jcs For People With Learning Disabilitie,Jcs For People With Learning Disabilitie,Third Party Payments,Home Care,568,26/07/2011,1107-00187,7741.65,R,Affinity Trust
http://statistics.data.gov.uk/doc/local-authority/00DA,Leeds City Council as Accountable Body,Jcs For People With Learning Disabilitie,Jcs For People With Learning Disabilitie,Third Party Payments,Home Care,568,26/07/2011,1107-00188,4810.10,R,Affinity Trust
http://statistics.data.gov.uk/doc/local-authority/00DA,Leeds City Council as Accountable Body,Jcs For People With Learning Disabilitie,Jcs For People With Learning Disabilitie,Third Party Payments,Home Care,568,26/07/2011,1107-00189,4810.10,R,Affinity Trust
http://statistics.data.gov.uk/doc/local-authority/00DA,Leeds City Council as Accountable Body,Jcs For People With Learning Disabilitie,Jcs For People With Learning Disabilitie,Third Party Payments,Home Care,568,28/07/2011,1107-00190,1319.88,R,Affinity Trust
http://statistics.data.gov.uk/doc/local-authority/00DA,Leeds City Council,Adult Social Care,Services For Older People - 65 And Over,Third Party Payments,Residential,580,01/07/2011,1107-00191,526.68,R,Affinity Trust North Divisional Office
http://statistics.data.gov.uk/doc/local-authority/00DA,Leeds City Council as Accountable Body,Jcs For People With Learning Disabilitie,Jcs For People With Learning Disabilitie,Third Party Payments,Home Care,568,13/07/2011,1107-00192,544.32,R,Affinity Trust North Divisional Office
http://statistics.data.gov.uk/doc/local-authority/00DA,Leeds City Council as Accountable Body,Jcs For People With Learning Disabilitie,Jcs For People With Learning Disabilitie,Third Party Payments,Home Care,568,13/07/2011,1107-00193,816.00,R,Affinity Trust North Divisional Office
http://statistics.data.gov.uk/doc/local-authority/00DA,Leeds City Council as Accountable Body,Jcs For People With Learning Disabilitie,Jcs For People With Learning Disabilitie,Third Party Payments,Home Care,568,13/07/2011,1107-00194,681.21,R,Affinity Trust North Divisional Office
http://statistics.data.gov.uk/doc/local-authority/00DA,Leeds City Council as Accountable Body,Jcs For People With Learning Disabilitie,Jcs For People With Learning Disabilitie,Third Party Payments,Home Care,568,19/07/2011,1107-00195,2587.32,R,Affinity Trust North Divisional Office
http://statistics.data.gov.uk/doc/local-authority/00DA,Leeds City Council,Adult Social Care,Services For Older People - 65 And Over,Third Party Payments,Payments To Voluntary Organisations,561,01/07/2011,1107-00196,22314.00,R,Age Uk Leeds
http://statistics.data.gov.uk/doc/local-authority/00DA,Leeds City Council,Environment & Neighbourhoods,Learning,Supplies and Services,College Contracts,276,15/07/2011,1107-00197,3037.50,R,Age Uk Leeds
http://statistics.data.gov.uk/doc/local-authority/00DA,Leeds City Council,Environment & Neighbourhoods,Strategy & Commissioning,Third Party Payments,Supporting Ppl - Block Gross Chargeable,514,19/07/2011,1107-00198,3957.68,R,Age Uk Leeds
http://statistics.data.gov.uk/doc/local-authority/00DA,Leeds City Council,Adult Social Care,Services For Older People - 65 And Over,Supplies and Services,Consultancy Services,259,22/07/2011,1107-00199,1080.00,R,Age Uk Leeds
http://statistics.data.gov.uk/doc/local-authority/00DA,Leeds City Council,Central & Corporate Functions,Commercial Services Trading Services,Supplies and Services,Other Hired And Contracted Services,265,27/07/2011,1107-00200,4500.00,R,Age Uk Leeds
http://statistics.data.gov.uk/doc/local-authority/00DA,Leeds City Council,City Development,Highways,Capital,Construction,3,18/07/2011,1107-00201,133000.00,C,Aggregate Industries Uk Ltd
http://statistics.data.gov.uk/doc/local-authority/00DA,Leeds City Council,Adult Social Care,Services For Older People Under 65 P/Dis,Third Party Payments,Residential,580,06/07/2011,1107-00202,5794.12,R,Agricola House
http://statistics.data.gov.uk/doc/local-authority/00DA,Leeds City Council,Adult Social Care,Services For Adults Under 65 Learn/Dis,Support Services,Legal Disbursements,411,28/07/2011,1107-00203,3920.00,R,Ahmad Khouja Limited
http://statistics.data.gov.uk/doc/local-authority/00DA,Leeds City Council,Insurance,Insurance,Supplies and Services,Insurance Claims,248,07/07/2011,1107-00204,4746.65,R,Ai Claims Solutionsltd
http://statistics.data.gov.uk/doc/local-authority/00DA,Leeds City Council,Insurance,Insurance,Supplies and Services,Insurance Claims,248,07/07/2011,1107-00205,779.40,R,Ai Claims Solutionsltd
http://statistics.data.gov.uk/doc/local-authority/00DA,Leeds City Council,Insurance,Insurance,Supplies and Services,Insurance Claims,248,12/07/2011,1107-00206,478.07,R,Ai Claims Solutionsltd
http://statistics.data.gov.uk/doc/local-authority/00DA,Leeds City Council,Insurance,Insurance,Supplies and Services,Insurance Claims,248,14/07/2011,1107-00207,770.00,R,Ai Claims Solutionsltd
http://statistics.data.gov.uk/doc/local-authority/00DA,Leeds City Council,Insurance,Insurance,Supplies and Services,Insurance Claims,248,28/07/2011,1107-00208,637.41,R,Ai Claims Solutionsltd
http://statistics.data.gov.uk/doc/local-authority/00DA,Leeds City Council as Accountable Body,Leeds Community Equip Store Pooled Budgt,Leeds Community Equip Store Pooled Budgt,Supplies and Services,Other Equipment,203,01/07/2011,1107-00209,1185.00,R,Aidapt Bathrooms Ltd
http://statistics.data.gov.uk/doc/local-authority/00DA,Leeds City Council as Accountable Body,Leeds Community Equip Store Pooled Budgt,Leeds Community Equip Store Pooled Budgt,Supplies and Services,Other Equipment,203,12/07/2011,1107-00210,490.50,R,Aidapt Bathrooms Ltd
http://statistics.data.gov.uk/doc/local-authority/00DA,Leeds City Council as Accountable Body,Leeds Community Equip Store Pooled Budgt,Leeds Community Equip Store Pooled Budgt,Supplies and Services,Other Equipment,203,12/07/2011,1107-00211,1557.00,R,Aidapt Bathrooms Ltd
http://statistics.data.gov.uk/doc/local-authority/00DA,Leeds City Council as Accountable Body,Leeds Community Equip Store Pooled Budgt,Leeds Community Equip Store Pooled Budgt,Supplies and Services,Other Equipment,203,15/07/2011,1107-00212,1125.00,R,Aidapt Bathrooms Ltd
http://statistics.data.gov.uk/doc/local-authority/00DA,Leeds City Council as Accountable Body,Leeds Community Equip Store Pooled Budgt,Leeds Community Equip Store Pooled Budgt,Supplies and Services,Other Equipment,203,21/07/2011,1107-00213,885.50,R,Aidapt Bathrooms Ltd
http://statistics.data.gov.uk/doc/local-authority/00DA,Leeds City Council as Accountable Body,Leeds Community Equip Store Pooled Budgt,Leeds Community Equip Store Pooled Budgt,Supplies and Services,Other Equipment,203,21/07/2011,1107-00214,1924.60,R,Aidapt Bathrooms Ltd
http://statistics.data.gov.uk/doc/local-authority/00DA,Leeds City Council,Environment & Neighbourhoods,Environmental Health,Capital,Construction,3,08/07/2011,1107-00215,1483.00,C,Aidservice Ltd
http://statistics.data.gov.uk/doc/local-authority/00DA,Leeds City Council,City Development,Economic Development,Capital,Other Costs,7,25/07/2011,1107-00216,2383.00,C,Aig London Limited
http://statistics.data.gov.uk/doc/local-authority/00DA,Leeds City Council,City Development,Economic Development,Capital,Other Costs,7,25/07/2011,1107-00217,1100.00,C,Aig London Limited
http://statistics.data.gov.uk/doc/local-authority/00DA,Leeds City Council,City Development,Economic Development,Capital,Other Costs,7,25/07/2011,1107-00218,2938.80,C,Aig London Limited
http://statistics.data.gov.uk/doc/local-authority/00DA,Leeds City Council,City Development,Highways,Premises,Grounds Maintenance Work,111,22/07/2011,1107-00219,4987.44,R,Ainsty Timber Marketing Ltd
http://statistics.data.gov.uk/doc/local-authority/00DA,Leeds City Council,City Development,Highways,Premises,Grounds Maintenance Work,111,25/07/2011,1107-00220,10324.08,R,Ainsty Timber Marketing Ltd
http://statistics.data.gov.uk/doc/local-authority/00DA,Leeds City Council,City Development,Highways,Premises,Grounds Maintenance Work,111,25/07/2011,1107-00221,519.56,R,Ainsty Timber Marketing Ltd
http://statistics.data.gov.uk/doc/local-authority/00DA,Leeds City Council,City Development,Highways,Premises,Grounds Maintenance Work,111,25/07/2011,1107-00222,598.36,R,Ainsty Timber Marketing Ltd
http://statistics.data.gov.uk/doc/local-authority/00DA,Leeds City Council,City Development,Highways,Premises,Grounds Maintenance Work,111,25/07/2011,1107-00223,4667.12,R,Ainsty Timber Marketing Ltd
http://statistics.data.gov.uk/doc/local-authority/00DA,Leeds City Council,City Development,Highways,Premises,Grounds Maintenance Work,111,25/07/2011,1107-00224,553.75,R,Ainsty Timber Marketing Ltd
http://statistics.data.gov.uk/doc/local-authority/00DA,Leeds City Council,City Development,Highways,Premises,Grounds Maintenance Work,111,25/07/2011,1107-00225,4530.36,R,Ainsty Timber Marketing Ltd
http://statistics.data.gov.uk/doc/local-authority/00DA,Leeds City Council,City Development,Highways,Premises,Grounds Maintenance Work,111,25/07/2011,1107-00226,4799.16,R,Ainsty Timber Marketing Ltd
http://statistics.data.gov.uk/doc/local-authority/00DA,Leeds City Council,City Development,Highways,Premises,Grounds Maintenance Work,111,25/07/2011,1107-00227,1881.73,R,Ainsty Timber Marketing Ltd
http://statistics.data.gov.uk/doc/local-authority/00DA,Leeds City Council,City Development,Highways,Premises,Grounds Maintenance Work,111,25/07/2011,1107-00228,593.61,R,Ainsty Timber Marketing Ltd
http://statistics.data.gov.uk/doc/local-authority/00DA,Leeds City Council,City Development,Highways,Premises,Grounds Maintenance Work,111,25/07/2011,1107-00229,7203.63,R,Ainsty Timber Marketing Ltd
http://statistics.data.gov.uk/doc/local-authority/00DA,Leeds City Council,City Development,Highways,Premises,Grounds Maintenance Work,111,25/07/2011,1107-00230,580.00,R,Ainsty Timber Marketing Ltd
http://statistics.data.gov.uk/doc/local-authority/00DA,Leeds City Council as Accountable Body,Jcs For People With Learning Disabilitie,Jcs For People With Learning Disabilitie,Third Party Payments,Residential,580,06/07/2011,1107-00231,3080.08,R,Aire House
http://statistics.data.gov.uk/doc/local-authority/00DA,Leeds City Council,Environment & Neighbourhoods,Strategy & Commissioning,Supplies and Services,Non-Recurring Grants,227,25/07/2011,1107-00232,11686.00,R,Aire Valley Homes Leeds
http://statistics.data.gov.uk/doc/local-authority/00DA,East - North East,East - North East,Housing Services,Premises,Horticulture Non Defined Work,112,29/07/2011,1107-00233,495.00,R,Aire Valley Tree Services Ltd
http://statistics.data.gov.uk/doc/local-authority/00DA,Leeds City Council,Adult Social Care,Services For Older People - 65 And Over,Third Party Payments,Residential Care Emi,571,06/07/2011,1107-00234,13686.57,R,Aire View Residential Home
http://statistics.data.gov.uk/doc/local-authority/00DA,Leeds City Council,Adult Social Care,Services For Older People - 65 And Over,Third Party Payments,Nursing Care Emi,574,06/07/2011,1107-00235,1325.00,R,Aire View Residential Home
http://statistics.data.gov.uk/doc/local-authority/00DA,Leeds City Council,Adult Social Care,Services For Older People - 65 And Over,Third Party Payments,Residential,580,06/07/2011,1107-00236,12881.35,R,Aire View Residential Home
http://statistics.data.gov.uk/doc/local-authority/00DA,Leeds City Council,Adult Social Care,Services For Older People - 65 And Over,Third Party Payments,Payments To Voluntary Organisations,561,01/07/2011,1107-00237,16560.00,R,Aireborough Voluntary Services
http://statistics.data.gov.uk/doc/local-authority/00DA,Leeds City Council,Adult Social Care,Services For Older People - 65 And Over,Third Party Payments,Residential,580,06/07/2011,1107-00238,30692.85,R,Airedale (Goldsborough)
http://statistics.data.gov.uk/doc/local-authority/00DA,Leeds City Council,Childrens Services,Integrated Youth Support Service,Capital,Furniture And Equipment,5,14/07/2011,1107-00239,1230.00,C,Airquee
http://statistics.data.gov.uk/doc/local-authority/00DA,Leeds City Council,City Development,Recreation,Supplies and Services,Other Hired And Contracted Services,265,14/07/2011,1107-00240,900.00,R,Airquee
http://statistics.data.gov.uk/doc/local-authority/00DA,Leeds City Council,Environment & Neighbourhoods,Community Safety,Supplies and Services,Telephones,213,18/07/2011,1107-00241,682.88,R,Airwave Solutions Ltd
http://statistics.data.gov.uk/doc/local-authority/00DA,East - North East,East - North East,Construction Services,Supplies and Services,Other Materials,205,01/07/2011,1107-00242,551.59,R,Ajm Fixings & Power Tools Ltd
http://statistics.data.gov.uk/doc/local-authority/00DA,East - North East,East - North East,Construction Services,Supplies and Services,Other Materials,205,01/07/2011,1107-00243,1820.69,R,Ajm Fixings & Power Tools Ltd
http://statistics.data.gov.uk/doc/local-authority/00DA,East - North East,East - North East,Construction Services,Supplies and Services,Other Materials,205,15/07/2011,1107-00244,1022.74,R,Ajm Fixings & Power Tools Ltd
http://statistics.data.gov.uk/doc/local-authority/00DA,East - North East,East - North East,Construction Services,Supplies and Services,Other Materials,205,15/07/2011,1107-00245,423.00,R,Ajm Fixings & Power Tools Ltd
http://statistics.data.gov.uk/doc/local-authority/00DA,East - North East,East - North East,Construction Services,Supplies and Services,Other Materials,205,15/07/2011,1107-00246,572.00,R,Ajm Fixings & Power Tools Ltd
http://statistics.data.gov.uk/doc/local-authority/00DA,East - North East,East - North East,Construction Services,Supplies and Services,Other Materials,205,15/07/2011,1107-00247,1040.84,R,Ajm Fixings & Power Tools Ltd
http://statistics.data.gov.uk/doc/local-authority/00DA,East - North East,East - North East,Construction Services,Supplies and Services,Other Materials,205,18/07/2011,1107-00248,1450.30,R,Ajm Fixings & Power Tools Ltd
http://statistics.data.gov.uk/doc/local-authority/00DA,East - North East,East - North East,Construction Services,Supplies and Services,Other Materials,205,28/07/2011,1107-00249,1312.46,R,Ajm Fixings & Power Tools Ltd
http://statistics.data.gov.uk/doc/local-authority/00DA,East - North East,East - North East,Construction Services,Supplies and Services,Other Materials,205,28/07/2011,1107-00250,1107.60,R,Ajm Fixings & Power Tools Ltd
http://statistics.data.gov.uk/doc/local-authority/00DA,East - North East,East - North East,Construction Services,Supplies and Services,Other Materials,205,28/07/2011,1107-00251,1344.99,R,Ajm Fixings & Power Tools Ltd
http://statistics.data.gov.uk/doc/local-authority/00DA,Leeds City Council,City Development,Libraries  Arts & Heritage,Income,Admissions  Booking Fees & Ticket Sales,933,04/07/2011,1107-00252,475.00,R,Ajtc Theatre Company Limited
http://statistics.data.gov.uk/doc/local-authority/00DA,Leeds City Council,Other Education Services,Primary Schools,Capital,Construction,3,22/07/2011,1107-00253,6600.00,C,Alan Chappelow Sports Ground
http://statistics.data.gov.uk/doc/local-authority/00DA,Leeds City Council,Environment & Neighbourhoods,Streetscene Environmental Services,Transport,External Hire -Occasional,304,29/07/2011,1107-00254,726.00,R,Alan Thompson Transport
http://statistics.data.gov.uk/doc/local-authority/00DA,Leeds City Council,Insurance,Insurance,Supplies and Services,Insurance Claims,248,28/07/2011,1107-00255,931.23,R,Albany
http://statistics.data.gov.uk/doc/local-authority/00DA,Leeds City Council,City Development,Libraries  Arts & Heritage,Transport,Plant Hire - By Directorate,305,20/07/2011,1107-00256,1093.29,R,Albury Asset Rentals Ltd
http://statistics.data.gov.uk/doc/local-authority/00DA,Leeds City Council,City Development,Planning & Sustainable Development,Supplies and Services,Other Hired & Contracted Services,265,27/06/2011,1107-00257,795.84,R,Alcontrol Uk Limited
http://statistics.data.gov.uk/doc/local-authority/00DA,Leeds City Council,City Development,Planning & Sustainable Development,Supplies and Services,Other Hired & Contracted Services,265,27/06/2011,1107-00258,594.00,R,Alcontrol Uk Limited
http://statistics.data.gov.uk/doc/local-authority/00DA,Leeds City Council,City Development,Planning & Sustainable Development,Supplies and Services,Other Hired & Contracted Services,265,27/06/2011,1107-00259,567.60,R,Alcontrol Uk Limited
http://statistics.data.gov.uk/doc/local-authority/00DA,Leeds City Council,City Development,Planning & Sustainable Development,Supplies and Services,Other Hired & Contracted Services,265,28/06/2011,1107-00260,1148.40,R,Alcontrol Uk Limited
http://statistics.data.gov.uk/doc/local-authority/00DA,Leeds City Council,City Development,Planning & Sustainable Development,Supplies and Services,Other Hired And Contracted Services,265,01/07/2011,1107-00261,495.00,R,Alcontrol Uk Ltd
http://statistics.data.gov.uk/doc/local-authority/00DA,Leeds City Council,City Development,Planning & Sustainable Development,Supplies and Services,Other Hired And Contracted Services,265,04/07/2011,1107-00262,1324.40,R,Alcontrol Uk Ltd
http://statistics.data.gov.uk/doc/local-authority/00DA,Leeds City Council,City Development,Planning & Sustainable Development,Supplies and Services,Other Hired And Contracted Services,265,04/07/2011,1107-00263,2320.40,R,Alcontrol Uk Ltd
http://statistics.data.gov.uk/doc/local-authority/00DA,Leeds City Council,City Development,Planning & Sustainable Development,Supplies and Services,Other Hired And Contracted Services,265,04/07/2011,1107-00264,1304.80,R,Alcontrol Uk Ltd
http://statistics.data.gov.uk/doc/local-authority/00DA,Leeds City Council,City Development,Planning & Sustainable Development,Supplies and Services,Other Hired And Contracted Services,265,04/07/2011,1107-00265,1524.60,R,Alcontrol Uk Ltd
http://statistics.data.gov.uk/doc/local-authority/00DA,Leeds City Council,City Development,Planning & Sustainable Development,Supplies and Services,Other Hired And Contracted Services,265,04/07/2011,1107-00266,2175.80,R,Alcontrol Uk Ltd
http://statistics.data.gov.uk/doc/local-authority/00DA,Leeds City Council,City Development,Planning & Sustainable Development,Supplies and Services,Other Hired And Contracted Services,265,08/07/2011,1107-00267,957.00,R,Alcontrol Uk Ltd
http://statistics.data.gov.uk/doc/local-authority/00DA,Leeds City Council,City Development,Planning & Sustainable Development,Supplies and Services,Other Hired And Contracted Services,265,15/07/2011,1107-00268,1324.40,R,Alcontrol Uk Ltd
http://statistics.data.gov.uk/doc/local-authority/00DA,Leeds City Council as Accountable Body,Jcs For People With Learning Disabilitie,Jcs For People With Learning Disabilitie,Third Party Payments,Residential,580,06/07/2011,1107-00269,1220.72,R,Alexander Residential Home
http://statistics.data.gov.uk/doc/local-authority/00DA,Leeds City Council,Adult Social Care,Services For Older People - 65 And Over,Third Party Payments,Residential Care Emi,571,06/07/2011,1107-00270,883.44,R,Alexander Residential Home
http://statistics.data.gov.uk/doc/local-authority/00DA,Leeds City Council,Adult Social Care,Services For Older People - 65 And Over,Third Party Payments,Residential,580,06/07/2011,1107-00271,17333.92,R,Alexander Residential Home
http://statistics.data.gov.uk/doc/local-authority/00DA,Leeds City Council,Adult Social Care,Services For Older People Under 65 P/Dis,Third Party Payments,Residential,580,06/07/2011,1107-00272,1141.84,R,Alexander Residential Home
http://statistics.data.gov.uk/doc/local-authority/00DA,Leeds City Council,Adult Social Care,Services For Older People - 65 And Over,Third Party Payments,Residential Care Emi,571,06/07/2011,1107-00273,1238.40,R,Alexandra Court
http://statistics.data.gov.uk/doc/local-authority/00DA,Leeds City Council,Adult Social Care,Services For Older People - 65 And Over,Third Party Payments,Residential,580,06/07/2011,1107-00274,15331.54,R,Alexandra Court
http://statistics.data.gov.uk/doc/local-authority/00DA,Leeds City Council,Environment & Neighbourhoods,Environmental Action (South),Supplies and Services,Other Hired And Contracted Services,265,13/07/2011,1107-00275,556.70,R,Alfies Boarding Kennels
http://statistics.data.gov.uk/doc/local-authority/00DA,Leeds City Council,Environment & Neighbourhoods,Environmental Action (South),Supplies and Services,Other Hired And Contracted Services,265,22/07/2011,1107-00276,465.55,R,Alfies Boarding Kennels
http://statistics.data.gov.uk/doc/local-authority/00DA,Leeds City Council,Central & Corporate Functions,Commercial Services Trading Services,Supplies and Services,Other Hired And Contracted Services,265,01/07/2011,1107-00277,6200.00,R,Alfred Bagnall & Sons (Leeds) Ltd
http://statistics.data.gov.uk/doc/local-authority/00DA,Leeds City Council,Central & Corporate Functions,Civic And Community Buildings,Capital,Construction,3,07/07/2011,1107-00278,12000.00,C,Alfred Bagnall & Sons (Leeds) Ltd
http://statistics.data.gov.uk/doc/local-authority/00DA,Leeds City Council,City Development,Economic Development,Capital,Construction,3,15/07/2011,1107-00279,1379.49,C,Alfred Bagnall & Sons (Leeds) Ltd
http://statistics.data.gov.uk/doc/local-authority/00DA,Leeds City Council,Central & Corporate Functions,Civic And Community Buildings,Capital,Construction,3,15/07/2011,1107-00280,650.00,C,Alfred Bagnall & Sons (Leeds) Ltd
http://statistics.data.gov.uk/doc/local-authority/00DA,Leeds City Council,City Development,Asset Management Services,Premises,Maintenance Of Buildings,101,20/07/2011,1107-00281,3274.60,R,Alfred Bagnall & Sons (Leeds) Ltd
http://statistics.data.gov.uk/doc/local-authority/00DA,Leeds City Council,City Development,Asset Management Services,Premises,Maintenance Of Buildings,101,20/07/2011,1107-00282,3311.92,R,Alfred Bagnall & Sons (Leeds) Ltd
http://statistics.data.gov.uk/doc/local-authority/00DA,Leeds City Council,City Development,Asset Management Services,Premises,Maintenance Of Buildings,101,20/07/2011,1107-00283,1634.81,R,Alfred Bagnall & Sons (Leeds) Ltd
http://statistics.data.gov.uk/doc/local-authority/00DA,Leeds City Council,Childrens Services,Youth Justice,Premises,Maintenance Of Buildings,101,29/07/2011,1107-00284,3883.61,R,Alfred Bagnall & Sons (Leeds) Ltd
http://statistics.data.gov.uk/doc/local-authority/00DA,Leeds City Council,City Development,Libraries  Arts & Heritage,Supplies and Services,Other Hired And Contracted Services,265,29/07/2011,1107-00285,4827.36,R,Alfred Bagnall & Sons (Leeds) Ltd
http://statistics.data.gov.uk/doc/local-authority/00DA,Leeds City Council,Environment & Neighbourhoods,Community Safety,Supplies and Services,Other Hired And Contracted Services,265,29/07/2011,1107-00286,1661.80,R,Alfred Bagnall & Sons (Leeds) Ltd
http://statistics.data.gov.uk/doc/local-authority/00DA,Leeds City Council,City Development,Libraries  Arts & Heritage,Supplies and Services,Bought In Professional Services,277,13/07/2011,1107-00287,1417.90,R,Alison Glew
http://statistics.data.gov.uk/doc/local-authority/00DA,Leeds City Council,City Development,Libraries  Arts & Heritage,Supplies and Services,Bought In Professional Services,277,14/07/2011,1107-00288,1750.00,R,Alison Glew
http://statistics.data.gov.uk/doc/local-authority/00DA,Leeds City Council,Environment & Neighbourhoods,Streetscene Environmental Services,Supplies and Services,Clothing & Uniforms,241,21/07/2011,1107-00289,10500.00,R,Allcode (Uk) Ltd
http://statistics.data.gov.uk/doc/local-authority/00DA,Leeds City Council,Adult Social Care,Services For Older People - 65 And Over,Third Party Payments,Residential,580,06/07/2011,1107-00290,1103.16,R,Allendale Residential Home
http://statistics.data.gov.uk/doc/local-authority/00DA,Leeds City Council,Central & Corporate Functions,Revenues,Supplies and Services,Bank Charges,263,05/07/2011,1107-00291,960.50,R,Alliance & Leicester Commercial Bank
http://statistics.data.gov.uk/doc/local-authority/00DA,Leeds City Council,City Development,Recreation,Premises,Cleaning Maintenance & Toiletries,127,08/06/2011,1107-00292,442.50,R,Alliance Disposables
http://statistics.data.gov.uk/doc/local-authority/00DA,Leeds City Council,City Development,Recreation,Premises,Cleaning Maintenance & Toiletries,127,22/06/2011,1107-00293,623.12,R,Alliance Disposables
http://statistics.data.gov.uk/doc/local-authority/00DA,Leeds City Council,City Development,Recreation,Premises,Cleaning Maintenance & Toiletries,127,29/07/2011,1107-00294,468.04,R,Alliance Disposables Ltd
http://statistics.data.gov.uk/doc/local-authority/00DA,Leeds City Council,Adult Social Care,Services For Older People - 65 And Over,Third Party Payments,Home Care,568,01/07/2011,1107-00295,12637.59,R,Allied Healthcare Group Ltd
http://statistics.data.gov.uk/doc/local-authority/00DA,Leeds City Council,Adult Social Care,Services For Older People Under 65 P/Dis,Third Party Payments,Home Care,568,01/07/2011,1107-00296,3135.91,R,Allied Healthcare Group Ltd
http://statistics.data.gov.uk/doc/local-authority/00DA,Leeds City Council as Accountable Body,Jcs For People With Learning Disabilitie,Jcs For People With Learning Disabilitie,Third Party Payments,Home Care,568,15/07/2011,1107-00297,562.28,R,Allied Healthcare Group Ltd
http://statistics.data.gov.uk/doc/local-authority/00DA,Leeds City Council as Accountable Body,Jcs For People With Learning Disabilitie,Jcs For People With Learning Disabilitie,Third Party Payments,Home Care,568,15/07/2011,1107-00298,1480.24,R,Allied Healthcare Group Ltd
http://statistics.data.gov.uk/doc/local-authority/00DA,Leeds City Council as Accountable Body,Jcs For People With Learning Disabilitie,Jcs For People With Learning Disabilitie,Third Party Payments,Home Care,568,20/07/2011,1107-00299,550.89,R,Allied Healthcare Group Ltd
http://statistics.data.gov.uk/doc/local-authority/00DA,Leeds City Council as Accountable Body,Jcs For People With Learning Disabilitie,Jcs For People With Learning Disabilitie,Third Party Payments,Home Care,568,22/07/2011,1107-00300,1685.55,R,Allied Healthcare Group Ltd
http://statistics.data.gov.uk/doc/local-authority/00DA,Leeds City Council,Adult Social Care,Services For Older People - 65 And Over,Third Party Payments,Home Care,568,25/07/2011,1107-00301,856.80,R,Allied Healthcare Group Ltd
http://statistics.data.gov.uk/doc/local-authority/00DA,Leeds City Council as Accountable Body,Jcs For People With Learning Disabilitie,Jcs For People With Learning Disabilitie,Third Party Payments,Home Care,568,29/07/2011,1107-00302,1560.63,R,Allied Healthcare Group Ltd
http://statistics.data.gov.uk/doc/local-authority/00DA,Leeds City Council,Childrens Services,Children - Commissioning And Social Work,Support Services,Legal Disbursements,411,21/07/2011,1107-00303,1070.00,R,Alpha Biolabs
http://statistics.data.gov.uk/doc/local-authority/00DA,Leeds City Council,Childrens Services,Children - Commissioning And Social Work,Support Services,Legal Disbursements,411,21/07/2011,1107-00304,575.00,R,Alpha Biolabs
http://statistics.data.gov.uk/doc/local-authority/00DA,Aire Valley Homes Leeds,Aire Valley Homes Leeds,Housing,Supplies and Services,Equipment And Materials,207,29/07/2011,1107-00305,835.19,R,Alpha Tools (Northern) Ltd
http://statistics.data.gov.uk/doc/local-authority/00DA,Aire Valley Homes Leeds,Aire Valley Homes Leeds,Housing,Supplies and Services,Equipment And Materials,207,29/07/2011,1107-00306,2140.00,R,Alpha Tools (Northern) Ltd
http://statistics.data.gov.uk/doc/local-authority/00DA,Aire Valley Homes Leeds,Aire Valley Homes Leeds,Housing,Supplies and Services,Equipment And Materials,207,29/07/2011,1107-00307,530.00,R,Alpha Tools (Northern) Ltd
http://statistics.data.gov.uk/doc/local-authority/00DA,Leeds City Council,Central & Corporate Functions,Commercial Services Trading Services,Supplies and Services,Other Hired And Contracted Services,265,01/07/2011,1107-00308,3063.52,R,Alternative Windows (Leeds) Ltd
http://statistics.data.gov.uk/doc/local-authority/00DA,Leeds City Council,Central & Corporate Functions,Commercial Services Trading Services,Supplies and Services,Other Hired And Contracted Services,265,22/07/2011,1107-00309,1240.44,R,Alternative Windows (Leeds) Ltd
http://statistics.data.gov.uk/doc/local-authority/00DA,Leeds City Council,Childrens Services,Integrated Youth Support Service,Supplies and Services,Admission Charges to Schools,283,28/06/2011,1107-00310,874.00,R,Alton Towers Park
http://statistics.data.gov.uk/doc/local-authority/00DA,Leeds City Council,Central & Corporate Functions,Commercial Services Trading Services,Supplies and Services,Operational Materials,205,21/07/2011,1107-00311,427.26,R,Alumasc Interior Building Products Ltd
http://statistics.data.gov.uk/doc/local-authority/00DA,Leeds City Council,Central & Corporate Functions,Commercial Services Trading Services,Supplies and Services,Operational Materials,205,21/07/2011,1107-00312,-1155.29,R,Alvin Morris Ltd
http://statistics.data.gov.uk/doc/local-authority/00DA,Leeds City Council,Central & Corporate Functions,Commercial Services Trading Services,Supplies and Services,Operational Materials,205,21/07/2011,1107-00313,1315.45,R,Alvin Morris Ltd
http://statistics.data.gov.uk/doc/local-authority/00DA,Leeds City Council,Central & Corporate Functions,Commercial Services Trading Services,Supplies and Services,Operational Materials,205,29/07/2011,1107-00314,1155.29,R,Alvin Morris Ltd
http://statistics.data.gov.uk/doc/local-authority/00DA,Leeds City Council,Central & Corporate Functions,Commercial Services Trading Services,Supplies and Services,Operational Materials,205,29/07/2011,1107-00315,755.82,R,Alvin Morris Ltd
http://statistics.data.gov.uk/doc/local-authority/00DA,Leeds City Council,Adult Social Care,Services For Older People - 65 And Over,Third Party Payments,Payments To Voluntary Organisations,561,01/07/2011,1107-00316,66384.00,R,Alzheimers Disease Society
http://statistics.data.gov.uk/doc/local-authority/00DA,Leeds City Council,Central & Corporate Functions,Commercial Services Trading Services,Supplies and Services,Operational Materials,205,29/07/2011,1107-00317,1150.61,R,Amari Plastics Plc
http://statistics.data.gov.uk/doc/local-authority/00DA,Leeds City Council,Adult Social Care,Services For Older People - 65 And Over,Third Party Payments,Nursing Care Emi,574,07/07/2011,1107-00318,1109.68,R,Amarna House Care Centre
http://statistics.data.gov.uk/doc/local-authority/00DA,Leeds City Council,Childrens Services,Early Years Service,Third Party Payments,Services Rendered By Other Organisations,511,14/07/2011,1107-00319,767.20,R,Amazing Grace Early Years Childcare
http://statistics.data.gov.uk/doc/local-authority/00DA,Leeds City Council,City Development,Libraries  Arts & Heritage,Supplies and Services,Resaleable Materials,204,22/07/2011,1107-00320,1403.28,R,Ambassador'S Of London Ltd
http://statistics.data.gov.uk/doc/local-authority/00DA,Leeds City Council,Childrens Services,Children Looked After,Third Party Payments,General External Residential Placements,507,13/07/2011,1107-00321,16020.00,R,Amberleigh Care Ltd
http://statistics.data.gov.uk/doc/local-authority/00DA,Leeds City Council,Central & Corporate Functions,Support And Facilities Trading Services,Supplies and Services,Other Hired And Contracted Services,265,07/07/2011,1107-00322,512.70,R,Ambroplastics Limited
http://statistics.data.gov.uk/doc/local-authority/00DA,Leeds City Council,Adult Social Care,Services For Older People - 65 And Over,Third Party Payments,Residential,580,06/07/2011,1107-00323,2169.00,R,Amelia House
http://statistics.data.gov.uk/doc/local-authority/00DA,Leeds City Council,Environment & Neighbourhoods,Streetscene Environmental Services,Employees,Tuition & Course Fees,073,19/07/2011,1107-00324,765.00,R,Amr Security Services Ltd
http://statistics.data.gov.uk/doc/local-authority/00DA,Leeds City Council,Environment & Neighbourhoods,Streetscene Environmental Services,Employees,Tuition & Course Fees,073,27/07/2011,1107-00325,935.00,R,Amr Security Services Ltd
http://statistics.data.gov.uk/doc/local-authority/00DA,Leeds City Council,Environment & Neighbourhoods,Streetscene Environmental Services,Employees,Tuition & Course Fees,073,28/07/2011,1107-00326,850.00,R,Amr Security Services Ltd
http://statistics.data.gov.uk/doc/local-authority/00DA,Leeds City Council,Adult Social Care,Services For Older People - 65 And Over,Third Party Payments,Home Care,568,08/07/2011,1107-00327,7630.24,R,Anchor
http://statistics.data.gov.uk/doc/local-authority/00DA,Leeds City Council,Adult Social Care,Services For Older People - 65 And Over,Third Party Payments,Home Care,568,08/07/2011,1107-00328,4656.13,R,Anchor
http://statistics.data.gov.uk/doc/local-authority/00DA,Leeds City Council,Adult Social Care,Services For Older People Under 65 P/Dis,Third Party Payments,Home Care,568,08/07/2011,1107-00329,1405.39,R,Anchor
http://statistics.data.gov.uk/doc/local-authority/00DA,Leeds City Council,Adult Social Care,Services For Older People - 65 And Over,Third Party Payments,Home Care,568,08/07/2011,1107-00330,1609.06,R,Anchor
http://statistics.data.gov.uk/doc/local-authority/00DA,Leeds City Council,Adult Social Care,Services For Older People Under 65 P/Dis,Third Party Payments,Home Care,568,08/07/2011,1107-00331,982.86,R,Anchor
http://statistics.data.gov.uk/doc/local-authority/00DA,Leeds City Council,Adult Social Care,Services For Older People - 65 And Over,Third Party Payments,Home Care,568,08/07/2011,1107-00332,12013.83,R,Anchor
http://statistics.data.gov.uk/doc/local-authority/00DA,Leeds City Council,Adult Social Care,Services For Older People Under 65 P/Dis,Third Party Payments,Home Care,568,08/07/2011,1107-00333,902.37,R,Anchor
http://statistics.data.gov.uk/doc/local-authority/00DA,Leeds City Council,Adult Social Care,Services For Older People - 65 And Over,Third Party Payments,Home Care,568,08/07/2011,1107-00334,1540.35,R,Anchor
http://statistics.data.gov.uk/doc/local-authority/00DA,Leeds City Council,Adult Social Care,Services For Older People - 65 And Over,Third Party Payments,Home Care,568,08/07/2011,1107-00335,18212.09,R,Anchor
http://statistics.data.gov.uk/doc/local-authority/00DA,Leeds City Council,Adult Social Care,Services For Older People Under 65 P/Dis,Third Party Payments,Home Care,568,08/07/2011,1107-00336,3938.95,R,Anchor
http://statistics.data.gov.uk/doc/local-authority/00DA,Leeds City Council,Adult Social Care,Services For Older People - 65 And Over,Third Party Payments,Home Care,568,08/07/2011,1107-00337,3505.95,R,Anchor
http://statistics.data.gov.uk/doc/local-authority/00DA,Leeds City Council,Adult Social Care,Services For Older People - 65 And Over,Third Party Payments,Payments To Voluntary Organisations,561,21/07/2011,1107-00338,9167.48,R,Anchor
http://statistics.data.gov.uk/doc/local-authority/00DA,Leeds City Council,Adult Social Care,Services For Older People - 65 And Over,Third Party Payments,Nursing Home,570,06/07/2011,1107-00339,31815.60,R,Anchor Trust
http://statistics.data.gov.uk/doc/local-authority/00DA,Leeds City Council,Adult Social Care,Services For Older People Under 65 P/Dis,Third Party Payments,Nursing Home,570,06/07/2011,1107-00340,1397.80,R,Anchor Trust
http://statistics.data.gov.uk/doc/local-authority/00DA,Leeds City Council,Adult Social Care,Services For Older People - 65 And Over,Third Party Payments,Residential Care Emi,571,06/07/2011,1107-00341,3566.92,R,Anchor Trust
http://statistics.data.gov.uk/doc/local-authority/00DA,Leeds City Council,Adult Social Care,Services For Older People - 65 And Over,Third Party Payments,Residential Care Emi,571,06/07/2011,1107-00342,1650.04,R,Anchor Trust
http://statistics.data.gov.uk/doc/local-authority/00DA,Leeds City Council,Adult Social Care,Services For Older People - 65 And Over,Third Party Payments,Residential Care Emi,571,06/07/2011,1107-00343,478.68,R,Anchor Trust
http://statistics.data.gov.uk/doc/local-authority/00DA,Leeds City Council,Adult Social Care,Services For Older People - 65 And Over,Third Party Payments,Nursing Care Emi,574,06/07/2011,1107-00344,1186.96,R,Anchor Trust
http://statistics.data.gov.uk/doc/local-authority/00DA,Leeds City Council,Adult Social Care,Services For Older People - 65 And Over,Third Party Payments,Residential,580,06/07/2011,1107-00345,4444.77,R,Anchor Trust
http://statistics.data.gov.uk/doc/local-authority/00DA,Leeds City Council,Adult Social Care,Services For Older People - 65 And Over,Third Party Payments,Residential,580,06/07/2011,1107-00346,4366.04,R,Anchor Trust
http://statistics.data.gov.uk/doc/local-authority/00DA,Leeds City Council,Adult Social Care,Services For Older People - 65 And Over,Third Party Payments,Residential,580,06/07/2011,1107-00347,1153.04,R,Anchor Trust
http://statistics.data.gov.uk/doc/local-authority/00DA,Leeds City Council,Adult Social Care,Services For Adults Under 65 Mental/Dis,Third Party Payments,Residential,580,06/07/2011,1107-00348,1094.56,R,Anchor Trust
http://statistics.data.gov.uk/doc/local-authority/00DA,Leeds City Council,Adult Social Care,Services For Adults Under 65 Mental/Dis,Third Party Payments,Home Care,568,08/07/2011,1107-00349,9167.48,R,Anchor Trust
http://statistics.data.gov.uk/doc/local-authority/00DA,Leeds City Council as Accountable Body,Jcs For People With Learning Disabilitie,Jcs For People With Learning Disabilitie,Third Party Payments,Residential,580,15/07/2011,1107-00350,588.96,R,Anchor Trust
http://statistics.data.gov.uk/doc/local-authority/00DA,Leeds City Council,Environment & Neighbourhoods,Strategy & Commissioning,Third Party Payments,Supporting People - Block Subsidy,513,19/07/2011,1107-00351,478.24,R,Anchor Trust
http://statistics.data.gov.uk/doc/local-authority/00DA,Leeds City Council,Environment & Neighbourhoods,Strategy & Commissioning,Third Party Payments,Supporting People - Block Subsidy,513,19/07/2011,1107-00352,10230.21,R,Anchor Trust
http://statistics.data.gov.uk/doc/local-authority/00DA,Leeds City Council,Environment & Neighbourhoods,Strategy & Commissioning,Third Party Payments,Supporting People - Block Subsidy,513,19/07/2011,1107-00353,715.67,R,Anchor Trust
http://statistics.data.gov.uk/doc/local-authority/00DA,Leeds City Council as Accountable Body,Jcs For People With Learning Disabilitie,Jcs For People With Learning Disabilitie,Third Party Payments,Residential,580,21/07/2011,1107-00354,5576.78,R,Anchor Trust
http://statistics.data.gov.uk/doc/local-authority/00DA,Leeds City Council as Accountable Body,Jcs For People With Learning Disabilitie,Jcs For People With Learning Disabilitie,Third Party Payments,Residential,580,21/07/2011,1107-00355,5576.78,R,Anchor Trust
http://statistics.data.gov.uk/doc/local-authority/00DA,Leeds City Council,Adult Social Care,Services For Older People - 65 And Over,Third Party Payments,Residential Care Emi,571,06/07/2011,1107-00356,14450.91,R,Anchor Trust Simon Marks Court
http://statistics.data.gov.uk/doc/local-authority/00DA,Leeds City Council,Adult Social Care,Services For Older People - 65 And Over,Third Party Payments,Residential,580,06/07/2011,1107-00357,13546.66,R,Anchor Trust Simon Marks Court
http://statistics.data.gov.uk/doc/local-authority/00DA,Leeds City Council,Central & Corporate Functions,Corporate Governance,Support Services,Professional Legal Services Charges,410,01/07/2011,1107-00358,1500.00,R,Andrew Arden Qc
http://statistics.data.gov.uk/doc/local-authority/00DA,Aire Valley Homes Leeds,Aire Valley Homes Leeds,Aire Valley Homes Leeds,Supplies and Services,Other Hired And Contracted Services,265,01/07/2011,1107-00359,2000.00,R,Andrew Elliott
http://statistics.data.gov.uk/doc/local-authority/00DA,Leeds City Council,Central & Corporate Functions,Commercial Services Trading Services,Supplies and Services,Other Hired And Contracted Services,265,01/07/2011,1107-00360,2086.96,R,Andrew Miller Builders
http://statistics.data.gov.uk/doc/local-authority/00DA,Leeds City Council,City Development,Recreation,Capital,Construction,3,08/07/2011,1107-00361,11238.50,C,Andy Thornton
http://statistics.data.gov.uk/doc/local-authority/00DA,Leeds City Council,Adult Social Care,Services For Older People - 65 And Over,Third Party Payments,Home Care,568,06/07/2011,1107-00362,3920.00,R,Angels Home Care Services
http://statistics.data.gov.uk/doc/local-authority/00DA,Leeds City Council,Adult Social Care,Services For Older People - 65 And Over,Third Party Payments,Home Care,568,06/07/2011,1107-00363,4047.52,R,Angels Home Care Services
http://statistics.data.gov.uk/doc/local-authority/00DA,Leeds City Council,Adult Social Care,Services For Older People - 65 And Over,Third Party Payments,Home Care,568,06/07/2011,1107-00364,5162.56,R,Angels Home Care Services
http://statistics.data.gov.uk/doc/local-authority/00DA,Leeds City Council,Adult Social Care,Services For Older People - 65 And Over,Third Party Payments,Home Care,568,22/07/2011,1107-00365,606.94,R,Angels Home Care Services
http://statistics.data.gov.uk/doc/local-authority/00DA,Leeds City Council,Adult Social Care,Services For Older People - 65 And Over,Third Party Payments,Home Care,568,22/07/2011,1107-00366,644.00,R,Angels Home Care Services
http://statistics.data.gov.uk/doc/local-authority/00DA,Leeds City Council,Adult Social Care,Services For Older People - 65 And Over,Third Party Payments,Home Care,568,22/07/2011,1107-00367,504.00,R,Angels Home Care Services
http://statistics.data.gov.uk/doc/local-authority/00DA,Leeds City Council,Adult Social Care,Services For Older People - 65 And Over,Third Party Payments,Home Care,568,22/07/2011,1107-00368,1470.00,R,Angels Home Care Services
http://statistics.data.gov.uk/doc/local-authority/00DA,Leeds City Council,Adult Social Care,Services For Older People - 65 And Over,Third Party Payments,Home Care,568,22/07/2011,1107-00369,881.18,R,Angels Home Care Services
http://statistics.data.gov.uk/doc/local-authority/00DA,Leeds City Council,Adult Social Care,Services For Older People - 65 And Over,Third Party Payments,Home Care,568,22/07/2011,1107-00370,801.50,R,Angels Home Care Services
http://statistics.data.gov.uk/doc/local-authority/00DA,Leeds City Council,Adult Social Care,Services For Older People - 65 And Over,Third Party Payments,Home Care,568,22/07/2011,1107-00371,2667.00,R,Angels Home Care Services
http://statistics.data.gov.uk/doc/local-authority/00DA,Leeds City Council,Adult Social Care,Services For Older People - 65 And Over,Third Party Payments,Home Care,568,22/07/2011,1107-00372,2180.50,R,Angels Home Care Services
http://statistics.data.gov.uk/doc/local-authority/00DA,Leeds City Council,Adult Social Care,Services For Older People - 65 And Over,Third Party Payments,Home Care,568,22/07/2011,1107-00373,605.50,R,Angels Home Care Services
http://statistics.data.gov.uk/doc/local-authority/00DA,Leeds City Council,Adult Social Care,Services For Older People - 65 And Over,Third Party Payments,Home Care,568,27/07/2011,1107-00374,1349.80,R,Angels Home Care Services
http://statistics.data.gov.uk/doc/local-authority/00DA,Leeds City Council,Adult Social Care,Services For Older People - 65 And Over,Third Party Payments,Home Care,568,27/07/2011,1107-00375,1579.20,R,Angels Home Care Services
http://statistics.data.gov.uk/doc/local-authority/00DA,Leeds City Council,Adult Social Care,Services For Older People - 65 And Over,Third Party Payments,Home Care,568,27/07/2011,1107-00376,1862.60,R,Angels Home Care Services
http://statistics.data.gov.uk/doc/local-authority/00DA,Leeds City Council,Adult Social Care,Services For Older People Under 65 P/Dis,Third Party Payments,Home Care,568,28/07/2011,1107-00377,1295.00,R,Angels Home Care Services
http://statistics.data.gov.uk/doc/local-authority/00DA,Leeds City Council,Adult Social Care,Services For Older People Under 65 P/Dis,Third Party Payments,Home Care,568,28/07/2011,1107-00378,1229.00,R,Angels Home Care Services
http://statistics.data.gov.uk/doc/local-authority/00DA,Leeds City Council,Adult Social Care,Services For Older People Under 65 P/Dis,Third Party Payments,Home Care,568,28/07/2011,1107-00379,1606.50,R,Angels Home Care Services
http://statistics.data.gov.uk/doc/local-authority/00DA,Leeds City Council,Adult Social Care,Services For Older People - 65 And Over,Third Party Payments,Home Care,568,28/07/2011,1107-00380,448.00,R,Angels Home Care Services
http://statistics.data.gov.uk/doc/local-authority/00DA,Leeds City Council,Environment & Neighbourhoods,Strategy & Commissioning,Supplies and Services,Non-Recurring Grants,227,25/07/2011,1107-00381,10349.00,R,Angels Housekeeping Cic Ltd
http://statistics.data.gov.uk/doc/local-authority/00DA,Leeds City Council,Childrens Services,Early Years Service,Third Party Payments,Services Rendered By Other Organisations,511,14/07/2011,1107-00382,5915.31,R,Angels Nursery
http://statistics.data.gov.uk/doc/local-authority/00DA,Leeds City Council,Childrens Services,Children - Commissioning And Social Work,Support Services,Legal Disbursements,411,01/07/2011,1107-00383,1398.40,R,Ann M Mortimer
http://statistics.data.gov.uk/doc/local-authority/00DA,Leeds City Council,Childrens Services,Children - Commissioning And Social Work,Support Services,Legal Disbursements,411,15/07/2011,1107-00384,939.55,R,Ann M Mortimer
http://statistics.data.gov.uk/doc/local-authority/00DA,Leeds City Council,Central & Corporate Functions,Human Resources,Employees,Training Costs,071,08/07/2011,1107-00385,499.00,R,Anslow Communications Ltd
http://statistics.data.gov.uk/doc/local-authority/00DA,Leeds City Council,Central & Corporate Functions,Support And Facilities Trading Services,Supplies and Services,Operational Materials,205,07/07/2011,1107-00386,469.00,R,Antalis Mcnaughton Limited
http://statistics.data.gov.uk/doc/local-authority/00DA,Leeds City Council,Central & Corporate Functions,Support And Facilities Trading Services,Supplies and Services,Operational Materials,205,07/07/2011,1107-00387,469.00,R,Antalis Mcnaughton Limited
http://statistics.data.gov.uk/doc/local-authority/00DA,Leeds City Council,Central & Corporate Functions,Support And Facilities Trading Services,Supplies and Services,Operational Materials,205,07/07/2011,1107-00388,501.12,R,Antalis Mcnaughton Limited
http://statistics.data.gov.uk/doc/local-authority/00DA,Leeds City Council,Central & Corporate Functions,Support And Facilities Trading Services,Supplies and Services,Operational Materials,205,12/07/2011,1107-00389,469.00,R,Antalis Mcnaughton Limited
http://statistics.data.gov.uk/doc/local-authority/00DA,Leeds City Council,Central & Corporate Functions,Support And Facilities Trading Services,Supplies and Services,Operational Materials,205,29/07/2011,1107-00390,469.00,R,Antalis Mcnaughton Limited
http://statistics.data.gov.uk/doc/local-authority/00DA,Leeds City Council,Central & Corporate Functions,Benefits,Precepts,Office Consumables - Copying paper,210,10/06/2011,1107-00391,586.25,R,Antalis Uk Ltd
http://statistics.data.gov.uk/doc/local-authority/00DA,Leeds City Council,Adult Social Care,Social Services Support Services,Precepts,Stationery & External Printing,210,10/06/2011,1107-00392,532.00,R,Antalis Uk Ltd
http://statistics.data.gov.uk/doc/local-authority/00DA,Leeds City Council,City Development,Recreation,Precepts,Office Consumables - Copying paper,210,13/06/2011,1107-00393,574.08,R,Antalis Uk Ltd
http://statistics.data.gov.uk/doc/local-authority/00DA,Leeds City Council,Environment & Neighbourhoods,Environmental Health,Capital,Construction,3,20/07/2011,1107-00394,8422.13,C,Anthony Wright
http://statistics.data.gov.uk/doc/local-authority/00DA,Leeds City Council,Other Education Services,Active Accounts,Supplies and Services,Other Hired And Contracted Services,265,22/07/2011,1107-00395,490.00,R,Anything Audio
http://statistics.data.gov.uk/doc/local-authority/00DA,East - North East,East - North East,Corporate Directorate,Supplies and Services,Audit Fees,261,05/07/2011,1107-00396,2395.00,R,Aon Hewitt Limited
http://statistics.data.gov.uk/doc/local-authority/00DA,Aire Valley Homes Leeds,Aire Valley Homes Leeds,Aire Valley Homes Leeds,Supplies and Services,Audit Fees,261,22/07/2011,1107-00397,2395.00,R,Aon Hewitt Limited
http://statistics.data.gov.uk/doc/local-authority/00DA,Leeds City Council,Central & Corporate Functions,Audit And Risk,Supplies and Services,External Audit Fees,261,26/07/2011,1107-00398,725.00,R,Aon Hewitt Limited
http://statistics.data.gov.uk/doc/local-authority/00DA,Leeds City Council,Central & Corporate Functions,Commercial Services Trading Services,Supplies and Services,Food & Drink,231,01/07/2011,1107-00399,827.68,R,Apetito Ltd
http://statistics.data.gov.uk/doc/local-authority/00DA,Leeds City Council,Central & Corporate Functions,Commercial Services Trading Services,Supplies and Services,Food & Drink,231,01/07/2011,1107-00400,2361.24,R,Apetito Ltd
http://statistics.data.gov.uk/doc/local-authority/00DA,Leeds City Council,Central & Corporate Functions,Commercial Services Trading Services,Supplies and Services,Food & Drink,231,01/07/2011,1107-00401,925.54,R,Apetito Ltd
http://statistics.data.gov.uk/doc/local-authority/00DA,Leeds City Council,Central & Corporate Functions,Commercial Services Trading Services,Supplies and Services,Food & Drink,231,08/07/2011,1107-00402,2507.82,R,Apetito Ltd
http://statistics.data.gov.uk/doc/local-authority/00DA,Leeds City Council,Central & Corporate Functions,Commercial Services Trading Services,Supplies and Services,Food & Drink,231,13/07/2011,1107-00403,739.82,R,Apetito Ltd
http://statistics.data.gov.uk/doc/local-authority/00DA,Leeds City Council,Central & Corporate Functions,Commercial Services Trading Services,Supplies and Services,Food & Drink,231,13/07/2011,1107-00404,794.50,R,Apetito Ltd
http://statistics.data.gov.uk/doc/local-authority/00DA,Leeds City Council,Central & Corporate Functions,Commercial Services Trading Services,Supplies and Services,Food & Drink,231,21/07/2011,1107-00405,725.26,R,Apetito Ltd
http://statistics.data.gov.uk/doc/local-authority/00DA,Leeds City Council,Central & Corporate Functions,Commercial Services Trading Services,Supplies and Services,Food & Drink,231,21/07/2011,1107-00406,1504.82,R,Apetito Ltd
http://statistics.data.gov.uk/doc/local-authority/00DA,Leeds City Council,Central & Corporate Functions,Commercial Services Trading Services,Supplies and Services,Food & Drink,231,21/07/2011,1107-00407,665.42,R,Apetito Ltd
http://statistics.data.gov.uk/doc/local-authority/00DA,Leeds City Council,Central & Corporate Functions,Commercial Services Trading Services,Supplies and Services,Food & Drink,231,28/07/2011,1107-00408,901.40,R,Apetito Ltd
http://statistics.data.gov.uk/doc/local-authority/00DA,Leeds City Council,Central & Corporate Functions,Commercial Services Trading Services,Supplies and Services,Food & Drink,231,28/07/2011,1107-00409,880.88,R,Apetito Ltd
http://statistics.data.gov.uk/doc/local-authority/00DA,Leeds City Council,City Development,Economic Development,Supplies and Services,Advertising,211,28/07/2011,1107-00410,1700.00,R,Appeal Pr Ltd
http://statistics.data.gov.uk/doc/local-authority/00DA,Leeds City Council as Accountable Body,Jcs For People With Learning Disabilitie,Jcs For People With Learning Disabilitie,Third Party Payments,Residential,580,06/07/2011,1107-00411,10188.76,R,Applewalk Homes
http://statistics.data.gov.uk/doc/local-authority/00DA,Leeds City Council,Central & Corporate Functions,Commercial Services Trading Services,Supplies and Services,Computer Software & Equipment,214,18/07/2011,1107-00412,1500.00,R,Appstation
http://statistics.data.gov.uk/doc/local-authority/00DA,Leeds City Council as Accountable Body,Leeds Community Equip Store Pooled Budgt,Leeds Community Equip Store Pooled Budgt,Supplies and Services,Other Equipment,203,08/07/2011,1107-00413,3780.00,R,Aqua Joy Bathlifts Ltd
http://statistics.data.gov.uk/doc/local-authority/00DA,Leeds City Council as Accountable Body,Jcs For People With Learning Disabilitie,Jcs For People With Learning Disabilitie,Third Party Payments,Home Care,568,04/07/2011,1107-00414,-585.80,R,Arabella Health Staffing Ltd
http://statistics.data.gov.uk/doc/local-authority/00DA,Leeds City Council as Accountable Body,Jcs For People With Learning Disabilitie,Jcs For People With Learning Disabilitie,Third Party Payments,Home Care,568,04/07/2011,1107-00415,927.60,R,Arabella Health Staffing Ltd
http://statistics.data.gov.uk/doc/local-authority/00DA,Leeds City Council as Accountable Body,Jcs For People With Learning Disabilitie,Jcs For People With Learning Disabilitie,Third Party Payments,Home Care,568,04/07/2011,1107-00416,927.60,R,Arabella Health Staffing Ltd
http://statistics.data.gov.uk/doc/local-authority/00DA,Leeds City Council as Accountable Body,Jcs For People With Learning Disabilitie,Jcs For People With Learning Disabilitie,Third Party Payments,Home Care,568,04/07/2011,1107-00417,828.36,R,Arabella Health Staffing Ltd
http://statistics.data.gov.uk/doc/local-authority/00DA,Leeds City Council as Accountable Body,Jcs For People With Learning Disabilitie,Jcs For People With Learning Disabilitie,Third Party Payments,Home Care,568,04/07/2011,1107-00418,933.80,R,Arabella Health Staffing Ltd
http://statistics.data.gov.uk/doc/local-authority/00DA,Leeds City Council as Accountable Body,Jcs For People With Learning Disabilitie,Jcs For People With Learning Disabilitie,Third Party Payments,Home Care,568,04/07/2011,1107-00419,529.52,R,Arabella Health Staffing Ltd
http://statistics.data.gov.uk/doc/local-authority/00DA,Leeds City Council as Accountable Body,Jcs For People With Learning Disabilitie,Jcs For People With Learning Disabilitie,Third Party Payments,Home Care,568,04/07/2011,1107-00420,585.80,R,Arabella Health Staffing Ltd
http://statistics.data.gov.uk/doc/local-authority/00DA,Leeds City Council as Accountable Body,Jcs For People With Learning Disabilitie,Jcs For People With Learning Disabilitie,Third Party Payments,Home Care,568,04/07/2011,1107-00421,451.51,R,Arabella Health Staffing Ltd
http://statistics.data.gov.uk/doc/local-authority/00DA,Leeds City Council as Accountable Body,Jcs For People With Learning Disabilitie,Jcs For People With Learning Disabilitie,Third Party Payments,Home Care,568,04/07/2011,1107-00422,597.08,R,Arabella Health Staffing Ltd
http://statistics.data.gov.uk/doc/local-authority/00DA,Leeds City Council as Accountable Body,Jcs For People With Learning Disabilitie,Jcs For People With Learning Disabilitie,Third Party Payments,Home Care,568,04/07/2011,1107-00423,880.48,R,Arabella Health Staffing Ltd
http://statistics.data.gov.uk/doc/local-authority/00DA,Leeds City Council as Accountable Body,Jcs For People With Learning Disabilitie,Jcs For People With Learning Disabilitie,Third Party Payments,Home Care,568,04/07/2011,1107-00424,659.17,R,Arabella Health Staffing Ltd
http://statistics.data.gov.uk/doc/local-authority/00DA,Leeds City Council as Accountable Body,Jcs For People With Learning Disabilitie,Jcs For People With Learning Disabilitie,Third Party Payments,Home Care,568,04/07/2011,1107-00425,601.50,R,Arabella Health Staffing Ltd
http://statistics.data.gov.uk/doc/local-authority/00DA,Leeds City Council as Accountable Body,Jcs For People With Learning Disabilitie,Jcs For People With Learning Disabilitie,Third Party Payments,Home Care,568,04/07/2011,1107-00426,529.52,R,Arabella Health Staffing Ltd
http://statistics.data.gov.uk/doc/local-authority/00DA,Leeds City Council as Accountable Body,Jcs For People With Learning Disabilitie,Jcs For People With Learning Disabilitie,Third Party Payments,Home Care,568,04/07/2011,1107-00427,461.78,R,Arabella Health Staffing Ltd
http://statistics.data.gov.uk/doc/local-authority/00DA,Leeds City Council as Accountable Body,Jcs For People With Learning Disabilitie,Jcs For People With Learning Disabilitie,Third Party Payments,Home Care,568,04/07/2011,1107-00428,1101.66,R,Arabella Health Staffing Ltd
http://statistics.data.gov.uk/doc/local-authority/00DA,Leeds City Council as Accountable Body,Jcs For People With Learning Disabilitie,Jcs For People With Learning Disabilitie,Third Party Payments,Home Care,568,04/07/2011,1107-00429,927.30,R,Arabella Health Staffing Ltd
http://statistics.data.gov.uk/doc/local-authority/00DA,Leeds City Council as Accountable Body,Jcs For People With Learning Disabilitie,Jcs For People With Learning Disabilitie,Third Party Payments,Home Care,568,04/07/2011,1107-00430,552.04,R,Arabella Health Staffing Ltd
http://statistics.data.gov.uk/doc/local-authority/00DA,Leeds City Council as Accountable Body,Jcs For People With Learning Disabilitie,Jcs For People With Learning Disabilitie,Third Party Payments,Home Care,568,07/07/2011,1107-00431,-761.12,R,Arabella Health Staffing Ltd
http://statistics.data.gov.uk/doc/local-authority/00DA,Leeds City Council as Accountable Body,Jcs For People With Learning Disabilitie,Jcs For People With Learning Disabilitie,Third Party Payments,Home Care,568,07/07/2011,1107-00432,552.04,R,Arabella Health Staffing Ltd
http://statistics.data.gov.uk/doc/local-authority/00DA,Leeds City Council as Accountable Body,Jcs For People With Learning Disabilitie,Jcs For People With Learning Disabilitie,Third Party Payments,Home Care,568,07/07/2011,1107-00433,417.00,R,Arabella Health Staffing Ltd
http://statistics.data.gov.uk/doc/local-authority/00DA,Leeds City Council as Accountable Body,Jcs For People With Learning Disabilitie,Jcs For People With Learning Disabilitie,Third Party Payments,Home Care,568,07/07/2011,1107-00434,1095.45,R,Arabella Health Staffing Ltd
http://statistics.data.gov.uk/doc/local-authority/00DA,Leeds City Council as Accountable Body,Jcs For People With Learning Disabilitie,Jcs For People With Learning Disabilitie,Third Party Payments,Home Care,568,07/07/2011,1107-00435,723.22,R,Arabella Health Staffing Ltd
http://statistics.data.gov.uk/doc/local-authority/00DA,Leeds City Council as Accountable Body,Jcs For People With Learning Disabilitie,Jcs For People With Learning Disabilitie,Third Party Payments,Home Care,568,07/07/2011,1107-00436,729.72,R,Arabella Health Staffing Ltd
http://statistics.data.gov.uk/doc/local-authority/00DA,Leeds City Council as Accountable Body,Jcs For People With Learning Disabilitie,Jcs For People With Learning Disabilitie,Third Party Payments,Home Care,568,07/07/2011,1107-00437,467.46,R,Arabella Health Staffing Ltd
http://statistics.data.gov.uk/doc/local-authority/00DA,Leeds City Council as Accountable Body,Jcs For People With Learning Disabilitie,Jcs For People With Learning Disabilitie,Third Party Payments,Home Care,568,07/07/2011,1107-00438,927.30,R,Arabella Health Staffing Ltd
http://statistics.data.gov.uk/doc/local-authority/00DA,Leeds City Council as Accountable Body,Jcs For People With Learning Disabilitie,Jcs For People With Learning Disabilitie,Third Party Payments,Home Care,568,07/07/2011,1107-00439,1020.05,R,Arabella Health Staffing Ltd
http://statistics.data.gov.uk/doc/local-authority/00DA,Leeds City Council as Accountable Body,Jcs For People With Learning Disabilitie,Jcs For People With Learning Disabilitie,Third Party Payments,Home Care,568,07/07/2011,1107-00440,749.75,R,Arabella Health Staffing Ltd
http://statistics.data.gov.uk/doc/local-authority/00DA,Leeds City Council as Accountable Body,Jcs For People With Learning Disabilitie,Jcs For People With Learning Disabilitie,Third Party Payments,Home Care,568,13/07/2011,1107-00441,1440.92,R,Arabella Health Staffing Ltd
http://statistics.data.gov.uk/doc/local-authority/00DA,Leeds City Council as Accountable Body,Jcs For People With Learning Disabilitie,Jcs For People With Learning Disabilitie,Third Party Payments,Home Care,568,13/07/2011,1107-00442,2122.46,R,Arabella Health Staffing Ltd
http://statistics.data.gov.uk/doc/local-authority/00DA,Leeds City Council as Accountable Body,Jcs For People With Learning Disabilitie,Jcs For People With Learning Disabilitie,Third Party Payments,Home Care,568,13/07/2011,1107-00443,830.50,R,Arabella Health Staffing Ltd
http://statistics.data.gov.uk/doc/local-authority/00DA,Leeds City Council as Accountable Body,Jcs For People With Learning Disabilitie,Jcs For People With Learning Disabilitie,Third Party Payments,Home Care,568,13/07/2011,1107-00444,552.04,R,Arabella Health Staffing Ltd
http://statistics.data.gov.uk/doc/local-authority/00DA,Leeds City Council as Accountable Body,Jcs For People With Learning Disabilitie,Jcs For People With Learning Disabilitie,Third Party Payments,Home Care,568,13/07/2011,1107-00445,468.56,R,Arabella Health Staffing Ltd
http://statistics.data.gov.uk/doc/local-authority/00DA,Leeds City Council as Accountable Body,Jcs For People With Learning Disabilitie,Jcs For People With Learning Disabilitie,Third Party Payments,Home Care,568,13/07/2011,1107-00446,540.86,R,Arabella Health Staffing Ltd
http://statistics.data.gov.uk/doc/local-authority/00DA,Leeds City Council as Accountable Body,Jcs For People With Learning Disabilitie,Jcs For People With Learning Disabilitie,Third Party Payments,Home Care,568,13/07/2011,1107-00447,1279.33,R,Arabella Health Staffing Ltd
http://statistics.data.gov.uk/doc/local-authority/00DA,Leeds City Council as Accountable Body,Jcs For People With Learning Disabilitie,Jcs For People With Learning Disabilitie,Third Party Payments,Home Care,568,13/07/2011,1107-00448,2386.06,R,Arabella Health Staffing Ltd
http://statistics.data.gov.uk/doc/local-authority/00DA,Leeds City Council as Accountable Body,Jcs For People With Learning Disabilitie,Jcs For People With Learning Disabilitie,Third Party Payments,Home Care,568,13/07/2011,1107-00449,829.96,R,Arabella Health Staffing Ltd
http://statistics.data.gov.uk/doc/local-authority/00DA,Leeds City Council as Accountable Body,Jcs For People With Learning Disabilitie,Jcs For People With Learning Disabilitie,Third Party Payments,Home Care,568,13/07/2011,1107-00450,552.04,R,Arabella Health Staffing Ltd
http://statistics.data.gov.uk/doc/local-authority/00DA,Leeds City Council as Accountable Body,Jcs For People With Learning Disabilitie,Jcs For People With Learning Disabilitie,Third Party Payments,Home Care,568,13/07/2011,1107-00451,749.75,R,Arabella Health Staffing Ltd
http://statistics.data.gov.uk/doc/local-authority/00DA,Leeds City Council as Accountable Body,Jcs For People With Learning Disabilitie,Jcs For People With Learning Disabilitie,Third Party Payments,Home Care,568,21/07/2011,1107-00452,552.04,R,Arabella Health Staffing Ltd
http://statistics.data.gov.uk/doc/local-authority/00DA,Leeds City Council as Accountable Body,Jcs For People With Learning Disabilitie,Jcs For People With Learning Disabilitie,Third Party Payments,Home Care,568,21/07/2011,1107-00453,1697.44,R,Arabella Health Staffing Ltd
http://statistics.data.gov.uk/doc/local-authority/00DA,Leeds City Council as Accountable Body,Jcs For People With Learning Disabilitie,Jcs For People With Learning Disabilitie,Third Party Payments,Home Care,568,21/07/2011,1107-00454,641.90,R,Arabella Health Staffing Ltd
http://statistics.data.gov.uk/doc/local-authority/00DA,Leeds City Council as Accountable Body,Jcs For People With Learning Disabilitie,Jcs For People With Learning Disabilitie,Third Party Payments,Home Care,568,21/07/2011,1107-00455,1408.30,R,Arabella Health Staffing Ltd
http://statistics.data.gov.uk/doc/local-authority/00DA,Leeds City Council as Accountable Body,Jcs For People With Learning Disabilitie,Jcs For People With Learning Disabilitie,Third Party Payments,Home Care,568,21/07/2011,1107-00456,934.70,R,Arabella Health Staffing Ltd
http://statistics.data.gov.uk/doc/local-authority/00DA,Leeds City Council as Accountable Body,Jcs For People With Learning Disabilitie,Jcs For People With Learning Disabilitie,Third Party Payments,Home Care,568,21/07/2011,1107-00457,633.20,R,Arabella Health Staffing Ltd
http://statistics.data.gov.uk/doc/local-authority/00DA,Leeds City Council as Accountable Body,Jcs For People With Learning Disabilitie,Jcs For People With Learning Disabilitie,Third Party Payments,Home Care,568,22/07/2011,1107-00458,749.75,R,Arabella Health Staffing Ltd
http://statistics.data.gov.uk/doc/local-authority/00DA,Leeds City Council as Accountable Body,Jcs For People With Learning Disabilitie,Jcs For People With Learning Disabilitie,Third Party Payments,Home Care,568,28/07/2011,1107-00459,907.68,R,Arabella Health Staffing Ltd
http://statistics.data.gov.uk/doc/local-authority/00DA,Leeds City Council as Accountable Body,Jcs For People With Learning Disabilitie,Jcs For People With Learning Disabilitie,Third Party Payments,Home Care,568,28/07/2011,1107-00460,1114.83,R,Arabella Health Staffing Ltd
http://statistics.data.gov.uk/doc/local-authority/00DA,Leeds City Council as Accountable Body,Jcs For People With Learning Disabilitie,Jcs For People With Learning Disabilitie,Third Party Payments,Home Care,568,28/07/2011,1107-00461,599.27,R,Arabella Health Staffing Ltd
http://statistics.data.gov.uk/doc/local-authority/00DA,Leeds City Council as Accountable Body,Jcs For People With Learning Disabilitie,Jcs For People With Learning Disabilitie,Third Party Payments,Home Care,568,28/07/2011,1107-00462,511.19,R,Arabella Health Staffing Ltd
http://statistics.data.gov.uk/doc/local-authority/00DA,Leeds City Council as Accountable Body,Jcs For People With Learning Disabilitie,Jcs For People With Learning Disabilitie,Third Party Payments,Home Care,568,28/07/2011,1107-00463,604.69,R,Arabella Health Staffing Ltd
http://statistics.data.gov.uk/doc/local-authority/00DA,Leeds City Council as Accountable Body,Jcs For People With Learning Disabilitie,Jcs For People With Learning Disabilitie,Third Party Payments,Home Care,568,28/07/2011,1107-00464,488.98,R,Arabella Health Staffing Ltd
http://statistics.data.gov.uk/doc/local-authority/00DA,Leeds City Council as Accountable Body,Jcs For People With Learning Disabilitie,Jcs For People With Learning Disabilitie,Third Party Payments,Home Care,568,28/07/2011,1107-00465,1760.52,R,Arabella Health Staffing Ltd
http://statistics.data.gov.uk/doc/local-authority/00DA,Leeds City Council as Accountable Body,Jcs For People With Learning Disabilitie,Jcs For People With Learning Disabilitie,Third Party Payments,Home Care,568,28/07/2011,1107-00466,481.08,R,Arabella Health Staffing Ltd
http://statistics.data.gov.uk/doc/local-authority/00DA,Leeds City Council,Central & Corporate Functions,Executive Support,Supplies and Services,Other Hired And Contracted Services,265,07/07/2011,1107-00467,430.42,R,Arcadiahost Limited
http://statistics.data.gov.uk/doc/local-authority/00DA,Leeds City Council,Central & Corporate Functions,Commercial Services Trading Services,Supplies and Services,Other Hired And Contracted Services,265,19/07/2011,1107-00468,469.19,R,Archbold Carshop Ltd
http://statistics.data.gov.uk/doc/local-authority/00DA,Leeds City Council,Environment & Neighbourhoods,Regeneration Management,Supplies and Services,Non-Recurring Grants,227,13/07/2011,1107-00469,-1019.00,R,Archway
http://statistics.data.gov.uk/doc/local-authority/00DA,Leeds City Council,Environment & Neighbourhoods,Strategy & Commissioning,Supplies and Services,Non-Recurring Grants,227,13/07/2011,1107-00470,47131.00,R,Archway
http://statistics.data.gov.uk/doc/local-authority/00DA,Leeds City Council,Environment & Neighbourhoods,Strategy & Commissioning,Supplies and Services,Non-Recurring Grants,227,25/07/2011,1107-00471,54680.00,R,Archway
http://statistics.data.gov.uk/doc/local-authority/00DA,Leeds City Council,Environment & Neighbourhoods,Streetscene Environmental Services,Supplies and Services,Clothing & Uniforms,241,15/07/2011,1107-00472,2340.00,R,Arco Ltd
http://statistics.data.gov.uk/doc/local-authority/00DA,East - North East,East - North East,Construction Services,Supplies and Services,Other Materials,205,18/07/2011,1107-00473,471.80,R,Arco Ltd
http://statistics.data.gov.uk/doc/local-authority/00DA,East - North East,East - North East,Construction Services,Supplies and Services,Other Materials,205,21/07/2011,1107-00474,424.64,R,Arco Ltd
http://statistics.data.gov.uk/doc/local-authority/00DA,Leeds City Council,Adult Social Care,Services For Adults Under 65 Mental/Dis,Supplies and Services,Operational Furniture And Equipment,203,01/07/2011,1107-00475,505.32,R,Argos Distributors Ltd
http://statistics.data.gov.uk/doc/local-authority/00DA,Leeds City Council,Environment & Neighbourhoods,Environmental Health,Supplies and Services,Other Hired And Contracted Services,265,01/07/2011,1107-00476,735.20,R,Ari Environmental Services Ltd
http://statistics.data.gov.uk/doc/local-authority/00DA,Leeds City Council,Environment & Neighbourhoods,Environmental Health,Supplies and Services,Other Hired And Contracted Services,265,14/07/2011,1107-00477,873.05,R,Ari Environmental Services Ltd
http://statistics.data.gov.uk/doc/local-authority/00DA,Leeds City Council,Environment & Neighbourhoods,Environmental Health,Supplies and Services,Other Hired And Contracted Services,265,22/07/2011,1107-00478,735.20,R,Ari Environmental Services Ltd
http://statistics.data.gov.uk/doc/local-authority/00DA,Leeds City Council,City Development,Highways,Transport,Plant Hire - By Directorate,305,11/07/2011,1107-00479,4045.00,R,Armcon Limited
http://statistics.data.gov.uk/doc/local-authority/00DA,Leeds City Council,Adult Social Care,Services For Older People - 65 And Over,Third Party Payments,Payments To Voluntary Organisations,561,01/07/2011,1107-00480,22646.00,R,Armley Helping Hands
http://statistics.data.gov.uk/doc/local-authority/00DA,Leeds City Council,Childrens Services,Integrated Youth Support Service,Third Party Payments,Services Rendered By Voluntary Sector,505,18/07/2011,1107-00481,4070.00,R,Armley Juniors
http://statistics.data.gov.uk/doc/local-authority/00DA,Leeds City Council,Childrens Services,Integrated Youth Support Service,Third Party Payments,Services Rendered By Voluntary Sector,505,18/07/2011,1107-00482,7126.00,R,Armley Juniors
http://statistics.data.gov.uk/doc/local-authority/00DA,Leeds City Council,Environment & Neighbourhoods,Streetscene Environmental Services,Supplies and Services,Operational Furniture And Equipment,203,28/07/2011,1107-00483,1400.00,R,Armstrong Priestley Ltd
http://statistics.data.gov.uk/doc/local-authority/00DA,East - North East,East - North East,Construction Services,Supplies and Services,Other Materials,205,01/07/2011,1107-00484,457.12,R,Arnold Laver & Co Ltd
http://statistics.data.gov.uk/doc/local-authority/00DA,East - North East,East - North East,Construction Services,Supplies and Services,Other Materials,205,13/07/2011,1107-00485,886.08,R,Arnold Laver & Co Ltd
http://statistics.data.gov.uk/doc/local-authority/00DA,East - North East,East - North East,Construction Services,Supplies and Services,Other Materials,205,15/07/2011,1107-00486,1262.14,R,Arnold Laver & Co Ltd
http://statistics.data.gov.uk/doc/local-authority/00DA,Leeds City Council,City Development,Libraries  Arts & Heritage,Supplies and Services,Operational Materials,205,21/07/2011,1107-00487,1271.36,R,Arnold Laver & Co Ltd
http://statistics.data.gov.uk/doc/local-authority/00DA,East - North East,East - North East,Construction Services,Supplies and Services,Other Materials,205,22/07/2011,1107-00488,452.76,R,Arnold Laver & Co Ltd
http://statistics.data.gov.uk/doc/local-authority/00DA,East - North East,East - North East,Construction Services,Supplies and Services,Other Materials,205,22/07/2011,1107-00489,844.59,R,Arnold Laver & Co Ltd
http://statistics.data.gov.uk/doc/local-authority/00DA,East - North East,East - North East,Construction Services,Supplies and Services,Other Materials,205,29/07/2011,1107-00490,654.60,R,Arnold Laver & Co Ltd
http://statistics.data.gov.uk/doc/local-authority/00DA,Leeds City Council,City Development,Highways,Supplies and Services,Operational Materials,205,29/07/2011,1107-00491,471.10,R,Arnold Laver & Co Ltd
http://statistics.data.gov.uk/doc/local-authority/00DA,East - North East,East - North East,Technical Services,Supplies and Services,Other Hired And Contracted Services,265,05/07/2011,1107-00492,2750.00,R,Arr Spend Management Solutions
http://statistics.data.gov.uk/doc/local-authority/00DA,East - North East,East - North East,Technical Services,Supplies and Services,Other Hired And Contracted Services,265,26/07/2011,1107-00493,4950.00,R,Arr Spend Management Solutions
http://statistics.data.gov.uk/doc/local-authority/00DA,East - North East,East - North East,Technical Services,Supplies and Services,Other Hired And Contracted Services,265,28/07/2011,1107-00494,4675.00,R,Arr Spend Management Solutions
http://statistics.data.gov.uk/doc/local-authority/00DA,Leeds City Council,Adult Social Care,Services For Older People - 65 And Over,Third Party Payments,Nursing Home,570,07/07/2011,1107-00495,1344.20,R,Arrigadeen Nursing Home
http://statistics.data.gov.uk/doc/local-authority/00DA,Leeds City Council,Childrens Services,Director Of Childrens Services,Supplies and Services,Consultancy Services,259,13/07/2011,1107-00496,3905.90,R,Arrow Social Care Consultancy Limited
http://statistics.data.gov.uk/doc/local-authority/00DA,Leeds City Council,Childrens Services,Director Of Childrens Services,Supplies and Services,Consultancy Services,259,13/07/2011,1107-00497,969.80,R,Arrow Social Care Consultancy Limited
http://statistics.data.gov.uk/doc/local-authority/00DA,Leeds City Council,Adult Social Care,Services For Adults Under 65 Learn/Dis,Supplies and Services,Non-Recurring Grants,227,07/07/2011,1107-00498,5000.00,R,Articulate Advocacy
http://statistics.data.gov.uk/doc/local-authority/00DA,Leeds City Council,City Development,Libraries  Arts & Heritage,Supplies and Services,Computer Software & Equipment,214,06/07/2011,1107-00499,7136.70,R,Artifax Software Ltd
http://statistics.data.gov.uk/doc/local-authority/00DA,Leeds City Council,City Development,Libraries  Arts & Heritage,Supplies and Services,Non-Recurring Grants,227,04/07/2011,1107-00500,1800.00,R,Arts And Minds Network
http://statistics.data.gov.uk/doc/local-authority/00DA,Leeds City Council,City Development,Libraries  Arts & Heritage,Employees,Central Training,079,08/07/2011,1107-00501,423.00,R,Arts Marketing Association
http://statistics.data.gov.uk/doc/local-authority/00DA,Leeds City Council,Other Education Services,Active Accounts,Transport,Fuel (Non LCC Supplies),321,07/07/2011,1107-00502,2509.78,R,Arval Phh Business Solutions Ltd
http://statistics.data.gov.uk/doc/local-authority/00DA,Leeds City Council,City Development,Highways,Transport,Fuel (Non LCC Supplies),321,07/07/2011,1107-00503,525.39,R,Arval Phh Business Solutions Ltd
http://statistics.data.gov.uk/doc/local-authority/00DA,Leeds City Council,City Development,Recreation,Supplies and Services,Resaleable Materials,204,29/07/2011,1107-00504,2352.50,R,Asa Awards Scheme
http://statistics.data.gov.uk/doc/local-authority/00DA,Leeds City Council,Central & Corporate Functions,Commercial Services Trading Services,Supplies and Services,Operational Materials,205,01/07/2011,1107-00505,525.00,R,Asbestos Equipment & Supplies Ltd
http://statistics.data.gov.uk/doc/local-authority/00DA,Leeds City Council,Central & Corporate Functions,Commercial Services Trading Services,Supplies and Services,Other Hired And Contracted Services,265,08/07/2011,1107-00506,592.50,R,Asbestos Sample Analysis Limited
http://statistics.data.gov.uk/doc/local-authority/00DA,Leeds City Council,Central & Corporate Functions,Commercial Services Trading Services,Supplies and Services,Other Hired And Contracted Services,265,15/07/2011,1107-00507,442.50,R,Asbestos Sample Analysis Limited
http://statistics.data.gov.uk/doc/local-authority/00DA,Leeds City Council,Central & Corporate Functions,Commercial Services Trading Services,Supplies and Services,Other Hired And Contracted Services,265,29/07/2011,1107-00508,442.50,R,Asbestos Sample Analysis Limited
http://statistics.data.gov.uk/doc/local-authority/00DA,Leeds City Council,Central & Corporate Functions,Support And Facilities Trading Services,Supplies and Services,Operational Materials,205,06/07/2011,1107-00509,2610.00,R,Asd Metal Services
http://statistics.data.gov.uk/doc/local-authority/00DA,Leeds City Council,Adult Social Care,Services For Older People - 65 And Over,Third Party Payments,Residential,580,06/07/2011,1107-00510,11299.78,R,Ashcroft House Residential Home
http://statistics.data.gov.uk/doc/local-authority/00DA,Leeds City Council,Adult Social Care,Services For Older People - 65 And Over,Third Party Payments,Nursing Home,570,06/07/2011,1107-00511,3753.12,R,Ashcroft Nursing Home
http://statistics.data.gov.uk/doc/local-authority/00DA,Leeds City Council,Adult Social Care,Services For Older People - 65 And Over,Third Party Payments,Nursing Home,570,06/07/2011,1107-00512,1209.96,R,Ashcroft Nursing Home
http://statistics.data.gov.uk/doc/local-authority/00DA,Leeds City Council,Adult Social Care,Services For Older People - 65 And Over,Third Party Payments,Residential Care Emi,571,06/07/2011,1107-00513,782.16,R,Ashcroft Nursing Home
http://statistics.data.gov.uk/doc/local-authority/00DA,Leeds City Council,City Development,Recreation,Supplies and Services,Operational Furniture And Equipment,203,21/07/2011,1107-00514,1128.00,R,Ashdown Supplies
http://statistics.data.gov.uk/doc/local-authority/00DA,Leeds City Council,Adult Social Care,Services For Older People - 65 And Over,Third Party Payments,Residential Care Emi,571,06/07/2011,1107-00515,660.48,R,Ashfield Court
http://statistics.data.gov.uk/doc/local-authority/00DA,Leeds City Council,Adult Social Care,Services For Older People - 65 And Over,Third Party Payments,Residential,580,06/07/2011,1107-00516,587.88,R,Ashfield Court
http://statistics.data.gov.uk/doc/local-authority/00DA,Leeds City Council,Adult Social Care,Services For Older People - 65 And Over,Third Party Payments,Nursing Home,570,06/07/2011,1107-00517,27842.16,R,Ashfield Nursing Home
http://statistics.data.gov.uk/doc/local-authority/00DA,Leeds City Council,Adult Social Care,Services For Older People - 65 And Over,Third Party Payments,Residential,580,06/07/2011,1107-00518,2697.88,R,Ashfield Nursing Home
http://statistics.data.gov.uk/doc/local-authority/00DA,Leeds City Council,Adult Social Care,Services For Adults Under 65 Mental/Dis,Third Party Payments,Residential,580,06/07/2011,1107-00519,2318.40,R,Ashfield Nursing Home
http://statistics.data.gov.uk/doc/local-authority/00DA,Leeds City Council,Adult Social Care,Services For Older People - 65 And Over,Third Party Payments,Nursing Home,570,06/07/2011,1107-00520,1504.00,R,Ashley Care Ltd
http://statistics.data.gov.uk/doc/local-authority/00DA,Leeds City Council,City Development,Recreation,Capital,Construction,3,06/07/2011,1107-00521,1546.75,C,Ashtead Plant Hire Company Ltd
http://statistics.data.gov.uk/doc/local-authority/00DA,Leeds City Council,Central & Corporate Functions,Commercial Services Trading Services,Supplies and Services,Other Hired And Contracted Services,265,06/07/2011,1107-00522,603.40,R,Ashtead Plant Hire Company Ltd
http://statistics.data.gov.uk/doc/local-authority/00DA,Leeds City Council,City Development,Recreation,Transport,Hire Of Movable Plant & Machinery,315,06/07/2011,1107-00523,487.14,R,Ashtead Plant Hire Company Ltd
http://statistics.data.gov.uk/doc/local-authority/00DA,Leeds City Council,City Development,Highways,Transport,Plant Hire - By Directorate,305,06/07/2011,1107-00524,726.00,R,Ashtead Plant Hire Company Ltd
http://statistics.data.gov.uk/doc/local-authority/00DA,Leeds City Council,City Development,Highways,Transport,Plant Hire - By Directorate,305,06/07/2011,1107-00525,726.00,R,Ashtead Plant Hire Company Ltd
http://statistics.data.gov.uk/doc/local-authority/00DA,Leeds City Council,City Development,Highways,Transport,Plant Hire - By Directorate,305,06/07/2011,1107-00526,726.00,R,Ashtead Plant Hire Company Ltd
http://statistics.data.gov.uk/doc/local-authority/00DA,Leeds City Council,City Development,Highways,Transport,Plant Hire - By Directorate,305,06/07/2011,1107-00527,599.20,R,Ashtead Plant Hire Company Ltd
http://statistics.data.gov.uk/doc/local-authority/00DA,Leeds City Council,Central & Corporate Functions,Commercial Services Trading Services,Supplies and Services,Other Hired And Contracted Services,265,27/07/2011,1107-00528,-926.00,R,Ashtead Plant Hire Company Ltd
http://statistics.data.gov.uk/doc/local-authority/00DA,Leeds City Council,City Development,Recreation,Transport,Hire Of Movable Plant & Machinery,315,27/07/2011,1107-00529,756.64,R,Ashtead Plant Hire Company Ltd
http://statistics.data.gov.uk/doc/local-authority/00DA,Leeds City Council,Adult Social Care,Services For Older People - 65 And Over,Third Party Payments,Residential Care Emi,571,06/07/2011,1107-00530,840.32,R,Ashville Care Home
http://statistics.data.gov.uk/doc/local-authority/00DA,Leeds City Council,Adult Social Care,Services For Older People - 65 And Over,Third Party Payments,Residential,580,07/07/2011,1107-00531,1121.92,R,Ashworth Grange
http://statistics.data.gov.uk/doc/local-authority/00DA,Leeds City Council,City Development,Libraries  Arts & Heritage,Supplies and Services,Books & Audio-Visual Materials,206,05/07/2011,1107-00532,1492.26,R,Askews & Holts
http://statistics.data.gov.uk/doc/local-authority/00DA,Leeds City Council,City Development,Libraries  Arts & Heritage,Supplies and Services,Books & Audio-Visual Materials,206,05/07/2011,1107-00533,549.97,R,Askews & Holts
http://statistics.data.gov.uk/doc/local-authority/00DA,Leeds City Council,City Development,Libraries  Arts & Heritage,Supplies and Services,Books & Audio-Visual Materials,206,05/07/2011,1107-00534,4971.16,R,Askews & Holts
http://statistics.data.gov.uk/doc/local-authority/00DA,Leeds City Council,City Development,Libraries  Arts & Heritage,Supplies and Services,Books & Audio-Visual Materials,206,05/07/2011,1107-00535,3976.24,R,Askews & Holts
http://statistics.data.gov.uk/doc/local-authority/00DA,Leeds City Council,City Development,Libraries  Arts & Heritage,Supplies and Services,Books & Audio-Visual Materials,206,05/07/2011,1107-00536,2987.84,R,Askews & Holts
http://statistics.data.gov.uk/doc/local-authority/00DA,Leeds City Council,City Development,Libraries  Arts & Heritage,Supplies and Services,Books & Audio-Visual Materials,206,05/07/2011,1107-00537,753.25,R,Askews & Holts
http://statistics.data.gov.uk/doc/local-authority/00DA,Leeds City Council,City Development,Libraries  Arts & Heritage,Supplies and Services,Books & Audio-Visual Materials,206,12/07/2011,1107-00538,614.13,R,Askews & Holts
http://statistics.data.gov.uk/doc/local-authority/00DA,Leeds City Council,City Development,Libraries  Arts & Heritage,Supplies and Services,Books & Audio-Visual Materials,206,12/07/2011,1107-00539,4872.58,R,Askews & Holts
http://statistics.data.gov.uk/doc/local-authority/00DA,Leeds City Council,City Development,Libraries  Arts & Heritage,Supplies and Services,Books & Audio-Visual Materials,206,12/07/2011,1107-00540,3577.04,R,Askews & Holts
http://statistics.data.gov.uk/doc/local-authority/00DA,Leeds City Council,City Development,Libraries  Arts & Heritage,Supplies and Services,Books & Audio-Visual Materials,206,12/07/2011,1107-00541,2177.34,R,Askews & Holts
http://statistics.data.gov.uk/doc/local-authority/00DA,Leeds City Council,City Development,Libraries  Arts & Heritage,Supplies and Services,Books & Audio-Visual Materials,206,19/07/2011,1107-00542,628.58,R,Askews & Holts
http://statistics.data.gov.uk/doc/local-authority/00DA,Leeds City Council,City Development,Libraries  Arts & Heritage,Supplies and Services,Books & Audio-Visual Materials,206,19/07/2011,1107-00543,1070.22,R,Askews & Holts
http://statistics.data.gov.uk/doc/local-authority/00DA,Leeds City Council,City Development,Libraries  Arts & Heritage,Supplies and Services,Books & Audio-Visual Materials,206,19/07/2011,1107-00544,5351.09,R,Askews & Holts
http://statistics.data.gov.uk/doc/local-authority/00DA,Leeds City Council,City Development,Libraries  Arts & Heritage,Supplies and Services,Books & Audio-Visual Materials,206,19/07/2011,1107-00545,3906.21,R,Askews & Holts
http://statistics.data.gov.uk/doc/local-authority/00DA,Leeds City Council,City Development,Libraries  Arts & Heritage,Supplies and Services,Books & Audio-Visual Materials,206,19/07/2011,1107-00546,1616.28,R,Askews & Holts
http://statistics.data.gov.uk/doc/local-authority/00DA,Leeds City Council,City Development,Libraries  Arts & Heritage,Supplies and Services,Books & Audio-Visual Materials,206,19/07/2011,1107-00547,652.08,R,Askews & Holts
http://statistics.data.gov.uk/doc/local-authority/00DA,Leeds City Council,City Development,Libraries  Arts & Heritage,Supplies and Services,Books & Audio-Visual Materials,206,25/07/2011,1107-00548,676.22,R,Askews & Holts
http://statistics.data.gov.uk/doc/local-authority/00DA,Leeds City Council,City Development,Libraries  Arts & Heritage,Supplies and Services,Books & Audio-Visual Materials,206,25/07/2011,1107-00549,1104.16,R,Askews & Holts
http://statistics.data.gov.uk/doc/local-authority/00DA,Leeds City Council,City Development,Libraries  Arts & Heritage,Supplies and Services,Books & Audio-Visual Materials,206,25/07/2011,1107-00550,3037.08,R,Askews & Holts
http://statistics.data.gov.uk/doc/local-authority/00DA,Leeds City Council,City Development,Libraries  Arts & Heritage,Supplies and Services,Books & Audio-Visual Materials,206,25/07/2011,1107-00551,2376.61,R,Askews & Holts
http://statistics.data.gov.uk/doc/local-authority/00DA,Leeds City Council,City Development,Libraries  Arts & Heritage,Supplies and Services,Books & Audio-Visual Materials,206,27/07/2011,1107-00552,658.72,R,Askews & Holts
http://statistics.data.gov.uk/doc/local-authority/00DA,West - North West,West - North West,Corporate Services,Employees,General Training,079,12/07/2011,1107-00553,5675.00,R,Askham Bryan College
http://statistics.data.gov.uk/doc/local-authority/00DA,Leeds City Council,Other Education Services,Active Accounts,Premises,Maintenance Of Buildings,101,20/07/2011,1107-00554,902.67,R,Aspect Building Solutions
http://statistics.data.gov.uk/doc/local-authority/00DA,Leeds City Council,Other Education Services,Active Accounts,Premises,Maintenance Of Buildings,101,29/07/2011,1107-00555,664.35,R,Aspect Building Solutions
http://statistics.data.gov.uk/doc/local-authority/00DA,Leeds City Council,City Development,Highways,Transport,Plant Hire - By Directorate,305,01/07/2011,1107-00556,2041.00,R,Asphalt Pavers
http://statistics.data.gov.uk/doc/local-authority/00DA,Leeds City Council,City Development,Highways,Transport,Plant Hire - By Directorate,305,01/07/2011,1107-00557,790.00,R,Asphalt Pavers
http://statistics.data.gov.uk/doc/local-authority/00DA,Leeds City Council,City Development,Highways,Transport,Plant Hire - By Directorate,305,01/07/2011,1107-00558,3012.00,R,Asphalt Pavers
http://statistics.data.gov.uk/doc/local-authority/00DA,Leeds City Council,City Development,Highways,Transport,Plant Hire - By Directorate,305,01/07/2011,1107-00559,1081.00,R,Asphalt Pavers
http://statistics.data.gov.uk/doc/local-authority/00DA,Leeds City Council,City Development,Highways,Transport,Plant Hire - By Directorate,305,01/07/2011,1107-00560,790.00,R,Asphalt Pavers
http://statistics.data.gov.uk/doc/local-authority/00DA,Leeds City Council,City Development,Highways,Transport,Plant Hire - By Directorate,305,06/07/2011,1107-00561,650.00,R,Asphalt Pavers
http://statistics.data.gov.uk/doc/local-authority/00DA,Leeds City Council,City Development,Highways,Transport,Plant Hire - By Directorate,305,06/07/2011,1107-00562,1915.00,R,Asphalt Pavers
http://statistics.data.gov.uk/doc/local-authority/00DA,Leeds City Council,City Development,Highways,Transport,Plant Hire - By Directorate,305,06/07/2011,1107-00563,790.00,R,Asphalt Pavers
http://statistics.data.gov.uk/doc/local-authority/00DA,Leeds City Council,City Development,Highways,Transport,Plant Hire - By Directorate,305,15/07/2011,1107-00564,790.00,R,Asphalt Pavers
http://statistics.data.gov.uk/doc/local-authority/00DA,Leeds City Council,City Development,Highways,Transport,Plant Hire - By Directorate,305,28/07/2011,1107-00565,1531.00,R,Asphalt Pavers
http://statistics.data.gov.uk/doc/local-authority/00DA,Leeds City Council,City Development,Highways,Transport,Plant Hire - By Directorate,305,28/07/2011,1107-00566,1931.00,R,Asphalt Pavers
http://statistics.data.gov.uk/doc/local-authority/00DA,Leeds City Council,City Development,Highways,Transport,Plant Hire - By Directorate,305,28/07/2011,1107-00567,1021.00,R,Asphalt Pavers
http://statistics.data.gov.uk/doc/local-authority/00DA,Leeds City Council,City Development,Highways,Transport,Plant Hire - By Directorate,305,29/07/2011,1107-00568,1531.00,R,Asphalt Pavers
http://statistics.data.gov.uk/doc/local-authority/00DA,Leeds City Council,Environment & Neighbourhoods,East North East,Capital,Construction,3,12/07/2011,1107-00569,2500.00,C,Asprey Bros Ltd
http://statistics.data.gov.uk/doc/local-authority/00DA,Leeds City Council,Environment & Neighbourhoods,Environmental Health,Capital,Construction,3,20/07/2011,1107-00570,13400.00,C,Asprey Bros Ltd
http://statistics.data.gov.uk/doc/local-authority/00DA,Leeds City Council,Environment & Neighbourhoods,Environmental Health,Capital,Construction,3,20/07/2011,1107-00571,10750.00,C,Asprey Bros Ltd
http://statistics.data.gov.uk/doc/local-authority/00DA,Leeds City Council,Environment & Neighbourhoods,East North East,Capital,Construction,3,28/07/2011,1107-00572,8660.00,C,Asprey Bros Ltd
http://statistics.data.gov.uk/doc/local-authority/00DA,Leeds City Council,Environment & Neighbourhoods,East North East,Capital,Construction,3,28/07/2011,1107-00573,3200.00,C,Asprey Bros Ltd
http://statistics.data.gov.uk/doc/local-authority/00DA,Leeds City Council,Childrens Services,Early Years Service,Third Party Payments,Services Rendered By Other Organisations,511,14/07/2011,1107-00574,9752.97,R,Asquith Court Nursery
http://statistics.data.gov.uk/doc/local-authority/00DA,Leeds City Council,Childrens Services,Early Years Service,Third Party Payments,Services Rendered By Other Organisations,511,14/07/2011,1107-00575,2260.35,R,Asquith Nurseries Ltd
http://statistics.data.gov.uk/doc/local-authority/00DA,Leeds City Council,Central & Corporate Functions,Commercial Services Trading Services,Premises,Removal of workplace waste,126,29/06/2011,1107-00576,2037.00,R,Associated Waste Management
http://statistics.data.gov.uk/doc/local-authority/00DA,Leeds City Council,City Development,Recreation,Premises,Removal Of Workplace Waste,126,01/07/2011,1107-00577,435.26,R,Associated Waste Management Limited
http://statistics.data.gov.uk/doc/local-authority/00DA,Leeds City Council,Environment & Neighbourhoods,Streetscene Environmental Services,Supplies and Services,Recycling & Reuse Charges,234,07/07/2011,1107-00578,5664.53,R,Associated Waste Management Limited
http://statistics.data.gov.uk/doc/local-authority/00DA,Leeds City Council,Environment & Neighbourhoods,Streetscene Environmental Services,Supplies and Services,Waste Disposal Charges,236,07/07/2011,1107-00579,10519.87,R,Associated Waste Management Limited
http://statistics.data.gov.uk/doc/local-authority/00DA,Leeds City Council,Environment & Neighbourhoods,Streetscene Environmental Services,Supplies and Services,Waste Disposal Charges,236,07/07/2011,1107-00580,19768.84,R,Associated Waste Management Limited
http://statistics.data.gov.uk/doc/local-authority/00DA,Leeds City Council,City Development,Recreation,Premises,Removal Of Workplace Waste,126,08/07/2011,1107-00581,522.00,R,Associated Waste Management Limited
http://statistics.data.gov.uk/doc/local-authority/00DA,Leeds City Council,City Development,Recreation,Premises,Removal Of Workplace Waste,126,08/07/2011,1107-00582,662.54,R,Associated Waste Management Limited
http://statistics.data.gov.uk/doc/local-authority/00DA,Leeds City Council,City Development,Recreation,Premises,Removal Of Workplace Waste,126,15/07/2011,1107-00583,527.66,R,Associated Waste Management Limited
http://statistics.data.gov.uk/doc/local-authority/00DA,Leeds City Council,Environment & Neighbourhoods,Streetscene Environmental Services,Supplies and Services,Recycling & Reuse Charges,234,18/07/2011,1107-00584,7127.65,R,Associated Waste Management Limited
http://statistics.data.gov.uk/doc/local-authority/00DA,Leeds City Council,Environment & Neighbourhoods,Streetscene Environmental Services,Supplies and Services,Waste Disposal Charges,236,18/07/2011,1107-00585,13237.11,R,Associated Waste Management Limited
http://statistics.data.gov.uk/doc/local-authority/00DA,Leeds City Council,Environment & Neighbourhoods,Streetscene Environmental Services,Supplies and Services,Waste Disposal Charges,236,18/07/2011,1107-00586,24875.03,R,Associated Waste Management Limited
http://statistics.data.gov.uk/doc/local-authority/00DA,Leeds City Council,City Development,Support Services,Premises,Removal Of Workplace Waste,126,19/07/2011,1107-00587,6264.37,R,Associated Waste Management Limited
http://statistics.data.gov.uk/doc/local-authority/00DA,Leeds City Council,Environment & Neighbourhoods,Streetscene Environmental Services,Supplies and Services,Recycling & Reuse Charges,234,25/07/2011,1107-00588,6787.02,R,Associated Waste Management Limited
http://statistics.data.gov.uk/doc/local-authority/00DA,Leeds City Council,Environment & Neighbourhoods,Streetscene Environmental Services,Supplies and Services,Waste Disposal Charges,236,25/07/2011,1107-00589,12604.40,R,Associated Waste Management Limited
http://statistics.data.gov.uk/doc/local-authority/00DA,Leeds City Council,Environment & Neighbourhoods,Streetscene Environmental Services,Supplies and Services,Waste Disposal Charges,236,25/07/2011,1107-00590,23686.21,R,Associated Waste Management Limited
http://statistics.data.gov.uk/doc/local-authority/00DA,Leeds City Council,Environment & Neighbourhoods,Streetscene Environmental Services,Supplies and Services,Recycling & Reuse Charges,234,26/07/2011,1107-00591,6218.58,R,Associated Waste Management Limited
http://statistics.data.gov.uk/doc/local-authority/00DA,Leeds City Council,Environment & Neighbourhoods,Streetscene Environmental Services,Supplies and Services,Waste Disposal Charges,236,26/07/2011,1107-00592,11548.79,R,Associated Waste Management Limited
http://statistics.data.gov.uk/doc/local-authority/00DA,Leeds City Council,Environment & Neighbourhoods,Streetscene Environmental Services,Supplies and Services,Waste Disposal Charges,236,26/07/2011,1107-00593,21702.41,R,Associated Waste Management Limited
http://statistics.data.gov.uk/doc/local-authority/00DA,Leeds City Council,Adult Social Care,Social Services Support Services,Third Party Payments,Payments To Voluntary Organisations,561,01/07/2011,1107-00594,7387.00,R,Association Of Blind Asians
http://statistics.data.gov.uk/doc/local-authority/00DA,Leeds City Council,Central & Corporate Functions,Corporate Governance,Employees,Tuition & Course Fees,073,21/07/2011,1107-00595,536.66,R,Association Of Electoral Administrators
http://statistics.data.gov.uk/doc/local-authority/00DA,Leeds City Council,City Development,Economic Development,Supplies and Services,Conference Meetings,253,22/07/2011,1107-00596,425.00,R,Association Of Town Centre Management
http://statistics.data.gov.uk/doc/local-authority/00DA,East - North East,East - North East,Technical Services,Premises,H.R.A. - Special Maintenance,106,01/07/2011,1107-00597,1197.00,R,Astor Bannerman Medical Ltd
http://statistics.data.gov.uk/doc/local-authority/00DA,Leeds City Council as Accountable Body,Leeds Community Equip Store Pooled Budgt,Leeds Community Equip Store Pooled Budgt,Supplies and Services,Other Equipment,203,14/07/2011,1107-00598,718.90,R,Astor Bannerman Medical Ltd
http://statistics.data.gov.uk/doc/local-authority/00DA,Leeds City Council,Environment & Neighbourhoods,Environmental Health,Capital,Construction,3,28/07/2011,1107-00599,6442.00,C,Astor Bannerman Medical Ltd
http://statistics.data.gov.uk/doc/local-authority/00DA,Leeds City Council,City Development,Asset Management Services,Premises,Rents,141,08/07/2011,1107-00600,32318.87,R,Atc Properties Limited
http://statistics.data.gov.uk/doc/local-authority/00DA,Leeds City Council,Adult Social Care,Services For Older People - 65 And Over,Third Party Payments,Nursing Home,570,06/07/2011,1107-00601,19381.30,R,Atkinson Court
http://statistics.data.gov.uk/doc/local-authority/00DA,Leeds City Council,Adult Social Care,Services For Older People - 65 And Over,Third Party Payments,Nursing Care Emi,574,06/07/2011,1107-00602,12287.76,R,Atkinson Court
http://statistics.data.gov.uk/doc/local-authority/00DA,Leeds City Council,Central & Corporate Functions,Commercial Services Trading Services,Supplies and Services,Other Hired And Contracted Services,265,05/07/2011,1107-00603,1692.71,R,Atkinsons Fencing Limited
http://statistics.data.gov.uk/doc/local-authority/00DA,Leeds City Council,Central & Corporate Functions,Commercial Services Trading Services,Supplies and Services,Other Hired And Contracted Services,265,21/07/2011,1107-00604,711.50,R,Atkinsons Fencing Limited
http://statistics.data.gov.uk/doc/local-authority/00DA,Leeds City Council,Central & Corporate Functions,Commercial Services Trading Services,Supplies and Services,Other Hired And Contracted Services,265,28/07/2011,1107-00605,3457.28,R,Atkinsons Fencing Limited
http://statistics.data.gov.uk/doc/local-authority/00DA,Leeds City Council,Central & Corporate Functions,Commercial Services Trading Services,Supplies and Services,Other Hired And Contracted Services,265,28/07/2011,1107-00606,1080.40,R,Atkinsons Fencing Limited
http://statistics.data.gov.uk/doc/local-authority/00DA,Leeds City Council,Childrens Services,Other Childrens And Families Services,Third Party Payments,Rent,552,04/07/2011,1107-00607,1500.00,R,Atlantic 1 Property
http://statistics.data.gov.uk/doc/local-authority/00DA,Leeds City Council,Adult Social Care,Services For Older People - 65 And Over,Third Party Payments,Nursing Home,570,06/07/2011,1107-00608,1584.00,R,Attlee Court
http://statistics.data.gov.uk/doc/local-authority/00DA,Leeds City Council,Adult Social Care,Services For Older People - 65 And Over,Third Party Payments,Nursing Care Emi,574,06/07/2011,1107-00609,1143.36,R,Attlee Court
http://statistics.data.gov.uk/doc/local-authority/00DA,Leeds City Council,City Development,Libraries  Arts & Heritage,Supplies and Services,Books & Audio-Visual Materials,206,08/07/2011,1107-00610,594.73,R,Audiogo Ltd
http://statistics.data.gov.uk/doc/local-authority/00DA,Leeds City Council,City Development,Libraries  Arts & Heritage,Supplies and Services,Books & Audio-Visual Materials,206,08/07/2011,1107-00611,689.34,R,Audiogo Ltd
http://statistics.data.gov.uk/doc/local-authority/00DA,Leeds City Council,City Development,Libraries  Arts & Heritage,Supplies and Services,Books & Audio-Visual Materials,206,15/07/2011,1107-00612,645.95,R,Audiogo Ltd
http://statistics.data.gov.uk/doc/local-authority/00DA,Leeds City Council,City Development,Libraries  Arts & Heritage,Supplies and Services,Books & Audio-Visual Materials,206,15/07/2011,1107-00613,612.42,R,Audiogo Ltd
http://statistics.data.gov.uk/doc/local-authority/00DA,Leeds City Council,City Development,Libraries  Arts & Heritage,Supplies and Services,Books & Audio-Visual Materials,206,29/07/2011,1107-00614,530.40,R,Audiogo Ltd
http://statistics.data.gov.uk/doc/local-authority/00DA,Leeds City Council as Accountable Body,Jcs For People With Learning Disabilitie,Jcs For People With Learning Disabilitie,Third Party Payments,Residential,580,06/07/2011,1107-00615,8217.00,R,Autism Care (Uk) Ltd
http://statistics.data.gov.uk/doc/local-authority/00DA,Leeds City Council,Other Education Services,Active Accounts,Third Party Payments,Services Rendered By Other Organisations,511,15/07/2011,1107-00616,463.13,R,Autism Partnership Uk Ltd
http://statistics.data.gov.uk/doc/local-authority/00DA,Leeds City Council,Other Education Services,Active Accounts,Third Party Payments,Services Rendered By Other Organisations,511,25/07/2011,1107-00617,3683.08,R,Autism Partnership Uk Ltd
http://statistics.data.gov.uk/doc/local-authority/00DA,Leeds City Council,Other Education Services,Active Accounts,Third Party Payments,Services Rendered By Other Organisations,511,25/07/2011,1107-00618,-463.13,R,Autism Partnership Uk Ltd
http://statistics.data.gov.uk/doc/local-authority/00DA,Leeds City Council,Adult Social Care,Social Services Support Services,Supplies and Services,Computer Software & Equipment,214,29/07/2011,1107-00619,445.00,R,Av2000 Ltd
http://statistics.data.gov.uk/doc/local-authority/00DA,East - North East,East - North East,Housing Services,Employees,Temporary Staff-Basic,009,01/07/2011,1107-00620,6133.33,R,Avalon
http://statistics.data.gov.uk/doc/local-authority/00DA,East - North East,East - North East,Construction Services,Employees,Temporary Staff-Basic,009,01/07/2011,1107-00621,7599.67,R,Avalon
http://statistics.data.gov.uk/doc/local-authority/00DA,East - North East,East - North East,Construction Services,Employees,Temporary Staff-Basic,009,05/07/2011,1107-00622,447.90,R,Avalon
http://statistics.data.gov.uk/doc/local-authority/00DA,East - North East,East - North East,Construction Services,Employees,Temporary Staff-Basic,009,08/07/2011,1107-00623,447.90,R,Avalon
http://statistics.data.gov.uk/doc/local-authority/00DA,East - North East,East - North East,Construction Services,Employees,Temporary Staff-Basic,009,08/07/2011,1107-00624,447.90,R,Avalon
http://statistics.data.gov.uk/doc/local-authority/00DA,Leeds City Council as Accountable Body,Jcs For People With Learning Disabilitie,Jcs For People With Learning Disabilitie,Third Party Payments,Home Care,568,15/07/2011,1107-00625,1332.20,R,Avalon
http://statistics.data.gov.uk/doc/local-authority/00DA,Leeds City Council,City Development,Libraries  Arts & Heritage,Supplies and Services,Other Hired And Contracted Services,265,08/07/2011,1107-00626,750.00,R,Avalon Promotions Limited
http://statistics.data.gov.uk/doc/local-authority/00DA,Leeds City Council as Accountable Body,Jcs For People With Learning Disabilitie,Jcs For People With Learning Disabilitie,Third Party Payments,Residential,580,20/07/2011,1107-00627,4642.20,R,Avens Ltd
http://statistics.data.gov.uk/doc/local-authority/00DA,Leeds City Council,Adult Social Care,Services For Older People - 65 And Over,Supplies and Services,Operational Furniture And Equipment,203,13/07/2011,1107-00628,595.00,R,Avery Weigh Tronix
http://statistics.data.gov.uk/doc/local-authority/00DA,East - North East,East - North East,Construction Services,Supplies and Services,Other Materials,205,08/07/2011,1107-00629,1172.50,R,Avocet Hardware Ltd
http://statistics.data.gov.uk/doc/local-authority/00DA,East - North East,East - North East,Construction Services,Supplies and Services,Other Materials,205,15/07/2011,1107-00630,837.50,R,Avocet Hardware Ltd
http://statistics.data.gov.uk/doc/local-authority/00DA,East - North East,East - North East,Construction Services,Supplies and Services,Other Materials,205,20/07/2011,1107-00631,1172.50,R,Avocet Hardware Ltd
http://statistics.data.gov.uk/doc/local-authority/00DA,East - North East,East - North East,Construction Services,Supplies and Services,Other Materials,205,22/07/2011,1107-00632,1005.00,R,Avocet Hardware Ltd
http://statistics.data.gov.uk/doc/local-authority/00DA,Leeds City Council as Accountable Body,Jcs For People With Learning Disabilitie,Jcs For People With Learning Disabilitie,Third Party Payments,Residential,580,06/07/2011,1107-00633,4143.32,R,Avon Lodge
http://statistics.data.gov.uk/doc/local-authority/00DA,Leeds City Council,Childrens Services,Integrated Youth Support Service,Supplies and Services,Books & Audio-Visual Materials,206,05/07/2011,1107-00634,3425.00,R,Award Scheme Ltd
http://statistics.data.gov.uk/doc/local-authority/00DA,Leeds City Council,Childrens Services,Integrated Youth Support Service,Supplies and Services,Books & Audio-Visual Materials,206,08/07/2011,1107-00635,4225.00,R,Award Scheme Ltd
http://statistics.data.gov.uk/doc/local-authority/00DA,Leeds City Council,Childrens Services,Integrated Youth Support Service,Supplies and Services,Licences,266,18/07/2011,1107-00636,4550.00,R,Award Scheme Ltd
http://statistics.data.gov.uk/doc/local-authority/00DA,Leeds City Council,City Development,Recreation,Supplies and Services,Resaleable Material,204,09/06/2011,1107-00637,477.27,R,Awards Centre V/T
http://statistics.data.gov.uk/doc/local-authority/00DA,Leeds City Council,City Development,Recreation,Supplies and Services,Operational Materials,205,13/06/2011,1107-00638,764.40,R,Awards Centre V/T
http://statistics.data.gov.uk/doc/local-authority/00DA,Leeds City Council,Adult Social Care,Services For Older People - 65 And Over,Third Party Payments,Nursing Home,570,06/07/2011,1107-00639,1221.00,R,Ayresome Court Nursing Home
http://statistics.data.gov.uk/doc/local-authority/00DA,Leeds City Council,Environment & Neighbourhoods,Environmental Health,Capital,Construction,3,04/07/2011,1107-00640,4150.00,C,B & K Passmore
http://statistics.data.gov.uk/doc/local-authority/00DA,Leeds City Council,Environment & Neighbourhoods,Environmental Health,Capital,Construction,3,04/07/2011,1107-00641,4150.00,C,B & K Passmore
http://statistics.data.gov.uk/doc/local-authority/00DA,Leeds City Council,Environment & Neighbourhoods,Environmental Health,Capital,Construction,3,04/07/2011,1107-00642,4150.00,C,B & K Passmore
http://statistics.data.gov.uk/doc/local-authority/00DA,Leeds City Council,Environment & Neighbourhoods,Environmental Health,Capital,Construction,3,04/07/2011,1107-00643,4720.00,C,B & K Passmore
http://statistics.data.gov.uk/doc/local-authority/00DA,Leeds City Council,Environment & Neighbourhoods,Environmental Health,Capital,Construction,3,08/07/2011,1107-00644,4150.00,C,B & K Passmore
http://statistics.data.gov.uk/doc/local-authority/00DA,Leeds City Council,Environment & Neighbourhoods,Environmental Health,Capital,Construction,3,08/07/2011,1107-00645,2890.00,C,B & K Passmore
http://statistics.data.gov.uk/doc/local-authority/00DA,Leeds City Council,Environment & Neighbourhoods,Environmental Health,Capital,Construction,3,08/07/2011,1107-00646,3400.00,C,B & K Passmore
http://statistics.data.gov.uk/doc/local-authority/00DA,Leeds City Council,Environment & Neighbourhoods,Environmental Health,Capital,Construction,3,08/07/2011,1107-00647,6937.54,C,B & K Passmore
http://statistics.data.gov.uk/doc/local-authority/00DA,Leeds City Council,Environment & Neighbourhoods,Environmental Health,Capital,Construction,3,08/07/2011,1107-00648,4150.00,C,B & K Passmore
http://statistics.data.gov.uk/doc/local-authority/00DA,Leeds City Council,Environment & Neighbourhoods,South South East,Capital,Construction,3,15/07/2011,1107-00649,4508.46,C,B & K Passmore
http://statistics.data.gov.uk/doc/local-authority/00DA,Leeds City Council,Environment & Neighbourhoods,Environmental Health,Capital,Construction,3,19/07/2011,1107-00650,4450.00,C,B & K Passmore
http://statistics.data.gov.uk/doc/local-authority/00DA,Leeds City Council,Environment & Neighbourhoods,Environmental Health,Capital,Construction,3,19/07/2011,1107-00651,7308.00,C,B & K Passmore
http://statistics.data.gov.uk/doc/local-authority/00DA,Leeds City Council,Environment & Neighbourhoods,Environmental Health,Capital,Construction,3,19/07/2011,1107-00652,4150.00,C,B & K Passmore
http://statistics.data.gov.uk/doc/local-authority/00DA,Leeds City Council,Environment & Neighbourhoods,Environmental Health,Capital,Construction,3,19/07/2011,1107-00653,4150.00,C,B & K Passmore
http://statistics.data.gov.uk/doc/local-authority/00DA,Leeds City Council,Environment & Neighbourhoods,Environmental Health,Capital,Construction,3,19/07/2011,1107-00654,4150.00,C,B & K Passmore
http://statistics.data.gov.uk/doc/local-authority/00DA,Leeds City Council,Environment & Neighbourhoods,Environmental Health,Capital,Construction,3,19/07/2011,1107-00655,8727.75,C,B & K Passmore
http://statistics.data.gov.uk/doc/local-authority/00DA,Leeds City Council,Environment & Neighbourhoods,Environmental Health,Capital,Construction,3,20/07/2011,1107-00656,4150.00,C,B & K Passmore
http://statistics.data.gov.uk/doc/local-authority/00DA,Leeds City Council,Environment & Neighbourhoods,Environmental Health,Capital,Construction,3,20/07/2011,1107-00657,4150.00,C,B & K Passmore
http://statistics.data.gov.uk/doc/local-authority/00DA,Leeds City Council,Environment & Neighbourhoods,Environmental Health,Capital,Construction,3,21/07/2011,1107-00658,2890.00,C,B & K Passmore
http://statistics.data.gov.uk/doc/local-authority/00DA,Leeds City Council,Environment & Neighbourhoods,Environmental Health,Capital,Construction,3,28/07/2011,1107-00659,4150.00,C,B & K Passmore
http://statistics.data.gov.uk/doc/local-authority/00DA,Leeds City Council,Environment & Neighbourhoods,Environmental Health,Capital,Construction,3,29/07/2011,1107-00660,2890.00,C,B & K Passmore
http://statistics.data.gov.uk/doc/local-authority/00DA,Leeds City Council,Environment & Neighbourhoods,Environmental Health,Capital,Construction,3,29/07/2011,1107-00661,2890.00,C,B & K Passmore
http://statistics.data.gov.uk/doc/local-authority/00DA,Leeds City Council,Environment & Neighbourhoods,Environmental Health,Capital,Construction,3,29/07/2011,1107-00662,4150.00,C,B & K Passmore
http://statistics.data.gov.uk/doc/local-authority/00DA,Leeds City Council,Environment & Neighbourhoods,Environmental Health,Capital,Construction,3,29/07/2011,1107-00663,4150.00,C,B & K Passmore
http://statistics.data.gov.uk/doc/local-authority/00DA,Leeds City Council,Environment & Neighbourhoods,Environmental Health,Capital,Construction,3,29/07/2011,1107-00664,2751.50,C,B & K Passmore
http://statistics.data.gov.uk/doc/local-authority/00DA,Leeds City Council,City Development,Economic Development,Supplies and Services,Grants To Businesses,243,12/07/2011,1107-00665,1500.00,R,B & M Fabrics
http://statistics.data.gov.uk/doc/local-authority/00DA,Leeds City Council,City Development,Asset Management Services,Premises,Maintenance Of Buildings,101,19/07/2011,1107-00666,557.60,R,B E Brooks Ecological
http://statistics.data.gov.uk/doc/local-authority/00DA,Leeds City Council,Central & Corporate Functions,Customer Services,Supplies and Services,Bought In Professional Services,277,29/07/2011,1107-00667,426.00,R,B Lewis
http://statistics.data.gov.uk/doc/local-authority/00DA,Leeds City Council,Central & Corporate Functions,Information Technology,Supplies and Services,Office Furniture & Equipment,201,21/07/2011,1107-00668,423.00,R,Back Care Solutions Ltd
http://statistics.data.gov.uk/doc/local-authority/00DA,West - North West,West - North West,Customer And Tenancy,Employees,Temporary Staff-Basic,009,01/07/2011,1107-00669,787.59,R,Badenoch & Clark Ltd
http://statistics.data.gov.uk/doc/local-authority/00DA,West - North West,West - North West,Customer And Tenancy,Employees,Temporary Staff-Basic,009,01/07/2011,1107-00670,489.51,R,Badenoch & Clark Ltd
http://statistics.data.gov.uk/doc/local-authority/00DA,West - North West,West - North West,Customer And Tenancy,Employees,Temporary Staff-Basic,009,08/07/2011,1107-00671,552.49,R,Badenoch & Clark Ltd
http://statistics.data.gov.uk/doc/local-authority/00DA,West - North West,West - North West,Customer And Tenancy,Employees,Temporary Staff-Basic,009,08/07/2011,1107-00672,489.51,R,Badenoch & Clark Ltd
http://statistics.data.gov.uk/doc/local-authority/00DA,West - North West,West - North West,Customer And Tenancy,Employees,Temporary Staff-Basic,009,08/07/2011,1107-00673,423.36,R,Badenoch & Clark Ltd
http://statistics.data.gov.uk/doc/local-authority/00DA,West - North West,West - North West,Customer And Tenancy,Employees,Temporary Staff-Basic,009,08/07/2011,1107-00674,440.65,R,Badenoch & Clark Ltd
http://statistics.data.gov.uk/doc/local-authority/00DA,West - North West,West - North West,Customer And Tenancy,Employees,Temporary Staff-Basic,009,15/07/2011,1107-00675,489.51,R,Badenoch & Clark Ltd
http://statistics.data.gov.uk/doc/local-authority/00DA,West - North West,West - North West,Customer And Tenancy,Employees,Temporary Staff-Basic,009,15/07/2011,1107-00676,620.86,R,Badenoch & Clark Ltd
http://statistics.data.gov.uk/doc/local-authority/00DA,West - North West,West - North West,Customer And Tenancy,Employees,Temporary Staff-Basic,009,21/07/2011,1107-00677,494.16,R,Badenoch & Clark Ltd
http://statistics.data.gov.uk/doc/local-authority/00DA,West - North West,West - North West,Customer And Tenancy,Employees,Temporary Staff-Basic,009,22/07/2011,1107-00678,658.28,R,Badenoch & Clark Ltd
http://statistics.data.gov.uk/doc/local-authority/00DA,West - North West,West - North West,Customer And Tenancy,Employees,Temporary Staff-Basic,009,22/07/2011,1107-00679,620.86,R,Badenoch & Clark Ltd
http://statistics.data.gov.uk/doc/local-authority/00DA,West - North West,West - North West,Customer And Tenancy,Employees,Temporary Staff-Basic,009,27/07/2011,1107-00680,587.30,R,Badenoch & Clark Ltd
http://statistics.data.gov.uk/doc/local-authority/00DA,West - North West,West - North West,Customer And Tenancy,Employees,Temporary Staff-Basic,009,27/07/2011,1107-00681,587.30,R,Badenoch & Clark Ltd
http://statistics.data.gov.uk/doc/local-authority/00DA,West - North West,West - North West,Customer And Tenancy,Employees,Temporary Staff-Basic,009,28/07/2011,1107-00682,620.86,R,Badenoch & Clark Ltd
http://statistics.data.gov.uk/doc/local-authority/00DA,West - North West,West - North West,Customer And Tenancy,Employees,Temporary Staff-Basic,009,29/07/2011,1107-00683,617.14,R,Badenoch & Clark Ltd
http://statistics.data.gov.uk/doc/local-authority/00DA,West - North West,West - North West,Customer And Tenancy,Employees,Temporary Staff-Basic,009,29/07/2011,1107-00684,858.12,R,Badenoch & Clark Ltd
http://statistics.data.gov.uk/doc/local-authority/00DA,West - North West,West - North West,Customer And Tenancy,Employees,Temporary Staff-Basic,009,29/07/2011,1107-00685,489.51,R,Badenoch & Clark Ltd
http://statistics.data.gov.uk/doc/local-authority/00DA,West - North West,West - North West,Customer And Tenancy,Employees,Temporary Staff-Basic,009,29/07/2011,1107-00686,478.42,R,Badenoch & Clark Ltd
http://statistics.data.gov.uk/doc/local-authority/00DA,Leeds City Council,City Development,Libraries  Arts & Heritage,Precepts,Stationery & External Printing,210,14/06/2011,1107-00687,2043.81,R,Baker & Taylor (Uk) Lt
http://statistics.data.gov.uk/doc/local-authority/00DA,Leeds City Council,City Development,Recreation,Supplies and Services,Operational Materials,205,13/07/2011,1107-00688,11947.60,R,Ball Colegrave Ltd
http://statistics.data.gov.uk/doc/local-authority/00DA,Leeds City Council,City Development,Recreation,Supplies and Services,Operational Materials,205,13/07/2011,1107-00689,10800.00,R,Ball Colegrave Ltd
http://statistics.data.gov.uk/doc/local-authority/00DA,Leeds City Council,City Development,Recreation,Transport,Plant Spares,346,13/07/2011,1107-00690,616.37,R,Balmers Garden Machinery
http://statistics.data.gov.uk/doc/local-authority/00DA,Leeds City Council,Environment & Neighbourhoods,East North East,Capital,Construction,3,15/07/2011,1107-00691,6449.71,C,Balvac Ltd
http://statistics.data.gov.uk/doc/local-authority/00DA,Leeds City Council,Other Education Services,Active Accounts,Supplies and Services,Operational Furniture And Equipment,203,08/07/2011,1107-00692,755.00,R,Bambach Saddle Seat (Eur) Ltd
http://statistics.data.gov.uk/doc/local-authority/00DA,Leeds City Council,Childrens Services,Youth Justice,Supplies and Services,General Amenity For Clients/Residents,285,11/07/2011,1107-00693,1911.00,R,Barca Leeds
http://statistics.data.gov.uk/doc/local-authority/00DA,Leeds City Council,Childrens Services,Youth Justice,Supplies and Services,Other Hired And Contracted Services,265,28/07/2011,1107-00694,14000.00,R,Barca Leeds
http://statistics.data.gov.uk/doc/local-authority/00DA,Leeds City Council,Childrens Services,Early Years Service,Third Party Payments,Services Rendered By Other Organisations,511,14/07/2011,1107-00695,2405.78,R,Bardsey Nursery Group
http://statistics.data.gov.uk/doc/local-authority/00DA,Leeds City Council,Childrens Services,Early Years Service,Third Party Payments,Services Rendered By Voluntary Sector,505,06/07/2011,1107-00696,81389.00,R,Barnardos Yorkshire
http://statistics.data.gov.uk/doc/local-authority/00DA,Leeds City Council,Childrens Services,Director Of Childrens Services,Third Party Payments,Services Rendered By Voluntary Sector,505,07/07/2011,1107-00697,4139.50,R,Barnardos Yorkshire
http://statistics.data.gov.uk/doc/local-authority/00DA,Leeds City Council,Childrens Services,Other Childrens And Families Services,Third Party Payments,Payments To Voluntary Organisations,561,07/07/2011,1107-00698,7500.00,R,Barnardos Yorkshire
http://statistics.data.gov.uk/doc/local-authority/00DA,Leeds City Council,Childrens Services,Youth Justice,Supplies and Services,Other Hired And Contracted Services,265,07/07/2011,1107-00699,2000.00,R,Barnardos Yorkshire
http://statistics.data.gov.uk/doc/local-authority/00DA,Leeds City Council,Childrens Services,Other Childrens And Families Services,Third Party Payments,Payments To Voluntary Organisations,561,07/07/2011,1107-00700,3750.00,R,Barnardos Yorkshire
http://statistics.data.gov.uk/doc/local-authority/00DA,Leeds City Council,Environment & Neighbourhoods,Statutory Housing,Income,Admissions  Booking Fees & Ticket Sales,933,11/07/2011,1107-00701,-6657.33,R,Barnsley Mbc
http://statistics.data.gov.uk/doc/local-authority/00DA,Leeds City Council,Central & Corporate Functions,Executive Support,Supplies and Services,Well Being Small Grants Projects,228,06/07/2011,1107-00702,500.00,R,Barwick In Elmet Maypole Trust
http://statistics.data.gov.uk/doc/local-authority/00DA,Leeds City Council,Environment & Neighbourhoods,Environmental Health,Capital,Construction,3,08/07/2011,1107-00703,7000.00,C,Batty Developments Ltd
http://statistics.data.gov.uk/doc/local-authority/00DA,Leeds City Council,City Development,Highways,Supplies and Services,Advertising,211,14/07/2011,1107-00704,464.90,R,Bauer Consumer Media Limited
http://statistics.data.gov.uk/doc/local-authority/00DA,Leeds City Council,Environment & Neighbourhoods,Community Safety,Supplies and Services,Grant Related Expenditure,290,18/07/2011,1107-00705,1462.64,R,Bauer Radio Ltd
http://statistics.data.gov.uk/doc/local-authority/00DA,Leeds City Council,City Development,Libraries  Arts & Heritage,Supplies and Services,Advertising,211,01/07/2011,1107-00706,1190.00,R,Bay Media Ltd
http://statistics.data.gov.uk/doc/local-authority/00DA,Leeds City Council,City Development,Libraries  Arts & Heritage,Supplies and Services,Advertising,211,15/07/2011,1107-00707,1190.00,R,Bay Media Ltd
http://statistics.data.gov.uk/doc/local-authority/00DA,Leeds City Council,Central & Corporate Functions,Commercial Services Trading Services,Transport,Fuel (Non LCC Supplies),321,01/07/2011,1107-00708,38867.50,R,Bayford Oil
http://statistics.data.gov.uk/doc/local-authority/00DA,Leeds City Council,Environment & Neighbourhoods,Streetscene Environmental Services,Supplies and Services,Operational Furniture And Equipment,203,06/07/2011,1107-00709,830.15,R,Bayford Oil
http://statistics.data.gov.uk/doc/local-authority/00DA,Leeds City Council,Central & Corporate Functions,Commercial Services Trading Services,Transport,Fuel (Non LCC Supplies),321,12/07/2011,1107-00710,3196.00,R,Bayford Oil
http://statistics.data.gov.uk/doc/local-authority/00DA,Leeds City Council,City Development,Recreation,Transport,Fuel (Non LCC Supplies),321,12/07/2011,1107-00711,1288.40,R,Bayford Oil
http://statistics.data.gov.uk/doc/local-authority/00DA,Leeds City Council,Central & Corporate Functions,Commercial Services Trading Services,Transport,Fuel (Non LCC Supplies),321,12/07/2011,1107-00712,16845.00,R,Bayford Oil
http://statistics.data.gov.uk/doc/local-authority/00DA,Leeds City Council,City Development,Recreation,Transport,Fuel (Non LCC Supplies),321,12/07/2011,1107-00713,1288.40,R,Bayford Oil
http://statistics.data.gov.uk/doc/local-authority/00DA,Leeds City Council,Central & Corporate Functions,Commercial Services Trading Services,Transport,Fuel (Non LCC Supplies),321,12/07/2011,1107-00714,20178.00,R,Bayford Oil
http://statistics.data.gov.uk/doc/local-authority/00DA,Leeds City Council,Central & Corporate Functions,Commercial Services Trading Services,Transport,Fuel (Non LCC Supplies),321,12/07/2011,1107-00715,39232.76,R,Bayford Oil
http://statistics.data.gov.uk/doc/local-authority/00DA,Leeds City Council,City Development,Recreation,Transport,Fuel (Non LCC Supplies),321,12/07/2011,1107-00716,15722.00,R,Bayford Oil
http://statistics.data.gov.uk/doc/local-authority/00DA,Leeds City Council,Central & Corporate Functions,Commercial Services Trading Services,Transport,Fuel (Non LCC Supplies),321,12/07/2011,1107-00717,1920.60,R,Bayford Oil
http://statistics.data.gov.uk/doc/local-authority/00DA,Leeds City Council,Central & Corporate Functions,Commercial Services Trading Services,Transport,Fuel (Non LCC Supplies),321,12/07/2011,1107-00718,24662.00,R,Bayford Oil
http://statistics.data.gov.uk/doc/local-authority/00DA,Leeds City Council,Central & Corporate Functions,Commercial Services Trading Services,Transport,Fuel (Non LCC Supplies),321,12/07/2011,1107-00719,9000.00,R,Bayford Oil
http://statistics.data.gov.uk/doc/local-authority/00DA,Leeds City Council,Central & Corporate Functions,Commercial Services Trading Services,Transport,Fuel (Non LCC Supplies),321,12/07/2011,1107-00720,11301.82,R,Bayford Oil
http://statistics.data.gov.uk/doc/local-authority/00DA,Leeds City Council,Environment & Neighbourhoods,Streetscene Environmental Services,Supplies and Services,Operational Furniture And Equipment,203,14/07/2011,1107-00721,978.00,R,Bayford Oil
http://statistics.data.gov.uk/doc/local-authority/00DA,Leeds City Council,City Development,Recreation,Transport,Fuel (Non LCC Supplies),321,15/07/2011,1107-00722,1472.46,R,Bayford Oil
http://statistics.data.gov.uk/doc/local-authority/00DA,Leeds City Council,Central & Corporate Functions,Commercial Services Trading Services,Transport,Fuel (Non LCC Supplies),321,18/07/2011,1107-00723,16959.00,R,Bayford Oil
http://statistics.data.gov.uk/doc/local-authority/00DA,Leeds City Council,Central & Corporate Functions,Commercial Services Trading Services,Transport,Fuel (Non LCC Supplies),321,18/07/2011,1107-00724,20314.80,R,Bayford Oil
http://statistics.data.gov.uk/doc/local-authority/00DA,Leeds City Council,Central & Corporate Functions,Commercial Services Trading Services,Transport,Fuel (Non LCC Supplies),321,18/07/2011,1107-00725,39501.00,R,Bayford Oil
http://statistics.data.gov.uk/doc/local-authority/00DA,Leeds City Council,City Development,Recreation,Transport,Fuel (Non LCC Supplies),321,20/07/2011,1107-00726,3637.53,R,Bayford Oil
http://statistics.data.gov.uk/doc/local-authority/00DA,Leeds City Council,City Development,Recreation,Transport,Fuel (Non LCC Supplies),321,20/07/2011,1107-00727,4398.40,R,Bayford Oil
http://statistics.data.gov.uk/doc/local-authority/00DA,Leeds City Council,Central & Corporate Functions,Commercial Services Trading Services,Transport,Fuel (Non LCC Supplies),321,20/07/2011,1107-00728,24921.60,R,Bayford Oil
http://statistics.data.gov.uk/doc/local-authority/00DA,Leeds City Council,Central & Corporate Functions,Commercial Services Trading Services,Transport,Fuel (Non LCC Supplies),321,22/07/2011,1107-00729,1957.80,R,Bayford Oil
http://statistics.data.gov.uk/doc/local-authority/00DA,Leeds City Council,Other Education Services,Active Accounts,Premises,Oil,122,29/07/2011,1107-00730,2755.04,R,Bayford Oil
http://statistics.data.gov.uk/doc/local-authority/00DA,Leeds City Council,Adult Social Care,Services For Older People Under 65 P/Dis,Third Party Payments,Residential,580,06/07/2011,1107-00731,7984.00,R,Baylis Place
http://statistics.data.gov.uk/doc/local-authority/00DA,Leeds City Council,Central & Corporate Functions,Commercial Services Trading Services,Supplies and Services,Operational Materials,205,06/07/2011,1107-00732,437.92,R,Bbn Fastnet
http://statistics.data.gov.uk/doc/local-authority/00DA,Leeds City Council,Central & Corporate Functions,Information Technology,Supplies and Services,Networks Dept Orders - Expenditure,090,07/07/2011,1107-00733,1500.00,R,Beacon Communication Technology (North)
http://statistics.data.gov.uk/doc/local-authority/00DA,Leeds City Council,Central & Corporate Functions,Information Technology,Supplies and Services,Networks Dept Orders - Expenditure,090,08/07/2011,1107-00734,1086.00,R,Beacon Communication Technology (North)
http://statistics.data.gov.uk/doc/local-authority/00DA,Leeds City Council,Central & Corporate Functions,Information Technology,Supplies and Services,Telephones,213,14/07/2011,1107-00735,469.96,R,Beacon Communication Technology (North)
http://statistics.data.gov.uk/doc/local-authority/00DA,Leeds City Council,Central & Corporate Functions,Information Technology,Supplies and Services,Telephones,213,14/07/2011,1107-00736,511.00,R,Beacon Communication Technology (North)
http://statistics.data.gov.uk/doc/local-authority/00DA,Leeds City Council,Central & Corporate Functions,Information Technology,Supplies and Services,Networks Dept Orders - Expenditure,090,14/07/2011,1107-00737,440.00,R,Beacon Communication Technology (North)
http://statistics.data.gov.uk/doc/local-authority/00DA,Leeds City Council,Central & Corporate Functions,Civic And Community Buildings,Capital,Construction,3,19/07/2011,1107-00738,500.00,C,Beacon Communication Technology (North)
http://statistics.data.gov.uk/doc/local-authority/00DA,Leeds City Council,Central & Corporate Functions,Information Technology,Supplies and Services,Networks Dept Orders - Expenditure,090,22/07/2011,1107-00739,1895.00,R,Beacon Communication Technology (North)
http://statistics.data.gov.uk/doc/local-authority/00DA,Leeds City Council,Central & Corporate Functions,Information Technology,Supplies and Services,Networks Dept Orders - Expenditure,090,22/07/2011,1107-00740,440.00,R,Beacon Communication Technology (North)
http://statistics.data.gov.uk/doc/local-authority/00DA,Leeds City Council,Central & Corporate Functions,Information Technology,Supplies and Services,Networks Dept Orders - Expenditure,090,26/07/2011,1107-00741,4418.00,R,Beacon Communication Technology (North)
http://statistics.data.gov.uk/doc/local-authority/00DA,Leeds City Council,Central & Corporate Functions,Information Technology,Supplies and Services,Networks Dept Orders - Expenditure,090,26/07/2011,1107-00742,790.00,R,Beacon Communication Technology (North)
http://statistics.data.gov.uk/doc/local-authority/00DA,Leeds City Council,Central & Corporate Functions,Information Technology,Supplies and Services,Networks Dept Orders - Expenditure,090,26/07/2011,1107-00743,2675.00,R,Beacon Communication Technology (North)
http://statistics.data.gov.uk/doc/local-authority/00DA,Leeds City Council,Central & Corporate Functions,Information Technology,Supplies and Services,Telephones,213,29/07/2011,1107-00744,425.00,R,Beacon Communication Technology (North)
http://statistics.data.gov.uk/doc/local-authority/00DA,Leeds City Council,Central & Corporate Functions,Information Technology,Supplies and Services,Telephones,213,29/07/2011,1107-00745,436.90,R,Beacon Communication Technology (North)
http://statistics.data.gov.uk/doc/local-authority/00DA,Leeds City Council,Other Education Services,Active Accounts,Supplies and Services,Advertising,211,27/07/2011,1107-00746,1250.00,R,Beatbullying Services Ltd
http://statistics.data.gov.uk/doc/local-authority/00DA,Leeds City Council,Adult Social Care,Services For Older People - 65 And Over,Third Party Payments,Residential,580,06/07/2011,1107-00747,1225.00,R,Beech Lodge Residential Home
http://statistics.data.gov.uk/doc/local-authority/00DA,Leeds City Council,Childrens Services,Early Years Service,Third Party Payments,Services Rendered By Other Organisations,511,14/07/2011,1107-00748,1784.88,R,Beechtree Headingley Kindergarten
http://statistics.data.gov.uk/doc/local-authority/00DA,Leeds City Council,Childrens Services,Early Years Service,Third Party Payments,Services Rendered By Voluntary Sector,505,14/07/2011,1107-00749,4834.85,R,Beechtree Kindergarten
http://statistics.data.gov.uk/doc/local-authority/00DA,Leeds City Council,Environment & Neighbourhoods,Strategy & Commissioning,Third Party Payments,Supporting Ppl - Block Gross Chargeable,514,19/07/2011,1107-00750,12947.81,R,Behind Closed Doors (Bcd)
http://statistics.data.gov.uk/doc/local-authority/00DA,Leeds City Council,Environment & Neighbourhoods,Streetscene Environmental Services,Supplies and Services,Operational Furniture And Equipment,203,12/07/2011,1107-00751,517.50,R,Bell Brush
http://statistics.data.gov.uk/doc/local-authority/00DA,Leeds City Council,Central & Corporate Functions,Support And Facilities Trading Services,Supplies and Services,Other Hired And Contracted Services,265,28/07/2011,1107-00752,1184.00,R,Bell Group Uk
http://statistics.data.gov.uk/doc/local-authority/00DA,Leeds City Council,Central & Corporate Functions,Executive Support,Supplies and Services,'Well Being' Large Grants Projects,230,28/07/2011,1107-00753,4740.70,R,Bell Group Uk
http://statistics.data.gov.uk/doc/local-authority/00DA,Leeds City Council,Adult Social Care,Services For Older People - 65 And Over,Third Party Payments,Nursing Home,570,07/07/2011,1107-00754,1355.36,R,Belle Green Court Care Home
http://statistics.data.gov.uk/doc/local-authority/00DA,Leeds City Council,Adult Social Care,Services For Older People - 65 And Over,Third Party Payments,Payments To Voluntary Organisations,561,01/07/2011,1107-00755,26054.75,R,Belle Isle Elderly Winter Aid
http://statistics.data.gov.uk/doc/local-authority/00DA,Leeds City Council,Environment & Neighbourhoods,Hra,Supplies and Services,Almo Cheque Requisition,002,12/07/2011,1107-00756,83094.08,R,Belle Isle Tenant Management
http://statistics.data.gov.uk/doc/local-authority/00DA,Leeds City Council,Environment & Neighbourhoods,Strategy & Commissioning,Third Party Payments,Supporting People - Block Subsidy,513,19/07/2011,1107-00757,5720.96,R,Belle Isle Tenant Management
http://statistics.data.gov.uk/doc/local-authority/00DA,Leeds City Council,Environment & Neighbourhoods,Strategy & Commissioning,Third Party Payments,Supporting Ppl - Block Gross Chargeable,514,19/07/2011,1107-00758,3188.78,R,Belle Isle Tenant Management
http://statistics.data.gov.uk/doc/local-authority/00DA,Leeds City Council,Environment & Neighbourhoods,Strategy & Commissioning,Third Party Payments,Supporting Ppl - Block Gross Chargeable,514,19/07/2011,1107-00759,2755.24,R,Belle Isle Tenant Management
http://statistics.data.gov.uk/doc/local-authority/00DA,Leeds City Council,Environment & Neighbourhoods,Hra,Capital,Other Costs,7,01/07/2011,1107-00760,7500.00,C,Bellway Homes Ltd (Yorkshire Division)
http://statistics.data.gov.uk/doc/local-authority/00DA,Leeds City Council,Adult Social Care,Services For Older People - 65 And Over,Third Party Payments,Residential,580,06/07/2011,1107-00761,937.76,R,Belvedere Residential Home
http://statistics.data.gov.uk/doc/local-authority/00DA,Leeds City Council,Environment & Neighbourhoods,Statutory Housing,Supplies and Services,Other Hired And Contracted Services,265,13/07/2011,1107-00762,675.00,R,Belvoir Leeds North
http://statistics.data.gov.uk/doc/local-authority/00DA,Leeds City Council,City Development,Libraries  Arts & Heritage,Supplies and Services,Bought In Professional Services,277,28/07/2011,1107-00763,1300.00,R,Ben Hall
http://statistics.data.gov.uk/doc/local-authority/00DA,Leeds City Council,Other Education Services,Miscellaneous,Capital,Transport,4,26/07/2011,1107-00764,22838.00,C,Benfield Ford Leeds (Veh Purch)
http://statistics.data.gov.uk/doc/local-authority/00DA,Leeds City Council,Adult Social Care,Services For Older People - 65 And Over,Third Party Payments,Residential Care Emi,571,06/07/2011,1107-00765,46171.17,R,Berkley Court
http://statistics.data.gov.uk/doc/local-authority/00DA,Leeds City Council,Adult Social Care,Services For Older People - 65 And Over,Third Party Payments,Residential,580,06/07/2011,1107-00766,38640.90,R,Berkley Court
http://statistics.data.gov.uk/doc/local-authority/00DA,Leeds City Council,Adult Social Care,Services For Older People - 65 And Over,Third Party Payments,Residential Care Emi,571,13/07/2011,1107-00767,18371.32,R,Berkley Court
http://statistics.data.gov.uk/doc/local-authority/00DA,Leeds City Council,Adult Social Care,Services For Older People - 65 And Over,Third Party Payments,Residential,580,13/07/2011,1107-00768,8662.91,R,Berkley Court
http://statistics.data.gov.uk/doc/local-authority/00DA,Leeds City Council,Childrens Services,Children - Commissioning And Social Work,Supplies and Services,Consultancy Services,259,14/07/2011,1107-00769,1600.00,R,Berrybrown Ltd
http://statistics.data.gov.uk/doc/local-authority/00DA,Leeds City Council,Childrens Services,Children - Commissioning And Social Work,Employees,Agency Staff,008,28/07/2011,1107-00770,1600.00,R,Berrybrown Ltd
http://statistics.data.gov.uk/doc/local-authority/00DA,Leeds City Council,Childrens Services,Children - Commissioning And Social Work,Supplies and Services,Consultancy Services,259,28/07/2011,1107-00771,1600.00,R,Berrybrown Ltd
http://statistics.data.gov.uk/doc/local-authority/00DA,Leeds City Council,Insurance,Insurance,Support Services,Legal Disbursements,411,01/07/2011,1107-00772,1860.00,R,Berrymans Lace Mawer
http://statistics.data.gov.uk/doc/local-authority/00DA,Leeds City Council,Insurance,Insurance,Support Services,Legal Disbursements,411,06/07/2011,1107-00773,3598.00,R,Berrymans Lace Mawer
http://statistics.data.gov.uk/doc/local-authority/00DA,Leeds City Council,Insurance,Insurance,Support Services,Legal Disbursements,411,06/07/2011,1107-00774,3023.00,R,Berrymans Lace Mawer
http://statistics.data.gov.uk/doc/local-authority/00DA,Leeds City Council,Insurance,Insurance,Support Services,Legal Disbursements,411,11/07/2011,1107-00775,902.00,R,Berrymans Lace Mawer
http://statistics.data.gov.uk/doc/local-authority/00DA,Leeds City Council,Insurance,Insurance,Support Services,Legal Disbursements,411,11/07/2011,1107-00776,437.00,R,Berrymans Lace Mawer
http://statistics.data.gov.uk/doc/local-authority/00DA,Leeds City Council,Insurance,Insurance,Support Services,Legal Disbursements,411,20/07/2011,1107-00777,10238.00,R,Berrymans Lace Mawer
http://statistics.data.gov.uk/doc/local-authority/00DA,Leeds City Council,City Development,Asset Management Services,Premises,Lifts,103,29/07/2011,1107-00778,472.00,R,Besam Ltd
http://statistics.data.gov.uk/doc/local-authority/00DA,Leeds City Council,Adult Social Care,Services For Older People - 65 And Over,Third Party Payments,Residential Care Emi,571,06/07/2011,1107-00779,1760.92,R,Bethel House
http://statistics.data.gov.uk/doc/local-authority/00DA,Leeds City Council,Adult Social Care,Services For Older People - 65 And Over,Third Party Payments,Nursing Care Emi,574,06/07/2011,1107-00780,1728.00,R,Bewick Lodge
http://statistics.data.gov.uk/doc/local-authority/00DA,Leeds City Council,Insurance,Insurance,Supplies and Services,Other Hired And Contracted Services,265,28/07/2011,1107-00781,8757.84,R,Bgr Bloomer Solicitors
http://statistics.data.gov.uk/doc/local-authority/00DA,Leeds City Council,Environment & Neighbourhoods,Streetscene Environmental Services,Supplies and Services,Waste Disposal Charges,236,01/07/2011,1107-00782,132391.37,R,Biffa Waste Services Ltd
http://statistics.data.gov.uk/doc/local-authority/00DA,Leeds City Council,Environment & Neighbourhoods,Streetscene Environmental Services,Supplies and Services,Waste Disposal Charges,236,06/07/2011,1107-00783,11982.35,R,Biffa Waste Services Ltd
http://statistics.data.gov.uk/doc/local-authority/00DA,Leeds City Council,Environment & Neighbourhoods,Streetscene Environmental Services,Supplies and Services,Recycling & Reuse Charges,234,07/07/2011,1107-00784,2060.63,R,Biffa Waste Services Ltd
http://statistics.data.gov.uk/doc/local-authority/00DA,Leeds City Council,Environment & Neighbourhoods,Streetscene Environmental Services,Supplies and Services,Waste Disposal Charges,236,07/07/2011,1107-00785,34344.40,R,Biffa Waste Services Ltd
http://statistics.data.gov.uk/doc/local-authority/00DA,Leeds City Council,Environment & Neighbourhoods,Streetscene Environmental Services,Supplies and Services,Waste Disposal Charges,236,07/07/2011,1107-00786,102493.37,R,Biffa Waste Services Ltd
http://statistics.data.gov.uk/doc/local-authority/00DA,Leeds City Council,Environment & Neighbourhoods,Streetscene Environmental Services,Supplies and Services,Recycling & Reuse Charges,234,14/07/2011,1107-00787,2496.00,R,Biffa Waste Services Ltd
http://statistics.data.gov.uk/doc/local-authority/00DA,Leeds City Council,Environment & Neighbourhoods,Streetscene Environmental Services,Supplies and Services,Waste Disposal Charges,236,14/07/2011,1107-00788,39012.89,R,Biffa Waste Services Ltd
http://statistics.data.gov.uk/doc/local-authority/00DA,Leeds City Council,Environment & Neighbourhoods,Streetscene Environmental Services,Supplies and Services,Waste Disposal Charges,236,14/07/2011,1107-00789,109772.34,R,Biffa Waste Services Ltd
http://statistics.data.gov.uk/doc/local-authority/00DA,Leeds City Council,Environment & Neighbourhoods,Streetscene Environmental Services,Supplies and Services,Waste Disposal Charges,236,18/07/2011,1107-00790,5375.21,R,Biffa Waste Services Ltd
http://statistics.data.gov.uk/doc/local-authority/00DA,Leeds City Council,Environment & Neighbourhoods,Streetscene Environmental Services,Supplies and Services,Waste Disposal Charges,236,19/07/2011,1107-00791,5182.77,R,Biffa Waste Services Ltd
http://statistics.data.gov.uk/doc/local-authority/00DA,Leeds City Council,Environment & Neighbourhoods,Streetscene Environmental Services,Supplies and Services,Recycling & Reuse Charges,234,25/07/2011,1107-00792,2186.50,R,Biffa Waste Services Ltd
http://statistics.data.gov.uk/doc/local-authority/00DA,Leeds City Council,Environment & Neighbourhoods,Streetscene Environmental Services,Supplies and Services,Waste Disposal Charges,236,25/07/2011,1107-00793,38270.70,R,Biffa Waste Services Ltd
http://statistics.data.gov.uk/doc/local-authority/00DA,Leeds City Council,Environment & Neighbourhoods,Streetscene Environmental Services,Supplies and Services,Waste Disposal Charges,236,25/07/2011,1107-00794,98300.04,R,Biffa Waste Services Ltd
http://statistics.data.gov.uk/doc/local-authority/00DA,East - North East,East - North East,Construction Services,Supplies and Services,Other Materials,205,01/07/2011,1107-00795,1263.86,R,Bilbeck (Merchants) Ltd
http://statistics.data.gov.uk/doc/local-authority/00DA,East - North East,East - North East,Construction Services,Supplies and Services,Other Materials,205,01/07/2011,1107-00796,1785.48,R,Bilbeck (Merchants) Ltd
http://statistics.data.gov.uk/doc/local-authority/00DA,East - North East,East - North East,Construction Services,Supplies and Services,Other Materials,205,01/07/2011,1107-00797,625.50,R,Bilbeck (Merchants) Ltd
http://statistics.data.gov.uk/doc/local-authority/00DA,East - North East,East - North East,Construction Services,Supplies and Services,Other Materials,205,01/07/2011,1107-00798,1037.46,R,Bilbeck (Merchants) Ltd
http://statistics.data.gov.uk/doc/local-authority/00DA,East - North East,East - North East,Construction Services,Supplies and Services,Other Materials,205,07/07/2011,1107-00799,552.14,R,Bilbeck (Merchants) Ltd
http://statistics.data.gov.uk/doc/local-authority/00DA,East - North East,East - North East,Construction Services,Supplies and Services,Other Materials,205,07/07/2011,1107-00800,1636.10,R,Bilbeck (Merchants) Ltd
http://statistics.data.gov.uk/doc/local-authority/00DA,East - North East,East - North East,Construction Services,Supplies and Services,Other Materials,205,07/07/2011,1107-00801,951.47,R,Bilbeck (Merchants) Ltd
http://statistics.data.gov.uk/doc/local-authority/00DA,East - North East,East - North East,Construction Services,Supplies and Services,Other Materials,205,13/07/2011,1107-00802,1406.06,R,Bilbeck (Merchants) Ltd
http://statistics.data.gov.uk/doc/local-authority/00DA,East - North East,East - North East,Construction Services,Supplies and Services,Other Materials,205,13/07/2011,1107-00803,450.39,R,Bilbeck (Merchants) Ltd
http://statistics.data.gov.uk/doc/local-authority/00DA,East - North East,East - North East,Construction Services,Supplies and Services,Other Materials,205,15/07/2011,1107-00804,1705.46,R,Bilbeck (Merchants) Ltd
http://statistics.data.gov.uk/doc/local-authority/00DA,East - North East,East - North East,Construction Services,Supplies and Services,Other Materials,205,26/07/2011,1107-00805,1584.94,R,Bilbeck (Merchants) Ltd
http://statistics.data.gov.uk/doc/local-authority/00DA,East - North East,East - North East,Construction Services,Supplies and Services,Other Materials,205,26/07/2011,1107-00806,582.27,R,Bilbeck (Merchants) Ltd
http://statistics.data.gov.uk/doc/local-authority/00DA,East - North East,East - North East,Construction Services,Supplies and Services,Other Materials,205,26/07/2011,1107-00807,745.35,R,Bilbeck (Merchants) Ltd
http://statistics.data.gov.uk/doc/local-authority/00DA,Leeds City Council,City Development,Recreation,Transport,Plant Spares,346,01/07/2011,1107-00808,1132.50,R,Binson Bearings
http://statistics.data.gov.uk/doc/local-authority/00DA,Leeds City Council,City Development,Recreation,Transport,Plant Spares,346,29/07/2011,1107-00809,982.87,R,Binson Bearings
http://statistics.data.gov.uk/doc/local-authority/00DA,Leeds City Council,Environment & Neighbourhoods,Streetscene Environmental Services,Supplies and Services,Recycling & Reuse Charges,234,01/07/2011,1107-00810,5074.28,R,Biowise Ltd
http://statistics.data.gov.uk/doc/local-authority/00DA,Leeds City Council,Environment & Neighbourhoods,Streetscene Environmental Services,Supplies and Services,Recycling & Reuse Charges,234,14/07/2011,1107-00811,4338.52,R,Biowise Ltd
http://statistics.data.gov.uk/doc/local-authority/00DA,Leeds City Council,Environment & Neighbourhoods,Streetscene Environmental Services,Supplies and Services,Recycling & Reuse Charges,234,25/07/2011,1107-00812,3971.47,R,Biowise Ltd
http://statistics.data.gov.uk/doc/local-authority/00DA,Leeds City Council,Environment & Neighbourhoods,Streetscene Environmental Services,Supplies and Services,Recycling & Reuse Charges,234,25/07/2011,1107-00813,7994.90,R,Biowise Ltd
http://statistics.data.gov.uk/doc/local-authority/00DA,Leeds City Council,City Development,Libraries  Arts & Heritage,Income,Admissions  Booking Fees & Ticket Sales,933,14/07/2011,1107-00814,524.00,R,Bishbashbosh Productions
http://statistics.data.gov.uk/doc/local-authority/00DA,Leeds City Council,Central & Corporate Functions,Commercial Services Trading Services,Supplies and Services,Other Hired And Contracted Services,265,07/07/2011,1107-00815,970.00,R,Bison Bede Limited
http://statistics.data.gov.uk/doc/local-authority/00DA,Leeds City Council,Central & Corporate Functions,Commercial Services Trading Services,Supplies and Services,Other Hired And Contracted Services,265,07/07/2011,1107-00816,970.00,R,Bison Bede Limited
http://statistics.data.gov.uk/doc/local-authority/00DA,Leeds City Council,Central & Corporate Functions,Commercial Services Trading Services,Supplies and Services,Other Hired And Contracted Services,265,07/07/2011,1107-00817,970.00,R,Bison Bede Limited
http://statistics.data.gov.uk/doc/local-authority/00DA,Leeds City Council,City Development,Libraries  Arts & Heritage,Supplies and Services,Resaleable Material,204,20/06/2011,1107-00818,661.44,R,Black & Blume
http://statistics.data.gov.uk/doc/local-authority/00DA,Leeds City Council,Central & Corporate Functions,Support And Facilities Trading Services,Supplies and Services,Operational Materials,205,29/07/2011,1107-00819,4573.56,R,Blackburns Metals Limited
http://statistics.data.gov.uk/doc/local-authority/00DA,Leeds City Council,Environment & Neighbourhoods,Belle Isle,Capital,Construction,3,06/07/2011,1107-00820,18885.45,C,Blackie Ltd
http://statistics.data.gov.uk/doc/local-authority/00DA,Leeds City Council,Environment & Neighbourhoods,Belle Isle,Capital,Construction,3,13/07/2011,1107-00821,14566.83,C,Blackie Ltd
http://statistics.data.gov.uk/doc/local-authority/00DA,Leeds City Council,Environment & Neighbourhoods,Belle Isle,Capital,Construction,3,20/07/2011,1107-00822,8660.06,C,Blackie Ltd
http://statistics.data.gov.uk/doc/local-authority/00DA,Leeds City Council,Environment & Neighbourhoods,Belle Isle,Capital,Construction,3,27/07/2011,1107-00823,9676.69,C,Blackie Ltd
http://statistics.data.gov.uk/doc/local-authority/00DA,Leeds City Council,Childrens Services,Integrated Youth Support Service,Supplies and Services,Young Peoples Activities,652,15/06/2011,1107-00824,651.50,R,Blackpool Pleasure
http://statistics.data.gov.uk/doc/local-authority/00DA,Leeds City Council,Adult Social Care,Social Services Support Services,Employees,Study Books & Equipment,072,29/07/2011,1107-00825,610.92,R,Blackwells Bookshop
http://statistics.data.gov.uk/doc/local-authority/00DA,Leeds City Council,Environment & Neighbourhoods,Statutory Housing,Supplies and Services,Other Hired And Contracted Services,265,05/07/2011,1107-00826,675.00,R,Blue Residential -Bacs
http://statistics.data.gov.uk/doc/local-authority/00DA,Leeds City Council,City Development,Economic Development,Supplies and Services,Other Hired And Contracted Services,265,22/07/2011,1107-00827,1350.00,R,Blueclaw Media Ltd
http://statistics.data.gov.uk/doc/local-authority/00DA,Leeds City Council,City Development,Libraries  Arts & Heritage,Supplies and Services,Other Hired And Contracted Services,265,08/07/2011,1107-00828,1700.00,R,Blunderbus Theatre Company Ltd
http://statistics.data.gov.uk/doc/local-authority/00DA,Leeds City Council,City Development,Recreation,Supplies and Services,Operational Furniture And Equipment,203,12/07/2011,1107-00829,754.24,R,Bob Wild Grass Machinery
http://statistics.data.gov.uk/doc/local-authority/00DA,Leeds City Council,Central & Corporate Functions,Commercial Services Trading Services,Supplies and Services,Operational Materials,205,05/07/2011,1107-00830,645.00,R,Boiler & Heating Supplies Ltd
http://statistics.data.gov.uk/doc/local-authority/00DA,Leeds City Council,Central & Corporate Functions,Commercial Services Trading Services,Supplies and Services,Operational Materials,205,05/07/2011,1107-00831,600.35,R,Boiler & Heating Supplies Ltd
http://statistics.data.gov.uk/doc/local-authority/00DA,Leeds City Council,Central & Corporate Functions,Commercial Services Trading Services,Supplies and Services,Operational Materials,205,05/07/2011,1107-00832,575.00,R,Boiler & Heating Supplies Ltd
http://statistics.data.gov.uk/doc/local-authority/00DA,Leeds City Council,Central & Corporate Functions,Commercial Services Trading Services,Supplies and Services,Operational Materials,205,05/07/2011,1107-00833,498.00,R,Boiler & Heating Supplies Ltd
http://statistics.data.gov.uk/doc/local-authority/00DA,Leeds City Council,Central & Corporate Functions,Commercial Services Trading Services,Supplies and Services,Operational Materials,205,14/07/2011,1107-00834,825.00,R,Boiler & Heating Supplies Ltd
http://statistics.data.gov.uk/doc/local-authority/00DA,Leeds City Council,City Development,Libraries  Arts & Heritage,Supplies and Services,Resaleable Materials,204,14/07/2011,1107-00835,928.80,R,Book Tokens Ltd
http://statistics.data.gov.uk/doc/local-authority/00DA,Leeds City Council,City Development,Libraries  Arts & Heritage,Supplies and Services,Books & Audio-Visual Materials,206,29/07/2011,1107-00836,564.14,R,Books Asia
http://statistics.data.gov.uk/doc/local-authority/00DA,Leeds City Council,Adult Social Care,Services For Older People - 65 And Over,Third Party Payments,Residential Care Emi,571,06/07/2011,1107-00837,1503.04,R,Boroughbridge Lodge
http://statistics.data.gov.uk/doc/local-authority/00DA,Leeds City Council,City Development,Libraries  Arts & Heritage,Supplies and Services,Resaleable Materials,204,15/07/2011,1107-00838,447.39,R,Bougies La Francaise
http://statistics.data.gov.uk/doc/local-authority/00DA,Leeds City Council,City Development,Libraries  Arts & Heritage,Supplies and Services,Hospitality,255,05/07/2011,1107-00839,456.25,R,Boutique Catering Ltd
http://statistics.data.gov.uk/doc/local-authority/00DA,Leeds City Council,City Development,Recreation,Supplies and Services,Other Hired And Contracted Services,265,01/07/2011,1107-00840,1549.96,R,Boxing Awards Ltd
http://statistics.data.gov.uk/doc/local-authority/00DA,Leeds City Council,City Development,Asset Management Services,Premises,Maintenance Of Buildings,101,08/07/2011,1107-00841,4338.00,R,Bps Ltd
http://statistics.data.gov.uk/doc/local-authority/00DA,Leeds City Council,City Development,Asset Management Services,Premises,Maintenance Of Buildings,101,08/07/2011,1107-00842,4322.00,R,Bps Ltd
http://statistics.data.gov.uk/doc/local-authority/00DA,Leeds City Council,Central & Corporate Functions,Commercial Services Trading Services,Supplies and Services,Other Hired And Contracted Services,265,22/07/2011,1107-00843,3395.00,R,Bps Ltd
http://statistics.data.gov.uk/doc/local-authority/00DA,Leeds City Council,Central & Corporate Functions,Commercial Services Trading Services,Supplies and Services,Operational Materials,205,22/07/2011,1107-00844,650.00,R,Bps Ltd
http://statistics.data.gov.uk/doc/local-authority/00DA,Leeds City Council,Environment & Neighbourhoods,Strategy & Commissioning,Third Party Payments,Supporting Ppl - Block Gross Chargeable,514,19/07/2011,1107-00845,1100.80,R,Bradford And Northern Housing
http://statistics.data.gov.uk/doc/local-authority/00DA,Leeds City Council as Accountable Body,Jcs For People With Learning Disabilitie,Jcs For People With Learning Disabilitie,Third Party Payments,Home Care,568,22/07/2011,1107-00846,27525.00,R,Bradford District Care Trust
http://statistics.data.gov.uk/doc/local-authority/00DA,Leeds City Council as Accountable Body,Jcs For People With Learning Disabilitie,Jcs For People With Learning Disabilitie,Third Party Payments,Home Care,568,26/07/2011,1107-00847,27520.00,R,Bradford District Care Trust
http://statistics.data.gov.uk/doc/local-authority/00DA,Leeds City Council as Accountable Body,Jcs For People With Learning Disabilitie,Jcs For People With Learning Disabilitie,Third Party Payments,Home Care,568,29/07/2011,1107-00848,27525.00,R,Bradford District Care Trust
http://statistics.data.gov.uk/doc/local-authority/00DA,Leeds City Council,Adult Social Care,Services For Older People Under 65 P/Dis,Third Party Payments,Nursing Home,570,06/07/2011,1107-00849,10436.44,R,Bradford Independent (St Ives) Ltd
http://statistics.data.gov.uk/doc/local-authority/00DA,Leeds City Council,Adult Social Care,Services For Older People - 65 And Over,Third Party Payments,Nursing Home,570,06/07/2011,1107-00850,1952.56,R,Bradford Independent (St Ives) Ltd
http://statistics.data.gov.uk/doc/local-authority/00DA,Leeds City Council,Adult Social Care,Services For Older People Under 65 P/Dis,Third Party Payments,Residential,580,06/07/2011,1107-00851,1924.48,R,Bradford Independent (St Ives) Ltd
http://statistics.data.gov.uk/doc/local-authority/00DA,Leeds City Council,Adult Social Care,Services For Adults Under 65 Mental/Dis,Third Party Payments,Residential,580,06/07/2011,1107-00852,1457.76,R,Bradford Independent (St Ives) Ltd
http://statistics.data.gov.uk/doc/local-authority/00DA,Leeds City Council as Accountable Body,Jcs For People With Learning Disabilitie,Jcs For People With Learning Disabilitie,Third Party Payments,Nursing Home,570,06/07/2011,1107-00853,1808.20,R,Bradford Independent Health Care
http://statistics.data.gov.uk/doc/local-authority/00DA,Leeds City Council,Adult Social Care,Services For Adults Under 65 Mental/Dis,Third Party Payments,Nursing Home,570,06/07/2011,1107-00854,20954.28,R,Bradford Independent Health Care
http://statistics.data.gov.uk/doc/local-authority/00DA,Leeds City Council,Adult Social Care,Services For Older People - 65 And Over,Third Party Payments,Nursing Home,570,06/07/2011,1107-00855,13373.04,R,Bradford Independent Health Care
http://statistics.data.gov.uk/doc/local-authority/00DA,Leeds City Council,Adult Social Care,Services For Adults Under 65 Mental/Dis,Third Party Payments,Nursing Home,570,06/07/2011,1107-00856,3289.20,R,Bradford Independent Health Care
http://statistics.data.gov.uk/doc/local-authority/00DA,Leeds City Council,Adult Social Care,Services For Older People - 65 And Over,Third Party Payments,Nursing Home,570,06/07/2011,1107-00857,2593.40,R,Bradford Independent Health Care
http://statistics.data.gov.uk/doc/local-authority/00DA,Leeds City Council,Adult Social Care,Services For Older People - 65 And Over,Third Party Payments,Residential Care Emi,571,06/07/2011,1107-00858,1727.88,R,Bradford Independent Health Care
http://statistics.data.gov.uk/doc/local-authority/00DA,Leeds City Council,Adult Social Care,Services For Older People - 65 And Over,Third Party Payments,Residential Care Emi,571,06/07/2011,1107-00859,1638.68,R,Bradford Independent Health Care
http://statistics.data.gov.uk/doc/local-authority/00DA,Leeds City Council,Adult Social Care,Services For Older People - 65 And Over,Third Party Payments,Nursing Care Emi,574,06/07/2011,1107-00860,5560.32,R,Bradford Independent Health Care
http://statistics.data.gov.uk/doc/local-authority/00DA,Leeds City Council,Adult Social Care,Services For Older People - 65 And Over,Third Party Payments,Nursing Care Emi,574,06/07/2011,1107-00861,3238.80,R,Bradford Independent Health Care
http://statistics.data.gov.uk/doc/local-authority/00DA,Leeds City Council,Adult Social Care,Services For Adults Under 65 Mental/Dis,Third Party Payments,Residential,580,06/07/2011,1107-00862,1134.52,R,Bradford Independent Health Care
http://statistics.data.gov.uk/doc/local-authority/00DA,Leeds City Council,Adult Social Care,Services For Older People - 65 And Over,Third Party Payments,Residential,580,06/07/2011,1107-00863,1080.60,R,Bradford Independent Health Care
http://statistics.data.gov.uk/doc/local-authority/00DA,Leeds City Council,Adult Social Care,Services For Older People - 65 And Over,Third Party Payments,Nursing Home,570,06/07/2011,1107-00864,27352.75,R,Bradford Independent Health Care Owlett
http://statistics.data.gov.uk/doc/local-authority/00DA,Leeds City Council,Adult Social Care,Services For Adults Under 65 Mental/Dis,Third Party Payments,Nursing Home,570,06/07/2011,1107-00865,1420.08,R,Bradford Independent Health Care Owlett
http://statistics.data.gov.uk/doc/local-authority/00DA,Leeds City Council,Adult Social Care,Services For Older People - 65 And Over,Third Party Payments,Residential,580,06/07/2011,1107-00866,979.68,R,Bradford Independent Health Care Owlett
http://statistics.data.gov.uk/doc/local-authority/00DA,Leeds City Council,Childrens Services,Other Childrens And Families Services,Third Party Payments,Rent,552,04/07/2011,1107-00867,1908.00,R,Bradford Metropolitan District Council
http://statistics.data.gov.uk/doc/local-authority/00DA,Leeds City Council,Childrens Services,Other Childrens And Families Services,Third Party Payments,Rent,552,08/07/2011,1107-00868,566.27,R,Bradford Metropolitan District Council
http://statistics.data.gov.uk/doc/local-authority/00DA,Leeds City Council,Environment & Neighbourhoods,South South East,Capital,Construction,3,11/07/2011,1107-00869,632.20,C,Bradley Environmental Consultants
http://statistics.data.gov.uk/doc/local-authority/00DA,Aire Valley Homes Leeds,Aire Valley Homes Leeds,S. Offices,Premises,H.R.A. - Special Maintenance,106,27/07/2011,1107-00870,452.35,R,Bradley Environmental Consultants
http://statistics.data.gov.uk/doc/local-authority/00DA,West - North West,West - North West,Property And Maintenance,Premises,H.R.A. - Special Maintenance,106,27/07/2011,1107-00871,4849.65,R,Bradley Environmental Consultants
http://statistics.data.gov.uk/doc/local-authority/00DA,Leeds City Council,Adult Social Care,Services For Older People - 65 And Over,Third Party Payments,Sheltered Accommodation,569,06/07/2011,1107-00872,4930.56,R,Brain Injury Rehabilitation Trust
http://statistics.data.gov.uk/doc/local-authority/00DA,Leeds City Council,Adult Social Care,Services For Older People Under 65 P/Dis,Third Party Payments,Sheltered Accommodation,569,06/07/2011,1107-00873,4448.00,R,Brain Injury Rehabilitation Trust
http://statistics.data.gov.uk/doc/local-authority/00DA,Leeds City Council,Adult Social Care,Services For Older People Under 65 P/Dis,Third Party Payments,Sheltered Accommodation,569,06/07/2011,1107-00874,2403.71,R,Brain Injury Rehabilitation Trust
http://statistics.data.gov.uk/doc/local-authority/00DA,Leeds City Council,Adult Social Care,Services For Adults Under 65 Mental/Dis,Third Party Payments,Nursing Home,570,06/07/2011,1107-00875,3782.20,R,Brain Injury Rehabilitation Trust
http://statistics.data.gov.uk/doc/local-authority/00DA,Leeds City Council,Adult Social Care,Services For Older People Under 65 P/Dis,Third Party Payments,Residential,580,06/07/2011,1107-00876,4642.96,R,Brain Injury Rehabilitation Trust
